Workbook

Sheet 御案内
A2: ご案内
A4: このたびは、ヴィライナワシロのご予約をいただきまして誠にありがとう
A5: ございます。
A6: 当館はゲレンデ目の前の絶好の位置にあり、レンタル、インストラクター
A7: も自社で行っております。
A8: レンタルに関しまして、より安全面を強化するため、ヘルメットを標準装
A9: 備となっております。
A11: 事前準備としまして、次ページ「入力」の所定箇所の入力をお願い致
A12: します。こちらは、シール化して、レンタルウエアとブーツに貼ります。
A13: 事前にｻｲｽﾞ毎の統計を取る事で、準備も万全となります。
A14: お預かりした個人情報は、決して目的以外に使う事なく、適切に処理致
A15: します。
A16: ご不明な点がございましたら、いつでもご連絡ください。
A17: より安全で、より思い出深き、ご旅行になるよう、当館も尽くしてまいり
A18: ます。よろしくお願い申し上げます。

Sheet 入力
A1: 猪苗代ライジングホテル | E1: villa中 | F1: 様 | N1: 日程 | P1: ～ | S1: ※学年、No 性別 氏名 身長 靴サイズを入力してください
A2: 学年組 | B2: No | C2: 部屋 | D2: 性別 | E2: 氏 名 | F2: 身長cm | G2: 靴サイズ | H2: ウェアーサイズ | I2: スキーサイズ | K2: ボード | L2: スキーセット | M2: ウエアセット | N2: 帽子 | O2: 手袋 | P2: ゴーグル | Q2: 板サイズ
A3: 1 | B3: 1 | C3: 620 | D3: 男 | E3: 磐梯たろう | F3: 165 | G3: 24 | H3: =IF(F3="","",VLOOKUP(F3,サイズ!$E$3:$F$11,2,1)) -> L | Q3: =IF(G3="","",VLOOKUP(G3,サイズ!$H$3:$I$17,2,1)) -> D
H4: =IF(F4="","",VLOOKUP(F4,サイズ!$E$3:$F$11,2,1)) ->  | Q4: =IF(G4="","",VLOOKUP(G4,サイズ!$H$3:$I$17,2,1)) ->  | T4: 入力上のお願い
H5: =IF(F5="","",VLOOKUP(F5,サイズ!$E$3:$F$11,2,1)) ->  | Q5: =IF(G5="","",VLOOKUP(G5,サイズ!$H$3:$I$17,2,1)) ->  | T5: ①villa中、磐梯たろうは、モデルですので、学校名に直してご利用ください
H6: =IF(F6="","",VLOOKUP(F6,サイズ!$E$3:$F$11,2,1)) ->  | Q6: =IF(G6="","",VLOOKUP(G6,サイズ!$H$3:$I$17,2,1)) ->  | T6: ②学年、Ｎｏ、部屋、性別、氏名、身長、靴ｻｲｽﾞを入力下さい
H7: =IF(F7="","",VLOOKUP(F7,サイズ!$E$3:$F$11,2,1)) ->  | Q7: =IF(G7="","",VLOOKUP(G7,サイズ!$H$3:$I$17,2,1)) ->  | T7: ③ｳｴｱｰｻｲｽﾞ、板ｻｲｽﾞは自動で入ります。
H8: =IF(F8="","",VLOOKUP(F8,サイズ!$E$3:$F$11,2,1)) ->  | Q8: =IF(G8="","",VLOOKUP(G8,サイズ!$H$3:$I$17,2,1)) ->  | T8: ④ｸﾗｽ毎の別ﾌｧｲﾙを作らず、引き続き入力お願いします。
H9: =IF(F9="","",VLOOKUP(F9,サイズ!$E$3:$F$11,2,1)) ->  | Q9: =IF(G9="","",VLOOKUP(G9,サイズ!$H$3:$I$17,2,1)) ->  | T9: ⑤部屋番号がまだ未定の場合はご連絡下さい。
H10: =IF(F10="","",VLOOKUP(F10,サイズ!$E$3:$F$11,2,1)) ->  | Q10: =IF(G10="","",VLOOKUP(G10,サイズ!$H$3:$I$17,2,1)) ->  | T10: ⑥先生方ご利用の場合もあわせて入力お願いします。
H11: =IF(F11="","",VLOOKUP(F11,サイズ!$E$3:$F$11,2,1)) ->  | Q11: =IF(G11="","",VLOOKUP(G11,サイズ!$H$3:$I$17,2,1)) -> 
H12: =IF(F12="","",VLOOKUP(F12,サイズ!$E$3:$F$11,2,1)) ->  | Q12: =IF(G12="","",VLOOKUP(G12,サイズ!$H$3:$I$17,2,1)) -> 
H13: =IF(F13="","",VLOOKUP(F13,サイズ!$E$3:$F$11,2,1)) ->  | Q13: =IF(G13="","",VLOOKUP(G13,サイズ!$H$3:$I$17,2,1)) -> 
H14: =IF(F14="","",VLOOKUP(F14,サイズ!$E$3:$F$11,2,1)) ->  | Q14: =IF(G14="","",VLOOKUP(G14,サイズ!$H$3:$I$17,2,1)) -> 
H15: =IF(F15="","",VLOOKUP(F15,サイズ!$E$3:$F$11,2,1)) ->  | Q15: =IF(G15="","",VLOOKUP(G15,サイズ!$H$3:$I$17,2,1)) -> 
H16: =IF(F16="","",VLOOKUP(F16,サイズ!$E$3:$F$11,2,1)) ->  | Q16: =IF(G16="","",VLOOKUP(G16,サイズ!$H$3:$I$17,2,1)) -> 
H17: =IF(F17="","",VLOOKUP(F17,サイズ!$E$3:$F$11,2,1)) ->  | Q17: =IF(G17="","",VLOOKUP(G17,サイズ!$H$3:$I$17,2,1)) -> 
H18: =IF(F18="","",VLOOKUP(F18,サイズ!$E$3:$F$11,2,1)) ->  | Q18: =IF(G18="","",VLOOKUP(G18,サイズ!$H$3:$I$17,2,1)) -> 
H19: =IF(F19="","",VLOOKUP(F19,サイズ!$E$3:$F$11,2,1)) ->  | Q19: =IF(G19="","",VLOOKUP(G19,サイズ!$H$3:$I$17,2,1)) -> 
H20: =IF(F20="","",VLOOKUP(F20,サイズ!$E$3:$F$11,2,1)) ->  | Q20: =IF(G20="","",VLOOKUP(G20,サイズ!$H$3:$I$17,2,1)) -> 
H21: =IF(F21="","",VLOOKUP(F21,サイズ!$E$3:$F$11,2,1)) ->  | Q21: =IF(G21="","",VLOOKUP(G21,サイズ!$H$3:$I$17,2,1)) -> 
H22: =IF(F22="","",VLOOKUP(F22,サイズ!$E$3:$F$11,2,1)) ->  | Q22: =IF(G22="","",VLOOKUP(G22,サイズ!$H$3:$I$17,2,1)) -> 
H23: =IF(F23="","",VLOOKUP(F23,サイズ!$E$3:$F$11,2,1)) ->  | Q23: =IF(G23="","",VLOOKUP(G23,サイズ!$H$3:$I$17,2,1)) -> 
H24: =IF(F24="","",VLOOKUP(F24,サイズ!$E$3:$F$11,2,1)) ->  | Q24: =IF(G24="","",VLOOKUP(G24,サイズ!$H$3:$I$17,2,1)) -> 
H25: =IF(F25="","",VLOOKUP(F25,サイズ!$E$3:$F$11,2,1)) ->  | Q25: =IF(G25="","",VLOOKUP(G25,サイズ!$H$3:$I$17,2,1)) -> 
H26: =IF(F26="","",VLOOKUP(F26,サイズ!$E$3:$F$11,2,1)) ->  | Q26: =IF(G26="","",VLOOKUP(G26,サイズ!$H$3:$I$17,2,1)) -> 
H27: =IF(F27="","",VLOOKUP(F27,サイズ!$E$3:$F$11,2,1)) ->  | Q27: =IF(G27="","",VLOOKUP(G27,サイズ!$H$3:$I$17,2,1)) -> 
H28: =IF(F28="","",VLOOKUP(F28,サイズ!$E$3:$F$11,2,1)) ->  | Q28: =IF(G28="","",VLOOKUP(G28,サイズ!$H$3:$I$17,2,1)) -> 
H29: =IF(F29="","",VLOOKUP(F29,サイズ!$E$3:$F$11,2,1)) ->  | Q29: =IF(G29="","",VLOOKUP(G29,サイズ!$H$3:$I$17,2,1)) -> 
H30: =IF(F30="","",VLOOKUP(F30,サイズ!$E$3:$F$11,2,1)) ->  | Q30: =IF(G30="","",VLOOKUP(G30,サイズ!$H$3:$I$17,2,1)) -> 
H31: =IF(F31="","",VLOOKUP(F31,サイズ!$E$3:$F$11,2,1)) ->  | Q31: =IF(G31="","",VLOOKUP(G31,サイズ!$H$3:$I$17,2,1)) -> 
H32: =IF(F32="","",VLOOKUP(F32,サイズ!$E$3:$F$11,2,1)) ->  | Q32: =IF(G32="","",VLOOKUP(G32,サイズ!$H$3:$I$17,2,1)) -> 
H33: =IF(F33="","",VLOOKUP(F33,サイズ!$E$3:$F$11,2,1)) ->  | Q33: =IF(G33="","",VLOOKUP(G33,サイズ!$H$3:$I$17,2,1)) -> 
H34: =IF(F34="","",VLOOKUP(F34,サイズ!$E$3:$F$11,2,1)) ->  | Q34: =IF(G34="","",VLOOKUP(G34,サイズ!$H$3:$I$17,2,1)) -> 
H35: =IF(F35="","",VLOOKUP(F35,サイズ!$E$3:$F$11,2,1)) ->  | Q35: =IF(G35="","",VLOOKUP(G35,サイズ!$H$3:$I$17,2,1)) -> 
H36: =IF(F36="","",VLOOKUP(F36,サイズ!$E$3:$F$11,2,1)) ->  | Q36: =IF(G36="","",VLOOKUP(G36,サイズ!$H$3:$I$17,2,1)) -> 
H37: =IF(F37="","",VLOOKUP(F37,サイズ!$E$3:$F$11,2,1)) ->  | Q37: =IF(G37="","",VLOOKUP(G37,サイズ!$H$3:$I$17,2,1)) -> 
H38: =IF(F38="","",VLOOKUP(F38,サイズ!$E$3:$F$11,2,1)) ->  | Q38: =IF(G38="","",VLOOKUP(G38,サイズ!$H$3:$I$17,2,1)) -> 
H39: =IF(F39="","",VLOOKUP(F39,サイズ!$E$3:$F$11,2,1)) ->  | Q39: =IF(G39="","",VLOOKUP(G39,サイズ!$H$3:$I$17,2,1)) -> 
H40: =IF(F40="","",VLOOKUP(F40,サイズ!$E$3:$F$11,2,1)) ->  | Q40: =IF(G40="","",VLOOKUP(G40,サイズ!$H$3:$I$17,2,1)) -> 
H41: =IF(F41="","",VLOOKUP(F41,サイズ!$E$3:$F$11,2,1)) ->  | Q41: =IF(G41="","",VLOOKUP(G41,サイズ!$H$3:$I$17,2,1)) -> 
H42: =IF(F42="","",VLOOKUP(F42,サイズ!$E$3:$F$11,2,1)) ->  | Q42: =IF(G42="","",VLOOKUP(G42,サイズ!$H$3:$I$17,2,1)) -> 
H43: =IF(F43="","",VLOOKUP(F43,サイズ!$E$3:$F$11,2,1)) ->  | Q43: =IF(G43="","",VLOOKUP(G43,サイズ!$H$3:$I$17,2,1)) -> 
H44: =IF(F44="","",VLOOKUP(F44,サイズ!$E$3:$F$11,2,1)) ->  | Q44: =IF(G44="","",VLOOKUP(G44,サイズ!$H$3:$I$17,2,1)) -> 
H45: =IF(F45="","",VLOOKUP(F45,サイズ!$E$3:$F$11,2,1)) ->  | Q45: =IF(G45="","",VLOOKUP(G45,サイズ!$H$3:$I$17,2,1)) -> 
H46: =IF(F46="","",VLOOKUP(F46,サイズ!$E$3:$F$11,2,1)) ->  | Q46: =IF(G46="","",VLOOKUP(G46,サイズ!$H$3:$I$17,2,1)) -> 
H47: =IF(F47="","",VLOOKUP(F47,サイズ!$E$3:$F$11,2,1)) ->  | Q47: =IF(G47="","",VLOOKUP(G47,サイズ!$H$3:$I$17,2,1)) -> 
H48: =IF(F48="","",VLOOKUP(F48,サイズ!$E$3:$F$11,2,1)) ->  | Q48: =IF(G48="","",VLOOKUP(G48,サイズ!$H$3:$I$17,2,1)) -> 
H49: =IF(F49="","",VLOOKUP(F49,サイズ!$E$3:$F$11,2,1)) ->  | Q49: =IF(G49="","",VLOOKUP(G49,サイズ!$H$3:$I$17,2,1)) -> 
H50: =IF(F50="","",VLOOKUP(F50,サイズ!$E$3:$F$11,2,1)) ->  | Q50: =IF(G50="","",VLOOKUP(G50,サイズ!$H$3:$I$17,2,1)) -> 
H51: =IF(F51="","",VLOOKUP(F51,サイズ!$E$3:$F$11,2,1)) ->  | Q51: =IF(G51="","",VLOOKUP(G51,サイズ!$H$3:$I$17,2,1)) -> 
H52: =IF(F52="","",VLOOKUP(F52,サイズ!$E$3:$F$11,2,1)) ->  | Q52: =IF(G52="","",VLOOKUP(G52,サイズ!$H$3:$I$17,2,1)) -> 
H53: =IF(F53="","",VLOOKUP(F53,サイズ!$E$3:$F$11,2,1)) ->  | Q53: =IF(G53="","",VLOOKUP(G53,サイズ!$H$3:$I$17,2,1)) -> 
H54: =IF(F54="","",VLOOKUP(F54,サイズ!$E$3:$F$11,2,1)) ->  | Q54: =IF(G54="","",VLOOKUP(G54,サイズ!$H$3:$I$17,2,1)) -> 
H55: =IF(F55="","",VLOOKUP(F55,サイズ!$E$3:$F$11,2,1)) ->  | Q55: =IF(G55="","",VLOOKUP(G55,サイズ!$H$3:$I$17,2,1)) -> 
H56: =IF(F56="","",VLOOKUP(F56,サイズ!$E$3:$F$11,2,1)) ->  | Q56: =IF(G56="","",VLOOKUP(G56,サイズ!$H$3:$I$17,2,1)) -> 
H57: =IF(F57="","",VLOOKUP(F57,サイズ!$E$3:$F$11,2,1)) ->  | Q57: =IF(G57="","",VLOOKUP(G57,サイズ!$H$3:$I$17,2,1)) -> 
H58: =IF(F58="","",VLOOKUP(F58,サイズ!$E$3:$F$11,2,1)) ->  | Q58: =IF(G58="","",VLOOKUP(G58,サイズ!$H$3:$I$17,2,1)) -> 
H59: =IF(F59="","",VLOOKUP(F59,サイズ!$E$3:$F$11,2,1)) ->  | Q59: =IF(G59="","",VLOOKUP(G59,サイズ!$H$3:$I$17,2,1)) -> 
H60: =IF(F60="","",VLOOKUP(F60,サイズ!$E$3:$F$11,2,1)) ->  | Q60: =IF(G60="","",VLOOKUP(G60,サイズ!$H$3:$I$17,2,1)) -> 
H61: =IF(F61="","",VLOOKUP(F61,サイズ!$E$3:$F$11,2,1)) ->  | Q61: =IF(G61="","",VLOOKUP(G61,サイズ!$H$3:$I$17,2,1)) -> 
H62: =IF(F62="","",VLOOKUP(F62,サイズ!$E$3:$F$11,2,1)) ->  | Q62: =IF(G62="","",VLOOKUP(G62,サイズ!$H$3:$I$17,2,1)) -> 
H63: =IF(F63="","",VLOOKUP(F63,サイズ!$E$3:$F$11,2,1)) ->  | Q63: =IF(G63="","",VLOOKUP(G63,サイズ!$H$3:$I$17,2,1)) -> 
H64: =IF(F64="","",VLOOKUP(F64,サイズ!$E$3:$F$11,2,1)) ->  | Q64: =IF(G64="","",VLOOKUP(G64,サイズ!$H$3:$I$17,2,1)) -> 
H65: =IF(F65="","",VLOOKUP(F65,サイズ!$E$3:$F$11,2,1)) ->  | Q65: =IF(G65="","",VLOOKUP(G65,サイズ!$H$3:$I$17,2,1)) -> 
H66: =IF(F66="","",VLOOKUP(F66,サイズ!$E$3:$F$11,2,1)) ->  | Q66: =IF(G66="","",VLOOKUP(G66,サイズ!$H$3:$I$17,2,1)) -> 
H67: =IF(F67="","",VLOOKUP(F67,サイズ!$E$3:$F$11,2,1)) ->  | Q67: =IF(G67="","",VLOOKUP(G67,サイズ!$H$3:$I$17,2,1)) -> 
H68: =IF(F68="","",VLOOKUP(F68,サイズ!$E$3:$F$11,2,1)) ->  | Q68: =IF(G68="","",VLOOKUP(G68,サイズ!$H$3:$I$17,2,1)) -> 
H69: =IF(F69="","",VLOOKUP(F69,サイズ!$E$3:$F$11,2,1)) ->  | Q69: =IF(G69="","",VLOOKUP(G69,サイズ!$H$3:$I$17,2,1)) -> 
H70: =IF(F70="","",VLOOKUP(F70,サイズ!$E$3:$F$11,2,1)) ->  | Q70: =IF(G70="","",VLOOKUP(G70,サイズ!$H$3:$I$17,2,1)) -> 
H71: =IF(F71="","",VLOOKUP(F71,サイズ!$E$3:$F$11,2,1)) ->  | Q71: =IF(G71="","",VLOOKUP(G71,サイズ!$H$3:$I$17,2,1)) -> 
H72: =IF(F72="","",VLOOKUP(F72,サイズ!$E$3:$F$11,2,1)) ->  | Q72: =IF(G72="","",VLOOKUP(G72,サイズ!$H$3:$I$17,2,1)) -> 
H73: =IF(F73="","",VLOOKUP(F73,サイズ!$E$3:$F$11,2,1)) ->  | Q73: =IF(G73="","",VLOOKUP(G73,サイズ!$H$3:$I$17,2,1)) -> 
H74: =IF(F74="","",VLOOKUP(F74,サイズ!$E$3:$F$11,2,1)) ->  | Q74: =IF(G74="","",VLOOKUP(G74,サイズ!$H$3:$I$17,2,1)) -> 
H75: =IF(F75="","",VLOOKUP(F75,サイズ!$E$3:$F$11,2,1)) ->  | Q75: =IF(G75="","",VLOOKUP(G75,サイズ!$H$3:$I$17,2,1)) -> 
H76: =IF(F76="","",VLOOKUP(F76,サイズ!$E$3:$F$11,2,1)) ->  | Q76: =IF(G76="","",VLOOKUP(G76,サイズ!$H$3:$I$17,2,1)) -> 
H77: =IF(F77="","",VLOOKUP(F77,サイズ!$E$3:$F$11,2,1)) ->  | Q77: =IF(G77="","",VLOOKUP(G77,サイズ!$H$3:$I$17,2,1)) -> 
H78: =IF(F78="","",VLOOKUP(F78,サイズ!$E$3:$F$11,2,1)) ->  | Q78: =IF(G78="","",VLOOKUP(G78,サイズ!$H$3:$I$17,2,1)) -> 
H79: =IF(F79="","",VLOOKUP(F79,サイズ!$E$3:$F$11,2,1)) ->  | Q79: =IF(G79="","",VLOOKUP(G79,サイズ!$H$3:$I$17,2,1)) -> 
H80: =IF(F80="","",VLOOKUP(F80,サイズ!$E$3:$F$11,2,1)) ->  | Q80: =IF(G80="","",VLOOKUP(G80,サイズ!$H$3:$I$17,2,1)) -> 
H81: =IF(F81="","",VLOOKUP(F81,サイズ!$E$3:$F$11,2,1)) ->  | Q81: =IF(G81="","",VLOOKUP(G81,サイズ!$H$3:$I$17,2,1)) -> 
H82: =IF(F82="","",VLOOKUP(F82,サイズ!$E$3:$F$11,2,1)) ->  | Q82: =IF(G82="","",VLOOKUP(G82,サイズ!$H$3:$I$17,2,1)) -> 
H83: =IF(F83="","",VLOOKUP(F83,サイズ!$E$3:$F$11,2,1)) ->  | Q83: =IF(G83="","",VLOOKUP(G83,サイズ!$H$3:$I$17,2,1)) -> 
H84: =IF(F84="","",VLOOKUP(F84,サイズ!$E$3:$F$11,2,1)) ->  | Q84: =IF(G84="","",VLOOKUP(G84,サイズ!$H$3:$I$17,2,1)) -> 
H85: =IF(F85="","",VLOOKUP(F85,サイズ!$E$3:$F$11,2,1)) ->  | Q85: =IF(G85="","",VLOOKUP(G85,サイズ!$H$3:$I$17,2,1)) -> 
H86: =IF(F86="","",VLOOKUP(F86,サイズ!$E$3:$F$11,2,1)) ->  | Q86: =IF(G86="","",VLOOKUP(G86,サイズ!$H$3:$I$17,2,1)) -> 
H87: =IF(F87="","",VLOOKUP(F87,サイズ!$E$3:$F$11,2,1)) ->  | Q87: =IF(G87="","",VLOOKUP(G87,サイズ!$H$3:$I$17,2,1)) -> 
H88: =IF(F88="","",VLOOKUP(F88,サイズ!$E$3:$F$11,2,1)) ->  | Q88: =IF(G88="","",VLOOKUP(G88,サイズ!$H$3:$I$17,2,1)) -> 
H89: =IF(F89="","",VLOOKUP(F89,サイズ!$E$3:$F$11,2,1)) ->  | Q89: =IF(G89="","",VLOOKUP(G89,サイズ!$H$3:$I$17,2,1)) -> 
H90: =IF(F90="","",VLOOKUP(F90,サイズ!$E$3:$F$11,2,1)) ->  | Q90: =IF(G90="","",VLOOKUP(G90,サイズ!$H$3:$I$17,2,1)) -> 
H91: =IF(F91="","",VLOOKUP(F91,サイズ!$E$3:$F$11,2,1)) ->  | Q91: =IF(G91="","",VLOOKUP(G91,サイズ!$H$3:$I$17,2,1)) -> 
H92: =IF(F92="","",VLOOKUP(F92,サイズ!$E$3:$F$11,2,1)) ->  | Q92: =IF(G92="","",VLOOKUP(G92,サイズ!$H$3:$I$17,2,1)) -> 
H93: =IF(F93="","",VLOOKUP(F93,サイズ!$E$3:$F$11,2,1)) ->  | Q93: =IF(G93="","",VLOOKUP(G93,サイズ!$H$3:$I$17,2,1)) -> 
H94: =IF(F94="","",VLOOKUP(F94,サイズ!$E$3:$F$11,2,1)) ->  | Q94: =IF(G94="","",VLOOKUP(G94,サイズ!$H$3:$I$17,2,1)) -> 
H95: =IF(F95="","",VLOOKUP(F95,サイズ!$E$3:$F$11,2,1)) ->  | Q95: =IF(G95="","",VLOOKUP(G95,サイズ!$H$3:$I$17,2,1)) -> 
H96: =IF(F96="","",VLOOKUP(F96,サイズ!$E$3:$F$11,2,1)) ->  | Q96: =IF(G96="","",VLOOKUP(G96,サイズ!$H$3:$I$17,2,1)) -> 
H97: =IF(F97="","",VLOOKUP(F97,サイズ!$E$3:$F$11,2,1)) ->  | Q97: =IF(G97="","",VLOOKUP(G97,サイズ!$H$3:$I$17,2,1)) -> 
H98: =IF(F98="","",VLOOKUP(F98,サイズ!$E$3:$F$11,2,1)) ->  | Q98: =IF(G98="","",VLOOKUP(G98,サイズ!$H$3:$I$17,2,1)) -> 
H99: =IF(F99="","",VLOOKUP(F99,サイズ!$E$3:$F$11,2,1)) ->  | Q99: =IF(G99="","",VLOOKUP(G99,サイズ!$H$3:$I$17,2,1)) -> 
H100: =IF(F100="","",VLOOKUP(F100,サイズ!$E$3:$F$11,2,1)) ->  | Q100: =IF(G100="","",VLOOKUP(G100,サイズ!$H$3:$I$17,2,1)) -> 
H101: =IF(F101="","",VLOOKUP(F101,サイズ!$E$3:$F$11,2,1)) ->  | Q101: =IF(G101="","",VLOOKUP(G101,サイズ!$H$3:$I$17,2,1)) -> 
H102: =IF(F102="","",VLOOKUP(F102,サイズ!$E$3:$F$11,2,1)) ->  | Q102: =IF(G102="","",VLOOKUP(G102,サイズ!$H$3:$I$17,2,1)) -> 
H103: =IF(F103="","",VLOOKUP(F103,サイズ!$E$3:$F$11,2,1)) ->  | Q103: =IF(G103="","",VLOOKUP(G103,サイズ!$H$3:$I$17,2,1)) -> 
H104: =IF(F104="","",VLOOKUP(F104,サイズ!$E$3:$F$11,2,1)) ->  | Q104: =IF(G104="","",VLOOKUP(G104,サイズ!$H$3:$I$17,2,1)) -> 
H105: =IF(F105="","",VLOOKUP(F105,サイズ!$E$3:$F$11,2,1)) ->  | Q105: =IF(G105="","",VLOOKUP(G105,サイズ!$H$3:$I$17,2,1)) -> 
H106: =IF(F106="","",VLOOKUP(F106,サイズ!$E$3:$F$11,2,1)) ->  | Q106: =IF(G106="","",VLOOKUP(G106,サイズ!$H$3:$I$17,2,1)) -> 
H107: =IF(F107="","",VLOOKUP(F107,サイズ!$E$3:$F$11,2,1)) ->  | Q107: =IF(G107="","",VLOOKUP(G107,サイズ!$H$3:$I$17,2,1)) -> 
H108: =IF(F108="","",VLOOKUP(F108,サイズ!$E$3:$F$11,2,1)) ->  | Q108: =IF(G108="","",VLOOKUP(G108,サイズ!$H$3:$I$17,2,1)) -> 
H109: =IF(F109="","",VLOOKUP(F109,サイズ!$E$3:$F$11,2,1)) ->  | Q109: =IF(G109="","",VLOOKUP(G109,サイズ!$H$3:$I$17,2,1)) -> 
H110: =IF(F110="","",VLOOKUP(F110,サイズ!$E$3:$F$11,2,1)) ->  | Q110: =IF(G110="","",VLOOKUP(G110,サイズ!$H$3:$I$17,2,1)) -> 
H111: =IF(F111="","",VLOOKUP(F111,サイズ!$E$3:$F$11,2,1)) ->  | Q111: =IF(G111="","",VLOOKUP(G111,サイズ!$H$3:$I$17,2,1)) -> 
H112: =IF(F112="","",VLOOKUP(F112,サイズ!$E$3:$F$11,2,1)) ->  | Q112: =IF(G112="","",VLOOKUP(G112,サイズ!$H$3:$I$17,2,1)) -> 
H113: =IF(F113="","",VLOOKUP(F113,サイズ!$E$3:$F$11,2,1)) ->  | Q113: =IF(G113="","",VLOOKUP(G113,サイズ!$H$3:$I$17,2,1)) -> 
H114: =IF(F114="","",VLOOKUP(F114,サイズ!$E$3:$F$11,2,1)) ->  | Q114: =IF(G114="","",VLOOKUP(G114,サイズ!$H$3:$I$17,2,1)) -> 
H115: =IF(F115="","",VLOOKUP(F115,サイズ!$E$3:$F$11,2,1)) ->  | Q115: =IF(G115="","",VLOOKUP(G115,サイズ!$H$3:$I$17,2,1)) -> 
H116: =IF(F116="","",VLOOKUP(F116,サイズ!$E$3:$F$11,2,1)) ->  | Q116: =IF(G116="","",VLOOKUP(G116,サイズ!$H$3:$I$17,2,1)) -> 
H117: =IF(F117="","",VLOOKUP(F117,サイズ!$E$3:$F$11,2,1)) ->  | Q117: =IF(G117="","",VLOOKUP(G117,サイズ!$H$3:$I$17,2,1)) -> 
H118: =IF(F118="","",VLOOKUP(F118,サイズ!$E$3:$F$11,2,1)) ->  | Q118: =IF(G118="","",VLOOKUP(G118,サイズ!$H$3:$I$17,2,1)) -> 
H119: =IF(F119="","",VLOOKUP(F119,サイズ!$E$3:$F$11,2,1)) ->  | Q119: =IF(G119="","",VLOOKUP(G119,サイズ!$H$3:$I$17,2,1)) -> 
H120: =IF(F120="","",VLOOKUP(F120,サイズ!$E$3:$F$11,2,1)) ->  | Q120: =IF(G120="","",VLOOKUP(G120,サイズ!$H$3:$I$17,2,1)) -> 
H121: =IF(F121="","",VLOOKUP(F121,サイズ!$E$3:$F$11,2,1)) ->  | K121: =IF(G121="","",VLOOKUP(G121,サイズ!$A$3:$B$19,2)) ->  | L121: =IF(K121="","",K121) ->  | N121: =IF(M121="","",1) ->  | O121: =IF(M121="","",1) ->  | P121: =IF(M121="","",1) ->  | Q121: =IF(G121="","",VLOOKUP(G121,サイズ!$H$3:$I$17,2,1)) -> 
H122: =IF(F122="","",VLOOKUP(F122,サイズ!$E$3:$F$11,2,1)) ->  | K122: =IF(G122="","",VLOOKUP(G122,サイズ!$A$3:$B$19,2)) ->  | Q122: =IF(G122="","",VLOOKUP(G122,サイズ!$H$3:$I$17,2,1)) -> 
H123: =IF(F123="","",VLOOKUP(F123,サイズ!$E$3:$F$11,2,1)) ->  | K123: =IF(G123="","",VLOOKUP(G123,サイズ!$A$3:$B$19,2)) ->  | Q123: =IF(G123="","",VLOOKUP(G123,サイズ!$H$3:$I$17,2,1)) -> 
H124: =IF(F124="","",VLOOKUP(F124,サイズ!$E$3:$F$11,2,1)) ->  | Q124: =IF(G124="","",VLOOKUP(G124,サイズ!$H$3:$I$17,2,1)) -> 
H125: =IF(F125="","",VLOOKUP(F125,サイズ!$E$3:$F$11,2,1)) ->  | Q125: =IF(G125="","",VLOOKUP(G125,サイズ!$H$3:$I$17,2,1)) -> 
H126: =IF(F126="","",VLOOKUP(F126,サイズ!$E$3:$F$11,2,1)) ->  | Q126: =IF(G126="","",VLOOKUP(G126,サイズ!$H$3:$I$17,2,1)) -> 
H127: =IF(F127="","",VLOOKUP(F127,サイズ!$E$3:$F$11,2,1)) ->  | Q127: =IF(G127="","",VLOOKUP(G127,サイズ!$H$3:$I$17,2,1)) -> 
H128: =IF(F128="","",VLOOKUP(F128,サイズ!$E$3:$F$11,2,1)) ->  | Q128: =IF(G128="","",VLOOKUP(G128,サイズ!$H$3:$I$17,2,1)) -> 
H129: =IF(F129="","",VLOOKUP(F129,サイズ!$E$3:$F$11,2,1)) ->  | Q129: =IF(G129="","",VLOOKUP(G129,サイズ!$H$3:$I$17,2,1)) -> 
H130: =IF(F130="","",VLOOKUP(F130,サイズ!$E$3:$F$11,2,1)) ->  | Q130: =IF(G130="","",VLOOKUP(G130,サイズ!$H$3:$I$17,2,1)) -> 
H131: =IF(F131="","",VLOOKUP(F131,サイズ!$E$3:$F$11,2,1)) ->  | L131: =IF(K131="","",K131) ->  | Q131: =IF(G131="","",VLOOKUP(G131,サイズ!$H$3:$I$17,2,1)) -> 
H132: =IF(F132="","",VLOOKUP(F132,サイズ!$E$3:$F$11,2,1)) ->  | Q132: =IF(G132="","",VLOOKUP(G132,サイズ!$H$3:$I$17,2,1)) -> 
H133: =IF(F133="","",VLOOKUP(F133,サイズ!$E$3:$F$11,2,1)) ->  | Q133: =IF(G133="","",VLOOKUP(G133,サイズ!$H$3:$I$17,2,1)) -> 
H134: =IF(F134="","",VLOOKUP(F134,サイズ!$E$3:$F$11,2,1)) ->  | Q134: =IF(G134="","",VLOOKUP(G134,サイズ!$H$3:$I$17,2,1)) -> 
H135: =IF(F135="","",VLOOKUP(F135,サイズ!$E$3:$F$11,2,1)) ->  | Q135: =IF(G135="","",VLOOKUP(G135,サイズ!$H$3:$I$17,2,1)) -> 
H136: =IF(F136="","",VLOOKUP(F136,サイズ!$E$3:$F$11,2,1)) ->  | Q136: =IF(G136="","",VLOOKUP(G136,サイズ!$H$3:$I$17,2,1)) -> 
H137: =IF(F137="","",VLOOKUP(F137,サイズ!$E$3:$F$11,2,1)) ->  | Q137: =IF(G137="","",VLOOKUP(G137,サイズ!$H$3:$I$17,2,1)) -> 
H138: =IF(F138="","",VLOOKUP(F138,サイズ!$E$3:$F$11,2,1)) ->  | Q138: =IF(G138="","",VLOOKUP(G138,サイズ!$H$3:$I$17,2,1)) -> 
H139: =IF(F139="","",VLOOKUP(F139,サイズ!$E$3:$F$11,2,1)) ->  | Q139: =IF(G139="","",VLOOKUP(G139,サイズ!$H$3:$I$17,2,1)) -> 
H140: =IF(F140="","",VLOOKUP(F140,サイズ!$E$3:$F$11,2,1)) ->  | Q140: =IF(G140="","",VLOOKUP(G140,サイズ!$H$3:$I$17,2,1)) -> 
H141: =IF(F141="","",VLOOKUP(F141,サイズ!$E$3:$F$11,2,1)) ->  | Q141: =IF(G141="","",VLOOKUP(G141,サイズ!$H$3:$I$17,2,1)) -> 
H142: =IF(F142="","",VLOOKUP(F142,サイズ!$E$3:$F$11,2,1)) ->  | Q142: =IF(G142="","",VLOOKUP(G142,サイズ!$H$3:$I$17,2,1)) -> 
H143: =IF(F143="","",VLOOKUP(F143,サイズ!$E$3:$F$11,2,1)) ->  | Q143: =IF(G143="","",VLOOKUP(G143,サイズ!$H$3:$I$17,2,1)) -> 
H144: =IF(F144="","",VLOOKUP(F144,サイズ!$E$3:$F$11,2,1)) ->  | Q144: =IF(G144="","",VLOOKUP(G144,サイズ!$H$3:$I$17,2,1)) -> 
H145: =IF(F145="","",VLOOKUP(F145,サイズ!$E$3:$F$11,2,1)) ->  | Q145: =IF(G145="","",VLOOKUP(G145,サイズ!$H$3:$I$17,2,1)) -> 
H146: =IF(F146="","",VLOOKUP(F146,サイズ!$E$3:$F$11,2,1)) ->  | Q146: =IF(G146="","",VLOOKUP(G146,サイズ!$H$3:$I$17,2,1)) -> 
H147: =IF(F147="","",VLOOKUP(F147,サイズ!$E$3:$F$11,2,1)) ->  | Q147: =IF(G147="","",VLOOKUP(G147,サイズ!$H$3:$I$17,2,1)) -> 
H148: =IF(F148="","",VLOOKUP(F148,サイズ!$E$3:$F$11,2,1)) ->  | Q148: =IF(G148="","",VLOOKUP(G148,サイズ!$H$3:$I$17,2,1)) -> 
H149: =IF(F149="","",VLOOKUP(F149,サイズ!$E$3:$F$11,2,1)) ->  | Q149: =IF(G149="","",VLOOKUP(G149,サイズ!$H$3:$I$17,2,1)) -> 
H150: =IF(F150="","",VLOOKUP(F150,サイズ!$E$3:$F$11,2,1)) ->  | Q150: =IF(G150="","",VLOOKUP(G150,サイズ!$H$3:$I$17,2,1)) -> 
H151: =IF(F151="","",VLOOKUP(F151,サイズ!$E$3:$F$11,2,1)) ->  | Q151: =IF(G151="","",VLOOKUP(G151,サイズ!$H$3:$I$17,2,1)) -> 
H152: =IF(F152="","",VLOOKUP(F152,サイズ!$E$3:$F$11,2,1)) ->  | Q152: =IF(G152="","",VLOOKUP(G152,サイズ!$H$3:$I$17,2,1)) -> 
H153: =IF(F153="","",VLOOKUP(F153,サイズ!$E$3:$F$11,2,1)) ->  | N153: =IF(M153="","",1) ->  | O153: =IF(M153="","",1) ->  | P153: =IF(M153="","",1) ->  | Q153: =IF(G153="","",VLOOKUP(G153,サイズ!$H$3:$I$17,2,1)) -> 
H154: =IF(F154="","",VLOOKUP(F154,サイズ!$E$3:$F$11,2,1)) ->  | Q154: =IF(G154="","",VLOOKUP(G154,サイズ!$H$3:$I$17,2,1)) -> 
H155: =IF(F155="","",VLOOKUP(F155,サイズ!$E$3:$F$11,2,1)) ->  | Q155: =IF(G155="","",VLOOKUP(G155,サイズ!$H$3:$I$17,2,1)) -> 
H156: =IF(F156="","",VLOOKUP(F156,サイズ!$E$3:$F$11,2,1)) ->  | Q156: =IF(G156="","",VLOOKUP(G156,サイズ!$H$3:$I$17,2,1)) -> 
H157: =IF(F157="","",VLOOKUP(F157,サイズ!$E$3:$F$11,2,1)) ->  | Q157: =IF(G157="","",VLOOKUP(G157,サイズ!$H$3:$I$17,2,1)) -> 
H158: =IF(F158="","",VLOOKUP(F158,サイズ!$E$3:$F$11,2,1)) ->  | Q158: =IF(G158="","",VLOOKUP(G158,サイズ!$H$3:$I$17,2,1)) -> 
H159: =IF(F159="","",VLOOKUP(F159,サイズ!$E$3:$F$11,2,1)) ->  | Q159: =IF(G159="","",VLOOKUP(G159,サイズ!$H$3:$I$17,2,1)) -> 
H160: =IF(F160="","",VLOOKUP(F160,サイズ!$E$3:$F$11,2,1)) ->  | Q160: =IF(G160="","",VLOOKUP(G160,サイズ!$H$3:$I$17,2,1)) -> 
H161: =IF(F161="","",VLOOKUP(F161,サイズ!$E$3:$F$11,2,1)) ->  | Q161: =IF(G161="","",VLOOKUP(G161,サイズ!$H$3:$I$17,2,1)) -> 
H162: =IF(F162="","",VLOOKUP(F162,サイズ!$E$3:$F$11,2,1)) ->  | Q162: =IF(G162="","",VLOOKUP(G162,サイズ!$H$3:$I$17,2,1)) -> 
H163: =IF(F163="","",VLOOKUP(F163,サイズ!$E$3:$F$11,2,1)) ->  | Q163: =IF(G163="","",VLOOKUP(G163,サイズ!$H$3:$I$17,2,1)) -> 
H164: =IF(F164="","",VLOOKUP(F164,サイズ!$E$3:$F$11,2,1)) ->  | Q164: =IF(G164="","",VLOOKUP(G164,サイズ!$H$3:$I$17,2,1)) -> 
H165: =IF(F165="","",VLOOKUP(F165,サイズ!$E$3:$F$11,2,1)) ->  | Q165: =IF(G165="","",VLOOKUP(G165,サイズ!$H$3:$I$17,2,1)) -> 
H166: =IF(F166="","",VLOOKUP(F166,サイズ!$E$3:$F$11,2,1)) ->  | Q166: =IF(G166="","",VLOOKUP(G166,サイズ!$H$3:$I$17,2,1)) -> 
H167: =IF(F167="","",VLOOKUP(F167,サイズ!$E$3:$F$11,2,1)) ->  | Q167: =IF(G167="","",VLOOKUP(G167,サイズ!$H$3:$I$17,2,1)) -> 
H168: =IF(F168="","",VLOOKUP(F168,サイズ!$E$3:$F$11,2,1)) ->  | Q168: =IF(G168="","",VLOOKUP(G168,サイズ!$H$3:$I$17,2,1)) -> 
H169: =IF(F169="","",VLOOKUP(F169,サイズ!$E$3:$F$11,2,1)) ->  | Q169: =IF(G169="","",VLOOKUP(G169,サイズ!$H$3:$I$17,2,1)) -> 
H170: =IF(F170="","",VLOOKUP(F170,サイズ!$E$3:$F$11,2,1)) ->  | Q170: =IF(G170="","",VLOOKUP(G170,サイズ!$H$3:$I$17,2,1)) -> 
H171: =IF(F171="","",VLOOKUP(F171,サイズ!$E$3:$F$11,2,1)) ->  | Q171: =IF(G171="","",VLOOKUP(G171,サイズ!$H$3:$I$17,2,1)) -> 
H172: =IF(F172="","",VLOOKUP(F172,サイズ!$E$3:$F$11,2,1)) ->  | Q172: =IF(G172="","",VLOOKUP(G172,サイズ!$H$3:$I$17,2,1)) -> 
H173: =IF(F173="","",VLOOKUP(F173,サイズ!$E$3:$F$11,2,1)) ->  | Q173: =IF(G173="","",VLOOKUP(G173,サイズ!$H$3:$I$17,2,1)) -> 
H174: =IF(F174="","",VLOOKUP(F174,サイズ!$E$3:$F$11,2,1)) ->  | Q174: =IF(G174="","",VLOOKUP(G174,サイズ!$H$3:$I$17,2,1)) -> 
H175: =IF(F175="","",VLOOKUP(F175,サイズ!$E$3:$F$11,2,1)) ->  | Q175: =IF(G175="","",VLOOKUP(G175,サイズ!$H$3:$I$17,2,1)) -> 
H176: =IF(F176="","",VLOOKUP(F176,サイズ!$E$3:$F$11,2,1)) ->  | Q176: =IF(G176="","",VLOOKUP(G176,サイズ!$H$3:$I$17,2,1)) -> 
H177: =IF(F177="","",VLOOKUP(F177,サイズ!$E$3:$F$11,2,1)) ->  | Q177: =IF(G177="","",VLOOKUP(G177,サイズ!$H$3:$I$17,2,1)) -> 
H178: =IF(F178="","",VLOOKUP(F178,サイズ!$E$3:$F$11,2,1)) ->  | Q178: =IF(G178="","",VLOOKUP(G178,サイズ!$H$3:$I$17,2,1)) -> 
H179: =IF(F179="","",VLOOKUP(F179,サイズ!$E$3:$F$11,2,1)) ->  | Q179: =IF(G179="","",VLOOKUP(G179,サイズ!$H$3:$I$17,2,1)) -> 
H180: =IF(F180="","",VLOOKUP(F180,サイズ!$E$3:$F$11,2,1)) ->  | Q180: =IF(G180="","",VLOOKUP(G180,サイズ!$H$3:$I$17,2,1)) -> 
H181: =IF(F181="","",VLOOKUP(F181,サイズ!$E$3:$F$11,2,1)) ->  | Q181: =IF(G181="","",VLOOKUP(G181,サイズ!$H$3:$I$17,2,1)) -> 
H182: =IF(F182="","",VLOOKUP(F182,サイズ!$E$3:$F$11,2,1)) ->  | Q182: =IF(G182="","",VLOOKUP(G182,サイズ!$H$3:$I$17,2,1)) -> 
H183: =IF(F183="","",VLOOKUP(F183,サイズ!$E$3:$F$11,2,1)) ->  | Q183: =IF(G183="","",VLOOKUP(G183,サイズ!$H$3:$I$17,2,1)) -> 
H184: =IF(F184="","",VLOOKUP(F184,サイズ!$E$3:$F$11,2,1)) ->  | Q184: =IF(G184="","",VLOOKUP(G184,サイズ!$H$3:$I$17,2,1)) -> 
H185: =IF(F185="","",VLOOKUP(F185,サイズ!$E$3:$F$11,2,1)) ->  | N185: =IF(M185="","",1) ->  | O185: =IF(M185="","",1) ->  | P185: =IF(M185="","",1) ->  | Q185: =IF(G185="","",VLOOKUP(G185,サイズ!$H$3:$I$17,2,1)) -> 
H186: =IF(F186="","",VLOOKUP(F186,サイズ!$E$3:$F$11,2,1)) ->  | Q186: =IF(G186="","",VLOOKUP(G186,サイズ!$H$3:$I$17,2,1)) -> 
H187: =IF(F187="","",VLOOKUP(F187,サイズ!$E$3:$F$11,2,1)) ->  | Q187: =IF(G187="","",VLOOKUP(G187,サイズ!$H$3:$I$17,2,1)) -> 
H188: =IF(F188="","",VLOOKUP(F188,サイズ!$E$3:$F$11,2,1)) ->  | Q188: =IF(G188="","",VLOOKUP(G188,サイズ!$H$3:$I$17,2,1)) -> 
H189: =IF(F189="","",VLOOKUP(F189,サイズ!$E$3:$F$11,2,1)) ->  | Q189: =IF(G189="","",VLOOKUP(G189,サイズ!$H$3:$I$17,2,1)) -> 
H190: =IF(F190="","",VLOOKUP(F190,サイズ!$E$3:$F$11,2,1)) ->  | Q190: =IF(G190="","",VLOOKUP(G190,サイズ!$H$3:$I$17,2,1)) -> 
H191: =IF(F191="","",VLOOKUP(F191,サイズ!$E$3:$F$11,2,1)) ->  | Q191: =IF(G191="","",VLOOKUP(G191,サイズ!$H$3:$I$17,2,1)) -> 
H192: =IF(F192="","",VLOOKUP(F192,サイズ!$E$3:$F$11,2,1)) ->  | Q192: =IF(G192="","",VLOOKUP(G192,サイズ!$H$3:$I$17,2,1)) -> 
H193: =IF(F193="","",VLOOKUP(F193,サイズ!$E$3:$F$11,2,1)) ->  | Q193: =IF(G193="","",VLOOKUP(G193,サイズ!$H$3:$I$17,2,1)) -> 
H194: =IF(F194="","",VLOOKUP(F194,サイズ!$E$3:$F$11,2,1)) ->  | Q194: =IF(G194="","",VLOOKUP(G194,サイズ!$H$3:$I$17,2,1)) -> 
H195: =IF(F195="","",VLOOKUP(F195,サイズ!$E$3:$F$11,2,1)) ->  | L195: =IF(K195="","",K195) ->  | Q195: =IF(G195="","",VLOOKUP(G195,サイズ!$H$3:$I$17,2,1)) -> 
H196: =IF(F196="","",VLOOKUP(F196,サイズ!$E$3:$F$11,2,1)) ->  | Q196: =IF(G196="","",VLOOKUP(G196,サイズ!$H$3:$I$17,2,1)) -> 
H197: =IF(F197="","",VLOOKUP(F197,サイズ!$E$3:$F$11,2,1)) ->  | Q197: =IF(G197="","",VLOOKUP(G197,サイズ!$H$3:$I$17,2,1)) -> 
H198: =IF(F198="","",VLOOKUP(F198,サイズ!$E$3:$F$11,2,1)) ->  | Q198: =IF(G198="","",VLOOKUP(G198,サイズ!$H$3:$I$17,2,1)) -> 
H199: =IF(F199="","",VLOOKUP(F199,サイズ!$E$3:$F$11,2,1)) ->  | Q199: =IF(G199="","",VLOOKUP(G199,サイズ!$H$3:$I$17,2,1)) -> 
H200: =IF(F200="","",VLOOKUP(F200,サイズ!$E$3:$F$11,2,1)) ->  | Q200: =IF(G200="","",VLOOKUP(G200,サイズ!$H$3:$I$17,2,1)) -> 
... 209 more rows

Sheet 靴ラベル
A1: =入力!$E$1 -> villa中 | B1: =INDEX(入力!$A:$A,D1+2,1) -> 1 | C1: =INDEX(入力!$B:$B,D1+2,1) -> 1 | D1: 1 | F1: =入力!$E$1 -> villa中 | G1: =INDEX(入力!$A:$A,I1+2,1) -> 0 | H1: =INDEX(入力!$B:$B,I1+2,1) -> 0 | I1: =1+D1 -> 2 | K1: =入力!$E$1 -> villa中 | L1: =INDEX(入力!$A:$A,N1+2,1) -> 0 | M1: =INDEX(入力!$B:$B,N1+2,1) -> 0 | N1: =1+I1 -> 3
A2: =INDEX(入力!$E:$E,D1+2,1) -> 磐梯たろう | E2: =INDEX(入力!$Q:$Q,D1+2,1) -> D | F2: =INDEX(入力!$E:$E,I1+2,1) -> 0 | J2: =INDEX(入力!$Q:$Q,I1+2,1) ->  | K2: =INDEX(入力!$E:$E,N1+2,1) -> 0 | O2: =INDEX(入力!$Q:$Q,N1+2,1) -> 
C3: 様 | E3: =INDEX(入力!$G:$G,D1+2,1) -> 24 | H3: 様 | J3: =INDEX(入力!$G:$G,I1+2,1) -> 0 | M3: 様 | O3: =INDEX(入力!$G:$G,N1+2,1) -> 0
A4: =入力!$E$1 -> villa中 | B4: =INDEX(入力!$A:$A,D4+2,1) -> 0 | C4: =INDEX(入力!$B:$B,D4+2,1) -> 0 | D4: =D1+3 -> 4 | F4: =入力!$E$1 -> villa中 | G4: =INDEX(入力!$A:$A,I4+2,1) -> 0 | H4: =INDEX(入力!$B:$B,I4+2,1) -> 0 | I4: =1+D4 -> 5 | K4: =入力!$E$1 -> villa中 | L4: =INDEX(入力!$A:$A,N4+2,1) -> 0 | M4: =INDEX(入力!$B:$B,N4+2,1) -> 0 | N4: =1+I4 -> 6
A5: =INDEX(入力!$E:$E,D4+2,1) -> 0 | E5: =INDEX(入力!$Q:$Q,D4+2,1) ->  | F5: =INDEX(入力!$E:$E,I4+2,1) -> 0 | J5: =INDEX(入力!$Q:$Q,I4+2,1) ->  | K5: =INDEX(入力!$E:$E,N4+2,1) -> 0 | O5: =INDEX(入力!$Q:$Q,N4+2,1) -> 
C6: 様 | E6: =INDEX(入力!$G:$G,D4+2,1) -> 0 | H6: 様 | J6: =INDEX(入力!$G:$G,I4+2,1) -> 0 | M6: 様 | O6: =INDEX(入力!$G:$G,N4+2,1) -> 0
A7: =入力!$E$1 -> villa中 | B7: =INDEX(入力!$A:$A,D7+2,1) -> 0 | C7: =INDEX(入力!$B:$B,D7+2,1) -> 0 | D7: =D4+3 -> 7 | F7: =入力!$E$1 -> villa中 | G7: =INDEX(入力!$A:$A,I7+2,1) -> 0 | H7: =INDEX(入力!$B:$B,I7+2,1) -> 0 | I7: =1+D7 -> 8 | K7: =入力!$E$1 -> villa中 | L7: =INDEX(入力!$A:$A,N7+2,1) -> 0 | M7: =INDEX(入力!$B:$B,N7+2,1) -> 0 | N7: =1+I7 -> 9
A8: =INDEX(入力!$E:$E,D7+2,1) -> 0 | E8: =INDEX(入力!$Q:$Q,D7+2,1) ->  | F8: =INDEX(入力!$E:$E,I7+2,1) -> 0 | J8: =INDEX(入力!$Q:$Q,I7+2,1) ->  | K8: =INDEX(入力!$E:$E,N7+2,1) -> 0 | O8: =INDEX(入力!$Q:$Q,N7+2,1) -> 
C9: 様 | E9: =INDEX(入力!$G:$G,D7+2,1) -> 0 | H9: 様 | J9: =INDEX(入力!$G:$G,I7+2,1) -> 0 | M9: 様 | O9: =INDEX(入力!$G:$G,N7+2,1) -> 0
A10: =入力!$E$1 -> villa中 | B10: =INDEX(入力!$A:$A,D10+2,1) -> 0 | C10: =INDEX(入力!$B:$B,D10+2,1) -> 0 | D10: =D7+3 -> 10 | F10: =入力!$E$1 -> villa中 | G10: =INDEX(入力!$A:$A,I10+2,1) -> 0 | H10: =INDEX(入力!$B:$B,I10+2,1) -> 0 | I10: =1+D10 -> 11 | K10: =入力!$E$1 -> villa中 | L10: =INDEX(入力!$A:$A,N10+2,1) -> 0 | M10: =INDEX(入力!$B:$B,N10+2,1) -> 0 | N10: =1+I10 -> 12
A11: =INDEX(入力!$E:$E,D10+2,1) -> 0 | E11: =INDEX(入力!$Q:$Q,D10+2,1) ->  | F11: =INDEX(入力!$E:$E,I10+2,1) -> 0 | J11: =INDEX(入力!$Q:$Q,I10+2,1) ->  | K11: =INDEX(入力!$E:$E,N10+2,1) -> 0 | O11: =INDEX(入力!$Q:$Q,N10+2,1) -> 
C12: 様 | E12: =INDEX(入力!$G:$G,D10+2,1) -> 0 | H12: 様 | J12: =INDEX(入力!$G:$G,I10+2,1) -> 0 | M12: 様 | O12: =INDEX(入力!$G:$G,N10+2,1) -> 0
A13: =入力!$E$1 -> villa中 | B13: =INDEX(入力!$A:$A,D13+2,1) -> 0 | C13: =INDEX(入力!$B:$B,D13+2,1) -> 0 | D13: =D10+3 -> 13 | F13: =入力!$E$1 -> villa中 | G13: =INDEX(入力!$A:$A,I13+2,1) -> 0 | H13: =INDEX(入力!$B:$B,I13+2,1) -> 0 | I13: =1+D13 -> 14 | K13: =入力!$E$1 -> villa中 | L13: =INDEX(入力!$A:$A,N13+2,1) -> 0 | M13: =INDEX(入力!$B:$B,N13+2,1) -> 0 | N13: =1+I13 -> 15
A14: =INDEX(入力!$E:$E,D13+2,1) -> 0 | E14: =INDEX(入力!$Q:$Q,D13+2,1) ->  | F14: =INDEX(入力!$E:$E,I13+2,1) -> 0 | J14: =INDEX(入力!$Q:$Q,I13+2,1) ->  | K14: =INDEX(入力!$E:$E,N13+2,1) -> 0 | O14: =INDEX(入力!$Q:$Q,N13+2,1) -> 
C15: 様 | E15: =INDEX(入力!$G:$G,D13+2,1) -> 0 | H15: 様 | J15: =INDEX(入力!$G:$G,I13+2,1) -> 0 | M15: 様 | O15: =INDEX(入力!$G:$G,N13+2,1) -> 0
A16: =入力!$E$1 -> villa中 | B16: =INDEX(入力!$A:$A,D16+2,1) -> 0 | C16: =INDEX(入力!$B:$B,D16+2,1) -> 0 | D16: =D13+3 -> 16 | F16: =入力!$E$1 -> villa中 | G16: =INDEX(入力!$A:$A,I16+2,1) -> 0 | H16: =INDEX(入力!$B:$B,I16+2,1) -> 0 | I16: =1+D16 -> 17 | K16: =入力!$E$1 -> villa中 | L16: =INDEX(入力!$A:$A,N16+2,1) -> 0 | M16: =INDEX(入力!$B:$B,N16+2,1) -> 0 | N16: =1+I16 -> 18
A17: =INDEX(入力!$E:$E,D16+2,1) -> 0 | E17: =INDEX(入力!$Q:$Q,D16+2,1) ->  | F17: =INDEX(入力!$E:$E,I16+2,1) -> 0 | J17: =INDEX(入力!$Q:$Q,I16+2,1) ->  | K17: =INDEX(入力!$E:$E,N16+2,1) -> 0 | O17: =INDEX(入力!$Q:$Q,N16+2,1) -> 
C18: 様 | E18: =INDEX(入力!$G:$G,D16+2,1) -> 0 | H18: 様 | J18: =INDEX(入力!$G:$G,I16+2,1) -> 0 | M18: 様 | O18: =INDEX(入力!$G:$G,N16+2,1) -> 0
A19: =入力!$E$1 -> villa中 | B19: =INDEX(入力!$A:$A,D19+2,1) -> 0 | C19: =INDEX(入力!$B:$B,D19+2,1) -> 0 | D19: =D16+3 -> 19 | F19: =入力!$E$1 -> villa中 | G19: =INDEX(入力!$A:$A,I19+2,1) -> 0 | H19: =INDEX(入力!$B:$B,I19+2,1) -> 0 | I19: =1+D19 -> 20 | K19: =入力!$E$1 -> villa中 | L19: =INDEX(入力!$A:$A,N19+2,1) -> 0 | M19: =INDEX(入力!$B:$B,N19+2,1) -> 0 | N19: =1+I19 -> 21
A20: =INDEX(入力!$E:$E,D19+2,1) -> 0 | E20: =INDEX(入力!$Q:$Q,D19+2,1) ->  | F20: =INDEX(入力!$E:$E,I19+2,1) -> 0 | J20: =INDEX(入力!$Q:$Q,I19+2,1) ->  | K20: =INDEX(入力!$E:$E,N19+2,1) -> 0 | O20: =INDEX(入力!$Q:$Q,N19+2,1) -> 
C21: 様 | E21: =INDEX(入力!$G:$G,D19+2,1) -> 0 | H21: 様 | J21: =INDEX(入力!$G:$G,I19+2,1) -> 0 | M21: 様 | O21: =INDEX(入力!$G:$G,N19+2,1) -> 0
A22: =入力!$E$1 -> villa中 | B22: =INDEX(入力!$A:$A,D22+2,1) -> 0 | C22: =INDEX(入力!$B:$B,D22+2,1) -> 0 | D22: =D19+3 -> 22 | F22: =入力!$E$1 -> villa中 | G22: =INDEX(入力!$A:$A,I22+2,1) -> 0 | H22: =INDEX(入力!$B:$B,I22+2,1) -> 0 | I22: =1+D22 -> 23 | K22: =入力!$E$1 -> villa中 | L22: =INDEX(入力!$A:$A,N22+2,1) -> 0 | M22: =INDEX(入力!$B:$B,N22+2,1) -> 0 | N22: =1+I22 -> 24
A23: =INDEX(入力!$E:$E,D22+2,1) -> 0 | E23: =INDEX(入力!$Q:$Q,D22+2,1) ->  | F23: =INDEX(入力!$E:$E,I22+2,1) -> 0 | J23: =INDEX(入力!$Q:$Q,I22+2,1) ->  | K23: =INDEX(入力!$E:$E,N22+2,1) -> 0 | O23: =INDEX(入力!$Q:$Q,N22+2,1) -> 
C24: 様 | E24: =INDEX(入力!$G:$G,D22+2,1) -> 0 | H24: 様 | J24: =INDEX(入力!$G:$G,I22+2,1) -> 0 | M24: 様 | O24: =INDEX(入力!$G:$G,N22+2,1) -> 0
A25: =入力!$E$1 -> villa中 | B25: =INDEX(入力!$A:$A,D25+2,1) -> 0 | C25: =INDEX(入力!$B:$B,D25+2,1) -> 0 | D25: =D22+3 -> 25 | F25: =入力!$E$1 -> villa中 | G25: =INDEX(入力!$A:$A,I25+2,1) -> 0 | H25: =INDEX(入力!$B:$B,I25+2,1) -> 0 | I25: =1+D25 -> 26 | K25: =入力!$E$1 -> villa中 | L25: =INDEX(入力!$A:$A,N25+2,1) -> 0 | M25: =INDEX(入力!$B:$B,N25+2,1) -> 0 | N25: =1+I25 -> 27
A26: =INDEX(入力!$E:$E,D25+2,1) -> 0 | E26: =INDEX(入力!$Q:$Q,D25+2,1) ->  | F26: =INDEX(入力!$E:$E,I25+2,1) -> 0 | J26: =INDEX(入力!$Q:$Q,I25+2,1) ->  | K26: =INDEX(入力!$E:$E,N25+2,1) -> 0 | O26: =INDEX(入力!$Q:$Q,N25+2,1) -> 
C27: 様 | E27: =INDEX(入力!$G:$G,D25+2,1) -> 0 | H27: 様 | J27: =INDEX(入力!$G:$G,I25+2,1) -> 0 | M27: 様 | O27: =INDEX(入力!$G:$G,N25+2,1) -> 0
A28: =入力!$E$1 -> villa中 | B28: =INDEX(入力!$A:$A,D28+2,1) -> 0 | C28: =INDEX(入力!$B:$B,D28+2,1) -> 0 | D28: =D25+3 -> 28 | F28: =入力!$E$1 -> villa中 | G28: =INDEX(入力!$A:$A,I28+2,1) -> 0 | H28: =INDEX(入力!$B:$B,I28+2,1) -> 0 | I28: =1+D28 -> 29 | K28: =入力!$E$1 -> villa中 | L28: =INDEX(入力!$A:$A,N28+2,1) -> 0 | M28: =INDEX(入力!$B:$B,N28+2,1) -> 0 | N28: =1+I28 -> 30
A29: =INDEX(入力!$E:$E,D28+2,1) -> 0 | E29: =INDEX(入力!$Q:$Q,D28+2,1) ->  | F29: =INDEX(入力!$E:$E,I28+2,1) -> 0 | J29: =INDEX(入力!$Q:$Q,I28+2,1) ->  | K29: =INDEX(入力!$E:$E,N28+2,1) -> 0 | O29: =INDEX(入力!$Q:$Q,N28+2,1) -> 
C30: 様 | E30: =INDEX(入力!$G:$G,D28+2,1) -> 0 | H30: 様 | J30: =INDEX(入力!$G:$G,I28+2,1) -> 0 | M30: 様 | O30: =INDEX(入力!$G:$G,N28+2,1) -> 0
A31: =入力!$E$1 -> villa中 | B31: =INDEX(入力!$A:$A,D31+2,1) -> 0 | C31: =INDEX(入力!$B:$B,D31+2,1) -> 0 | D31: =D28+3 -> 31 | F31: =入力!$E$1 -> villa中 | G31: =INDEX(入力!$A:$A,I31+2,1) -> 0 | H31: =INDEX(入力!$B:$B,I31+2,1) -> 0 | I31: =1+D31 -> 32 | K31: =入力!$E$1 -> villa中 | L31: =INDEX(入力!$A:$A,N31+2,1) -> 0 | M31: =INDEX(入力!$B:$B,N31+2,1) -> 0 | N31: =1+I31 -> 33
A32: =INDEX(入力!$E:$E,D31+2,1) -> 0 | E32: =INDEX(入力!$Q:$Q,D31+2,1) ->  | F32: =INDEX(入力!$E:$E,I31+2,1) -> 0 | J32: =INDEX(入力!$Q:$Q,I31+2,1) ->  | K32: =INDEX(入力!$E:$E,N31+2,1) -> 0 | O32: =INDEX(入力!$Q:$Q,N31+2,1) -> 
C33: 様 | E33: =INDEX(入力!$G:$G,D31+2,1) -> 0 | H33: 様 | J33: =INDEX(入力!$G:$G,I31+2,1) -> 0 | M33: 様 | O33: =INDEX(入力!$G:$G,N31+2,1) -> 0
A34: =入力!$E$1 -> villa中 | B34: =INDEX(入力!$A:$A,D34+2,1) -> 0 | C34: =INDEX(入力!$B:$B,D34+2,1) -> 0 | D34: =D31+3 -> 34 | F34: =入力!$E$1 -> villa中 | G34: =INDEX(入力!$A:$A,I34+2,1) -> 0 | H34: =INDEX(入力!$B:$B,I34+2,1) -> 0 | I34: =1+D34 -> 35 | K34: =入力!$E$1 -> villa中 | L34: =INDEX(入力!$A:$A,N34+2,1) -> 0 | M34: =INDEX(入力!$B:$B,N34+2,1) -> 0 | N34: =1+I34 -> 36
A35: =INDEX(入力!$E:$E,D34+2,1) -> 0 | E35: =INDEX(入力!$Q:$Q,D34+2,1) ->  | F35: =INDEX(入力!$E:$E,I34+2,1) -> 0 | J35: =INDEX(入力!$Q:$Q,I34+2,1) ->  | K35: =INDEX(入力!$E:$E,N34+2,1) -> 0 | O35: =INDEX(入力!$Q:$Q,N34+2,1) -> 
C36: 様 | E36: =INDEX(入力!$G:$G,D34+2,1) -> 0 | H36: 様 | J36: =INDEX(入力!$G:$G,I34+2,1) -> 0 | M36: 様 | O36: =INDEX(入力!$G:$G,N34+2,1) -> 0
A37: =入力!$E$1 -> villa中 | B37: =INDEX(入力!$A:$A,D37+2,1) -> 0 | C37: =INDEX(入力!$B:$B,D37+2,1) -> 0 | D37: =D34+3 -> 37 | F37: =入力!$E$1 -> villa中 | G37: =INDEX(入力!$A:$A,I37+2,1) -> 0 | H37: =INDEX(入力!$B:$B,I37+2,1) -> 0 | I37: =1+D37 -> 38 | K37: =入力!$E$1 -> villa中 | L37: =INDEX(入力!$A:$A,N37+2,1) -> 0 | M37: =INDEX(入力!$B:$B,N37+2,1) -> 0 | N37: =1+I37 -> 39
A38: =INDEX(入力!$E:$E,D37+2,1) -> 0 | E38: =INDEX(入力!$Q:$Q,D37+2,1) ->  | F38: =INDEX(入力!$E:$E,I37+2,1) -> 0 | J38: =INDEX(入力!$Q:$Q,I37+2,1) ->  | K38: =INDEX(入力!$E:$E,N37+2,1) -> 0 | O38: =INDEX(入力!$Q:$Q,N37+2,1) -> 
C39: 様 | E39: =INDEX(入力!$G:$G,D37+2,1) -> 0 | H39: 様 | J39: =INDEX(入力!$G:$G,I37+2,1) -> 0 | M39: 様 | O39: =INDEX(入力!$G:$G,N37+2,1) -> 0
A40: =入力!$E$1 -> villa中 | B40: =INDEX(入力!$A:$A,D40+2,1) -> 0 | C40: =INDEX(入力!$B:$B,D40+2,1) -> 0 | D40: =D37+3 -> 40 | F40: =入力!$E$1 -> villa中 | G40: =INDEX(入力!$A:$A,I40+2,1) -> 0 | H40: =INDEX(入力!$B:$B,I40+2,1) -> 0 | I40: =1+D40 -> 41 | K40: =入力!$E$1 -> villa中 | L40: =INDEX(入力!$A:$A,N40+2,1) -> 0 | M40: =INDEX(入力!$B:$B,N40+2,1) -> 0 | N40: =1+I40 -> 42
A41: =INDEX(入力!$E:$E,D40+2,1) -> 0 | E41: =INDEX(入力!$Q:$Q,D40+2,1) ->  | F41: =INDEX(入力!$E:$E,I40+2,1) -> 0 | J41: =INDEX(入力!$Q:$Q,I40+2,1) ->  | K41: =INDEX(入力!$E:$E,N40+2,1) -> 0 | O41: =INDEX(入力!$Q:$Q,N40+2,1) -> 
C42: 様 | E42: =INDEX(入力!$G:$G,D40+2,1) -> 0 | H42: 様 | J42: =INDEX(入力!$G:$G,I40+2,1) -> 0 | M42: 様 | O42: =INDEX(入力!$G:$G,N40+2,1) -> 0
A43: =入力!$E$1 -> villa中 | B43: =INDEX(入力!$A:$A,D43+2,1) -> 0 | C43: =INDEX(入力!$B:$B,D43+2,1) -> 0 | D43: =D40+3 -> 43 | F43: =入力!$E$1 -> villa中 | G43: =INDEX(入力!$A:$A,I43+2,1) -> 0 | H43: =INDEX(入力!$B:$B,I43+2,1) -> 0 | I43: =1+D43 -> 44 | K43: =入力!$E$1 -> villa中 | L43: =INDEX(入力!$A:$A,N43+2,1) -> 0 | M43: =INDEX(入力!$B:$B,N43+2,1) -> 0 | N43: =1+I43 -> 45
A44: =INDEX(入力!$E:$E,D43+2,1) -> 0 | E44: =INDEX(入力!$Q:$Q,D43+2,1) ->  | F44: =INDEX(入力!$E:$E,I43+2,1) -> 0 | J44: =INDEX(入力!$Q:$Q,I43+2,1) ->  | K44: =INDEX(入力!$E:$E,N43+2,1) -> 0 | O44: =INDEX(入力!$Q:$Q,N43+2,1) -> 
C45: 様 | E45: =INDEX(入力!$G:$G,D43+2,1) -> 0 | H45: 様 | J45: =INDEX(入力!$G:$G,I43+2,1) -> 0 | M45: 様 | O45: =INDEX(入力!$G:$G,N43+2,1) -> 0
A46: =入力!$E$1 -> villa中 | B46: =INDEX(入力!$A:$A,D46+2,1) -> 0 | C46: =INDEX(入力!$B:$B,D46+2,1) -> 0 | D46: =D43+3 -> 46 | F46: =入力!$E$1 -> villa中 | G46: =INDEX(入力!$A:$A,I46+2,1) -> 0 | H46: =INDEX(入力!$B:$B,I46+2,1) -> 0 | I46: =1+D46 -> 47 | K46: =入力!$E$1 -> villa中 | L46: =INDEX(入力!$A:$A,N46+2,1) -> 0 | M46: =INDEX(入力!$B:$B,N46+2,1) -> 0 | N46: =1+I46 -> 48
A47: =INDEX(入力!$E:$E,D46+2,1) -> 0 | E47: =INDEX(入力!$Q:$Q,D46+2,1) ->  | F47: =INDEX(入力!$E:$E,I46+2,1) -> 0 | J47: =INDEX(入力!$Q:$Q,I46+2,1) ->  | K47: =INDEX(入力!$E:$E,N46+2,1) -> 0 | O47: =INDEX(入力!$Q:$Q,N46+2,1) -> 
C48: 様 | E48: =INDEX(入力!$G:$G,D46+2,1) -> 0 | H48: 様 | J48: =INDEX(入力!$G:$G,I46+2,1) -> 0 | M48: 様 | O48: =INDEX(入力!$G:$G,N46+2,1) -> 0
A49: =入力!$E$1 -> villa中 | B49: =INDEX(入力!$A:$A,D49+2,1) -> 0 | C49: =INDEX(入力!$B:$B,D49+2,1) -> 0 | D49: =D46+3 -> 49 | F49: =入力!$E$1 -> villa中 | G49: =INDEX(入力!$A:$A,I49+2,1) -> 0 | H49: =INDEX(入力!$B:$B,I49+2,1) -> 0 | I49: =1+D49 -> 50 | K49: =入力!$E$1 -> villa中 | L49: =INDEX(入力!$A:$A,N49+2,1) -> 0 | M49: =INDEX(入力!$B:$B,N49+2,1) -> 0 | N49: =1+I49 -> 51
A50: =INDEX(入力!$E:$E,D49+2,1) -> 0 | E50: =INDEX(入力!$Q:$Q,D49+2,1) ->  | F50: =INDEX(入力!$E:$E,I49+2,1) -> 0 | J50: =INDEX(入力!$Q:$Q,I49+2,1) ->  | K50: =INDEX(入力!$E:$E,N49+2,1) -> 0 | O50: =INDEX(入力!$Q:$Q,N49+2,1) -> 
C51: 様 | E51: =INDEX(入力!$G:$G,D49+2,1) -> 0 | H51: 様 | J51: =INDEX(入力!$G:$G,I49+2,1) -> 0 | M51: 様 | O51: =INDEX(入力!$G:$G,N49+2,1) -> 0
A52: =入力!$E$1 -> villa中 | B52: =INDEX(入力!$A:$A,D52+2,1) -> 0 | C52: =INDEX(入力!$B:$B,D52+2,1) -> 0 | D52: =D49+3 -> 52 | F52: =入力!$E$1 -> villa中 | G52: =INDEX(入力!$A:$A,I52+2,1) -> 0 | H52: =INDEX(入力!$B:$B,I52+2,1) -> 0 | I52: =1+D52 -> 53 | K52: =入力!$E$1 -> villa中 | L52: =INDEX(入力!$A:$A,N52+2,1) -> 0 | M52: =INDEX(入力!$B:$B,N52+2,1) -> 0 | N52: =1+I52 -> 54
A53: =INDEX(入力!$E:$E,D52+2,1) -> 0 | E53: =INDEX(入力!$Q:$Q,D52+2,1) ->  | F53: =INDEX(入力!$E:$E,I52+2,1) -> 0 | J53: =INDEX(入力!$Q:$Q,I52+2,1) ->  | K53: =INDEX(入力!$E:$E,N52+2,1) -> 0 | O53: =INDEX(入力!$Q:$Q,N52+2,1) -> 
C54: 様 | E54: =INDEX(入力!$G:$G,D52+2,1) -> 0 | H54: 様 | J54: =INDEX(入力!$G:$G,I52+2,1) -> 0 | M54: 様 | O54: =INDEX(入力!$G:$G,N52+2,1) -> 0
A55: =入力!$E$1 -> villa中 | B55: =INDEX(入力!$A:$A,D55+2,1) -> 0 | C55: =INDEX(入力!$B:$B,D55+2,1) -> 0 | D55: =D52+3 -> 55 | F55: =入力!$E$1 -> villa中 | G55: =INDEX(入力!$A:$A,I55+2,1) -> 0 | H55: =INDEX(入力!$B:$B,I55+2,1) -> 0 | I55: =1+D55 -> 56 | K55: =入力!$E$1 -> villa中 | L55: =INDEX(入力!$A:$A,N55+2,1) -> 0 | M55: =INDEX(入力!$B:$B,N55+2,1) -> 0 | N55: =1+I55 -> 57
A56: =INDEX(入力!$E:$E,D55+2,1) -> 0 | E56: =INDEX(入力!$Q:$Q,D55+2,1) ->  | F56: =INDEX(入力!$E:$E,I55+2,1) -> 0 | J56: =INDEX(入力!$Q:$Q,I55+2,1) ->  | K56: =INDEX(入力!$E:$E,N55+2,1) -> 0 | O56: =INDEX(入力!$Q:$Q,N55+2,1) -> 
C57: 様 | E57: =INDEX(入力!$G:$G,D55+2,1) -> 0 | H57: 様 | J57: =INDEX(入力!$G:$G,I55+2,1) -> 0 | M57: 様 | O57: =INDEX(入力!$G:$G,N55+2,1) -> 0
A58: =入力!$E$1 -> villa中 | B58: =INDEX(入力!$A:$A,D58+2,1) -> 0 | C58: =INDEX(入力!$B:$B,D58+2,1) -> 0 | D58: =D55+3 -> 58 | F58: =入力!$E$1 -> villa中 | G58: =INDEX(入力!$A:$A,I58+2,1) -> 0 | H58: =INDEX(入力!$B:$B,I58+2,1) -> 0 | I58: =1+D58 -> 59 | K58: =入力!$E$1 -> villa中 | L58: =INDEX(入力!$A:$A,N58+2,1) -> 0 | M58: =INDEX(入力!$B:$B,N58+2,1) -> 0 | N58: =1+I58 -> 60
A59: =INDEX(入力!$E:$E,D58+2,1) -> 0 | E59: =INDEX(入力!$Q:$Q,D58+2,1) ->  | F59: =INDEX(入力!$E:$E,I58+2,1) -> 0 | J59: =INDEX(入力!$Q:$Q,I58+2,1) ->  | K59: =INDEX(入力!$E:$E,N58+2,1) -> 0 | O59: =INDEX(入力!$Q:$Q,N58+2,1) -> 
C60: 様 | E60: =INDEX(入力!$G:$G,D58+2,1) -> 0 | H60: 様 | J60: =INDEX(入力!$G:$G,I58+2,1) -> 0 | M60: 様 | O60: =INDEX(入力!$G:$G,N58+2,1) -> 0
A61: =入力!$E$1 -> villa中 | B61: =INDEX(入力!$A:$A,D61+2,1) -> 0 | C61: =INDEX(入力!$B:$B,D61+2,1) -> 0 | D61: =D58+3 -> 61 | F61: =入力!$E$1 -> villa中 | G61: =INDEX(入力!$A:$A,I61+2,1) -> 0 | H61: =INDEX(入力!$B:$B,I61+2,1) -> 0 | I61: =1+D61 -> 62 | K61: =入力!$E$1 -> villa中 | L61: =INDEX(入力!$A:$A,N61+2,1) -> 0 | M61: =INDEX(入力!$B:$B,N61+2,1) -> 0 | N61: =1+I61 -> 63
A62: =INDEX(入力!$E:$E,D61+2,1) -> 0 | E62: =INDEX(入力!$Q:$Q,D61+2,1) ->  | F62: =INDEX(入力!$E:$E,I61+2,1) -> 0 | J62: =INDEX(入力!$Q:$Q,I61+2,1) ->  | K62: =INDEX(入力!$E:$E,N61+2,1) -> 0 | O62: =INDEX(入力!$Q:$Q,N61+2,1) -> 
C63: 様 | E63: =INDEX(入力!$G:$G,D61+2,1) -> 0 | H63: 様 | J63: =INDEX(入力!$G:$G,I61+2,1) -> 0 | M63: 様 | O63: =INDEX(入力!$G:$G,N61+2,1) -> 0
A64: =入力!$E$1 -> villa中 | B64: =INDEX(入力!$A:$A,D64+2,1) -> 0 | C64: =INDEX(入力!$B:$B,D64+2,1) -> 0 | D64: =D61+3 -> 64 | F64: =入力!$E$1 -> villa中 | G64: =INDEX(入力!$A:$A,I64+2,1) -> 0 | H64: =INDEX(入力!$B:$B,I64+2,1) -> 0 | I64: =1+D64 -> 65 | K64: =入力!$E$1 -> villa中 | L64: =INDEX(入力!$A:$A,N64+2,1) -> 0 | M64: =INDEX(入力!$B:$B,N64+2,1) -> 0 | N64: =1+I64 -> 66
A65: =INDEX(入力!$E:$E,D64+2,1) -> 0 | E65: =INDEX(入力!$Q:$Q,D64+2,1) ->  | F65: =INDEX(入力!$E:$E,I64+2,1) -> 0 | J65: =INDEX(入力!$Q:$Q,I64+2,1) ->  | K65: =INDEX(入力!$E:$E,N64+2,1) -> 0 | O65: =INDEX(入力!$Q:$Q,N64+2,1) -> 
C66: 様 | E66: =INDEX(入力!$G:$G,D64+2,1) -> 0 | H66: 様 | J66: =INDEX(入力!$G:$G,I64+2,1) -> 0 | M66: 様 | O66: =INDEX(入力!$G:$G,N64+2,1) -> 0
A67: =入力!$E$1 -> villa中 | B67: =INDEX(入力!$A:$A,D67+2,1) -> 0 | C67: =INDEX(入力!$B:$B,D67+2,1) -> 0 | D67: =D64+3 -> 67 | F67: =入力!$E$1 -> villa中 | G67: =INDEX(入力!$A:$A,I67+2,1) -> 0 | H67: =INDEX(入力!$B:$B,I67+2,1) -> 0 | I67: =1+D67 -> 68 | K67: =入力!$E$1 -> villa中 | L67: =INDEX(入力!$A:$A,N67+2,1) -> 0 | M67: =INDEX(入力!$B:$B,N67+2,1) -> 0 | N67: =1+I67 -> 69
A68: =INDEX(入力!$E:$E,D67+2,1) -> 0 | E68: =INDEX(入力!$Q:$Q,D67+2,1) ->  | F68: =INDEX(入力!$E:$E,I67+2,1) -> 0 | J68: =INDEX(入力!$Q:$Q,I67+2,1) ->  | K68: =INDEX(入力!$E:$E,N67+2,1) -> 0 | O68: =INDEX(入力!$Q:$Q,N67+2,1) -> 
C69: 様 | E69: =INDEX(入力!$G:$G,D67+2,1) -> 0 | H69: 様 | J69: =INDEX(入力!$G:$G,I67+2,1) -> 0 | M69: 様 | O69: =INDEX(入力!$G:$G,N67+2,1) -> 0
A70: =入力!$E$1 -> villa中 | B70: =INDEX(入力!$A:$A,D70+2,1) -> 0 | C70: =INDEX(入力!$B:$B,D70+2,1) -> 0 | D70: =D67+3 -> 70 | F70: =入力!$E$1 -> villa中 | G70: =INDEX(入力!$A:$A,I70+2,1) -> 0 | H70: =INDEX(入力!$B:$B,I70+2,1) -> 0 | I70: =1+D70 -> 71 | K70: =入力!$E$1 -> villa中 | L70: =INDEX(入力!$A:$A,N70+2,1) -> 0 | M70: =INDEX(入力!$B:$B,N70+2,1) -> 0 | N70: =1+I70 -> 72
A71: =INDEX(入力!$E:$E,D70+2,1) -> 0 | E71: =INDEX(入力!$Q:$Q,D70+2,1) ->  | F71: =INDEX(入力!$E:$E,I70+2,1) -> 0 | J71: =INDEX(入力!$Q:$Q,I70+2,1) ->  | K71: =INDEX(入力!$E:$E,N70+2,1) -> 0 | O71: =INDEX(入力!$Q:$Q,N70+2,1) -> 
C72: 様 | E72: =INDEX(入力!$G:$G,D70+2,1) -> 0 | H72: 様 | J72: =INDEX(入力!$G:$G,I70+2,1) -> 0 | M72: 様 | O72: =INDEX(入力!$G:$G,N70+2,1) -> 0
A73: =入力!$E$1 -> villa中 | B73: =INDEX(入力!$A:$A,D73+2,1) -> 0 | C73: =INDEX(入力!$B:$B,D73+2,1) -> 0 | D73: =D70+3 -> 73 | F73: =入力!$E$1 -> villa中 | G73: =INDEX(入力!$A:$A,I73+2,1) -> 0 | H73: =INDEX(入力!$B:$B,I73+2,1) -> 0 | I73: =1+D73 -> 74 | K73: =入力!$E$1 -> villa中 | L73: =INDEX(入力!$A:$A,N73+2,1) -> 0 | M73: =INDEX(入力!$B:$B,N73+2,1) -> 0 | N73: =1+I73 -> 75
A74: =INDEX(入力!$E:$E,D73+2,1) -> 0 | E74: =INDEX(入力!$Q:$Q,D73+2,1) ->  | F74: =INDEX(入力!$E:$E,I73+2,1) -> 0 | J74: =INDEX(入力!$Q:$Q,I73+2,1) ->  | K74: =INDEX(入力!$E:$E,N73+2,1) -> 0 | O74: =INDEX(入力!$Q:$Q,N73+2,1) -> 
C75: 様 | E75: =INDEX(入力!$G:$G,D73+2,1) -> 0 | H75: 様 | J75: =INDEX(入力!$G:$G,I73+2,1) -> 0 | M75: 様 | O75: =INDEX(入力!$G:$G,N73+2,1) -> 0
A76: =入力!$E$1 -> villa中 | B76: =INDEX(入力!$A:$A,D76+2,1) -> 0 | C76: =INDEX(入力!$B:$B,D76+2,1) -> 0 | D76: =D73+3 -> 76 | F76: =入力!$E$1 -> villa中 | G76: =INDEX(入力!$A:$A,I76+2,1) -> 0 | H76: =INDEX(入力!$B:$B,I76+2,1) -> 0 | I76: =1+D76 -> 77 | K76: =入力!$E$1 -> villa中 | L76: =INDEX(入力!$A:$A,N76+2,1) -> 0 | M76: =INDEX(入力!$B:$B,N76+2,1) -> 0 | N76: =1+I76 -> 78
A77: =INDEX(入力!$E:$E,D76+2,1) -> 0 | E77: =INDEX(入力!$Q:$Q,D76+2,1) ->  | F77: =INDEX(入力!$E:$E,I76+2,1) -> 0 | J77: =INDEX(入力!$Q:$Q,I76+2,1) ->  | K77: =INDEX(入力!$E:$E,N76+2,1) -> 0 | O77: =INDEX(入力!$Q:$Q,N76+2,1) -> 
C78: 様 | E78: =INDEX(入力!$G:$G,D76+2,1) -> 0 | H78: 様 | J78: =INDEX(入力!$G:$G,I76+2,1) -> 0 | M78: 様 | O78: =INDEX(入力!$G:$G,N76+2,1) -> 0
A79: =入力!$E$1 -> villa中 | B79: =INDEX(入力!$A:$A,D79+2,1) -> 0 | C79: =INDEX(入力!$B:$B,D79+2,1) -> 0 | D79: =D76+3 -> 79 | F79: =入力!$E$1 -> villa中 | G79: =INDEX(入力!$A:$A,I79+2,1) -> 0 | H79: =INDEX(入力!$B:$B,I79+2,1) -> 0 | I79: =1+D79 -> 80 | K79: =入力!$E$1 -> villa中 | L79: =INDEX(入力!$A:$A,N79+2,1) -> 0 | M79: =INDEX(入力!$B:$B,N79+2,1) -> 0 | N79: =1+I79 -> 81
A80: =INDEX(入力!$E:$E,D79+2,1) -> 0 | E80: =INDEX(入力!$Q:$Q,D79+2,1) ->  | F80: =INDEX(入力!$E:$E,I79+2,1) -> 0 | J80: =INDEX(入力!$Q:$Q,I79+2,1) ->  | K80: =INDEX(入力!$E:$E,N79+2,1) -> 0 | O80: =INDEX(入力!$Q:$Q,N79+2,1) -> 
C81: 様 | E81: =INDEX(入力!$G:$G,D79+2,1) -> 0 | H81: 様 | J81: =INDEX(入力!$G:$G,I79+2,1) -> 0 | M81: 様 | O81: =INDEX(入力!$G:$G,N79+2,1) -> 0
A82: =入力!$E$1 -> villa中 | B82: =INDEX(入力!$A:$A,D82+2,1) -> 0 | C82: =INDEX(入力!$B:$B,D82+2,1) -> 0 | D82: =D79+3 -> 82 | F82: =入力!$E$1 -> villa中 | G82: =INDEX(入力!$A:$A,I82+2,1) -> 0 | H82: =INDEX(入力!$B:$B,I82+2,1) -> 0 | I82: =1+D82 -> 83 | K82: =入力!$E$1 -> villa中 | L82: =INDEX(入力!$A:$A,N82+2,1) -> 0 | M82: =INDEX(入力!$B:$B,N82+2,1) -> 0 | N82: =1+I82 -> 84
A83: =INDEX(入力!$E:$E,D82+2,1) -> 0 | E83: =INDEX(入力!$Q:$Q,D82+2,1) ->  | F83: =INDEX(入力!$E:$E,I82+2,1) -> 0 | J83: =INDEX(入力!$Q:$Q,I82+2,1) ->  | K83: =INDEX(入力!$E:$E,N82+2,1) -> 0 | O83: =INDEX(入力!$Q:$Q,N82+2,1) -> 
C84: 様 | E84: =INDEX(入力!$G:$G,D82+2,1) -> 0 | H84: 様 | J84: =INDEX(入力!$G:$G,I82+2,1) -> 0 | M84: 様 | O84: =INDEX(入力!$G:$G,N82+2,1) -> 0
A85: =入力!$E$1 -> villa中 | B85: =INDEX(入力!$A:$A,D85+2,1) -> 0 | C85: =INDEX(入力!$B:$B,D85+2,1) -> 0 | D85: =D82+3 -> 85 | F85: =入力!$E$1 -> villa中 | G85: =INDEX(入力!$A:$A,I85+2,1) -> 0 | H85: =INDEX(入力!$B:$B,I85+2,1) -> 0 | I85: =1+D85 -> 86 | K85: =入力!$E$1 -> villa中 | L85: =INDEX(入力!$A:$A,N85+2,1) -> 0 | M85: =INDEX(入力!$B:$B,N85+2,1) -> 0 | N85: =1+I85 -> 87
A86: =INDEX(入力!$E:$E,D85+2,1) -> 0 | E86: =INDEX(入力!$Q:$Q,D85+2,1) ->  | F86: =INDEX(入力!$E:$E,I85+2,1) -> 0 | J86: =INDEX(入力!$Q:$Q,I85+2,1) ->  | K86: =INDEX(入力!$E:$E,N85+2,1) -> 0 | O86: =INDEX(入力!$Q:$Q,N85+2,1) -> 
C87: 様 | E87: =INDEX(入力!$G:$G,D85+2,1) -> 0 | H87: 様 | J87: =INDEX(入力!$G:$G,I85+2,1) -> 0 | M87: 様 | O87: =INDEX(入力!$G:$G,N85+2,1) -> 0
A88: =入力!$E$1 -> villa中 | B88: =INDEX(入力!$A:$A,D88+2,1) -> 0 | C88: =INDEX(入力!$B:$B,D88+2,1) -> 0 | D88: =D85+3 -> 88 | F88: =入力!$E$1 -> villa中 | G88: =INDEX(入力!$A:$A,I88+2,1) -> 0 | H88: =INDEX(入力!$B:$B,I88+2,1) -> 0 | I88: =1+D88 -> 89 | K88: =入力!$E$1 -> villa中 | L88: =INDEX(入力!$A:$A,N88+2,1) -> 0 | M88: =INDEX(入力!$B:$B,N88+2,1) -> 0 | N88: =1+I88 -> 90
A89: =INDEX(入力!$E:$E,D88+2,1) -> 0 | E89: =INDEX(入力!$Q:$Q,D88+2,1) ->  | F89: =INDEX(入力!$E:$E,I88+2,1) -> 0 | J89: =INDEX(入力!$Q:$Q,I88+2,1) ->  | K89: =INDEX(入力!$E:$E,N88+2,1) -> 0 | O89: =INDEX(入力!$Q:$Q,N88+2,1) -> 
C90: 様 | E90: =INDEX(入力!$G:$G,D88+2,1) -> 0 | H90: 様 | J90: =INDEX(入力!$G:$G,I88+2,1) -> 0 | M90: 様 | O90: =INDEX(入力!$G:$G,N88+2,1) -> 0
A91: =入力!$E$1 -> villa中 | B91: =INDEX(入力!$A:$A,D91+2,1) -> 0 | C91: =INDEX(入力!$B:$B,D91+2,1) -> 0 | D91: =D88+3 -> 91 | F91: =入力!$E$1 -> villa中 | G91: =INDEX(入力!$A:$A,I91+2,1) -> 0 | H91: =INDEX(入力!$B:$B,I91+2,1) -> 0 | I91: =1+D91 -> 92 | K91: =入力!$E$1 -> villa中 | L91: =INDEX(入力!$A:$A,N91+2,1) -> 0 | M91: =INDEX(入力!$B:$B,N91+2,1) -> 0 | N91: =1+I91 -> 93
A92: =INDEX(入力!$E:$E,D91+2,1) -> 0 | E92: =INDEX(入力!$Q:$Q,D91+2,1) ->  | F92: =INDEX(入力!$E:$E,I91+2,1) -> 0 | J92: =INDEX(入力!$Q:$Q,I91+2,1) ->  | K92: =INDEX(入力!$E:$E,N91+2,1) -> 0 | O92: =INDEX(入力!$Q:$Q,N91+2,1) -> 
C93: 様 | E93: =INDEX(入力!$G:$G,D91+2,1) -> 0 | H93: 様 | J93: =INDEX(入力!$G:$G,I91+2,1) -> 0 | M93: 様 | O93: =INDEX(入力!$G:$G,N91+2,1) -> 0
A94: =入力!$E$1 -> villa中 | B94: =INDEX(入力!$A:$A,D94+2,1) -> 0 | C94: =INDEX(入力!$B:$B,D94+2,1) -> 0 | D94: =D91+3 -> 94 | F94: =入力!$E$1 -> villa中 | G94: =INDEX(入力!$A:$A,I94+2,1) -> 0 | H94: =INDEX(入力!$B:$B,I94+2,1) -> 0 | I94: =1+D94 -> 95 | K94: =入力!$E$1 -> villa中 | L94: =INDEX(入力!$A:$A,N94+2,1) -> 0 | M94: =INDEX(入力!$B:$B,N94+2,1) -> 0 | N94: =1+I94 -> 96
A95: =INDEX(入力!$E:$E,D94+2,1) -> 0 | E95: =INDEX(入力!$Q:$Q,D94+2,1) ->  | F95: =INDEX(入力!$E:$E,I94+2,1) -> 0 | J95: =INDEX(入力!$Q:$Q,I94+2,1) ->  | K95: =INDEX(入力!$E:$E,N94+2,1) -> 0 | O95: =INDEX(入力!$Q:$Q,N94+2,1) -> 
C96: 様 | E96: =INDEX(入力!$G:$G,D94+2,1) -> 0 | H96: 様 | J96: =INDEX(入力!$G:$G,I94+2,1) -> 0 | M96: 様 | O96: =INDEX(入力!$G:$G,N94+2,1) -> 0
A97: =入力!$E$1 -> villa中 | B97: =INDEX(入力!$A:$A,D97+2,1) -> 0 | C97: =INDEX(入力!$B:$B,D97+2,1) -> 0 | D97: =D94+3 -> 97 | F97: =入力!$E$1 -> villa中 | G97: =INDEX(入力!$A:$A,I97+2,1) -> 0 | H97: =INDEX(入力!$B:$B,I97+2,1) -> 0 | I97: =1+D97 -> 98 | K97: =入力!$E$1 -> villa中 | L97: =INDEX(入力!$A:$A,N97+2,1) -> 0 | M97: =INDEX(入力!$B:$B,N97+2,1) -> 0 | N97: =1+I97 -> 99
A98: =INDEX(入力!$E:$E,D97+2,1) -> 0 | E98: =INDEX(入力!$Q:$Q,D97+2,1) ->  | F98: =INDEX(入力!$E:$E,I97+2,1) -> 0 | J98: =INDEX(入力!$Q:$Q,I97+2,1) ->  | K98: =INDEX(入力!$E:$E,N97+2,1) -> 0 | O98: =INDEX(入力!$Q:$Q,N97+2,1) -> 
C99: 様 | E99: =INDEX(入力!$G:$G,D97+2,1) -> 0 | H99: 様 | J99: =INDEX(入力!$G:$G,I97+2,1) -> 0 | M99: 様 | O99: =INDEX(入力!$G:$G,N97+2,1) -> 0
A100: =入力!$E$1 -> villa中 | B100: =INDEX(入力!$A:$A,D100+2,1) -> 0 | C100: =INDEX(入力!$B:$B,D100+2,1) -> 0 | D100: =D97+3 -> 100 | F100: =入力!$E$1 -> villa中 | G100: =INDEX(入力!$A:$A,I100+2,1) -> 0 | H100: =INDEX(入力!$B:$B,I100+2,1) -> 0 | I100: =1+D100 -> 101 | K100: =入力!$E$1 -> villa中 | L100: =INDEX(入力!$A:$A,N100+2,1) -> 0 | M100: =INDEX(入力!$B:$B,N100+2,1) -> 0 | N100: =1+I100 -> 102
A101: =INDEX(入力!$E:$E,D100+2,1) -> 0 | E101: =INDEX(入力!$Q:$Q,D100+2,1) ->  | F101: =INDEX(入力!$E:$E,I100+2,1) -> 0 | J101: =INDEX(入力!$Q:$Q,I100+2,1) ->  | K101: =INDEX(入力!$E:$E,N100+2,1) -> 0 | O101: =INDEX(入力!$Q:$Q,N100+2,1) -> 
C102: 様 | E102: =INDEX(入力!$G:$G,D100+2,1) -> 0 | H102: 様 | J102: =INDEX(入力!$G:$G,I100+2,1) -> 0 | M102: 様 | O102: =INDEX(入力!$G:$G,N100+2,1) -> 0
A103: =入力!$E$1 -> villa中 | B103: =INDEX(入力!$A:$A,D103+2,1) -> 0 | C103: =INDEX(入力!$B:$B,D103+2,1) -> 0 | D103: =D100+3 -> 103 | F103: =入力!$E$1 -> villa中 | G103: =INDEX(入力!$A:$A,I103+2,1) -> 0 | H103: =INDEX(入力!$B:$B,I103+2,1) -> 0 | I103: =1+D103 -> 104 | K103: =入力!$E$1 -> villa中 | L103: =INDEX(入力!$A:$A,N103+2,1) -> 0 | M103: =INDEX(入力!$B:$B,N103+2,1) -> 0 | N103: =1+I103 -> 105
A104: =INDEX(入力!$E:$E,D103+2,1) -> 0 | E104: =INDEX(入力!$Q:$Q,D103+2,1) ->  | F104: =INDEX(入力!$E:$E,I103+2,1) -> 0 | J104: =INDEX(入力!$Q:$Q,I103+2,1) ->  | K104: =INDEX(入力!$E:$E,N103+2,1) -> 0 | O104: =INDEX(入力!$Q:$Q,N103+2,1) -> 
C105: 様 | E105: =INDEX(入力!$G:$G,D103+2,1) -> 0 | H105: 様 | J105: =INDEX(入力!$G:$G,I103+2,1) -> 0 | M105: 様 | O105: =INDEX(入力!$G:$G,N103+2,1) -> 0
A106: =入力!$E$1 -> villa中 | B106: =INDEX(入力!$A:$A,D106+2,1) -> 0 | C106: =INDEX(入力!$B:$B,D106+2,1) -> 0 | D106: =D103+3 -> 106 | F106: =入力!$E$1 -> villa中 | G106: =INDEX(入力!$A:$A,I106+2,1) -> 0 | H106: =INDEX(入力!$B:$B,I106+2,1) -> 0 | I106: =1+D106 -> 107 | K106: =入力!$E$1 -> villa中 | L106: =INDEX(入力!$A:$A,N106+2,1) -> 0 | M106: =INDEX(入力!$B:$B,N106+2,1) -> 0 | N106: =1+I106 -> 108
A107: =INDEX(入力!$E:$E,D106+2,1) -> 0 | E107: =INDEX(入力!$Q:$Q,D106+2,1) ->  | F107: =INDEX(入力!$E:$E,I106+2,1) -> 0 | J107: =INDEX(入力!$Q:$Q,I106+2,1) ->  | K107: =INDEX(入力!$E:$E,N106+2,1) -> 0 | O107: =INDEX(入力!$Q:$Q,N106+2,1) -> 
C108: 様 | E108: =INDEX(入力!$G:$G,D106+2,1) -> 0 | H108: 様 | J108: =INDEX(入力!$G:$G,I106+2,1) -> 0 | M108: 様 | O108: =INDEX(入力!$G:$G,N106+2,1) -> 0
A109: =入力!$E$1 -> villa中 | B109: =INDEX(入力!$A:$A,D109+2,1) -> 0 | C109: =INDEX(入力!$B:$B,D109+2,1) -> 0 | D109: =D106+3 -> 109 | F109: =入力!$E$1 -> villa中 | G109: =INDEX(入力!$A:$A,I109+2,1) -> 0 | H109: =INDEX(入力!$B:$B,I109+2,1) -> 0 | I109: =1+D109 -> 110 | K109: =入力!$E$1 -> villa中 | L109: =INDEX(入力!$A:$A,N109+2,1) -> 0 | M109: =INDEX(入力!$B:$B,N109+2,1) -> 0 | N109: =1+I109 -> 111
A110: =INDEX(入力!$E:$E,D109+2,1) -> 0 | E110: =INDEX(入力!$Q:$Q,D109+2,1) ->  | F110: =INDEX(入力!$E:$E,I109+2,1) -> 0 | J110: =INDEX(入力!$Q:$Q,I109+2,1) ->  | K110: =INDEX(入力!$E:$E,N109+2,1) -> 0 | O110: =INDEX(入力!$Q:$Q,N109+2,1) -> 
C111: 様 | E111: =INDEX(入力!$G:$G,D109+2,1) -> 0 | H111: 様 | J111: =INDEX(入力!$G:$G,I109+2,1) -> 0 | M111: 様 | O111: =INDEX(入力!$G:$G,N109+2,1) -> 0
A112: =入力!$E$1 -> villa中 | B112: =INDEX(入力!$A:$A,D112+2,1) -> 0 | C112: =INDEX(入力!$B:$B,D112+2,1) -> 0 | D112: =D109+3 -> 112 | F112: =入力!$E$1 -> villa中 | G112: =INDEX(入力!$A:$A,I112+2,1) -> 0 | H112: =INDEX(入力!$B:$B,I112+2,1) -> 0 | I112: =1+D112 -> 113 | K112: =入力!$E$1 -> villa中 | L112: =INDEX(入力!$A:$A,N112+2,1) -> 0 | M112: =INDEX(入力!$B:$B,N112+2,1) -> 0 | N112: =1+I112 -> 114
A113: =INDEX(入力!$E:$E,D112+2,1) -> 0 | E113: =INDEX(入力!$Q:$Q,D112+2,1) ->  | F113: =INDEX(入力!$E:$E,I112+2,1) -> 0 | J113: =INDEX(入力!$Q:$Q,I112+2,1) ->  | K113: =INDEX(入力!$E:$E,N112+2,1) -> 0 | O113: =INDEX(入力!$Q:$Q,N112+2,1) -> 
C114: 様 | E114: =INDEX(入力!$G:$G,D112+2,1) -> 0 | H114: 様 | J114: =INDEX(入力!$G:$G,I112+2,1) -> 0 | M114: 様 | O114: =INDEX(入力!$G:$G,N112+2,1) -> 0
A115: =入力!$E$1 -> villa中 | B115: =INDEX(入力!$A:$A,D115+2,1) -> 0 | C115: =INDEX(入力!$B:$B,D115+2,1) -> 0 | D115: =D112+3 -> 115 | F115: =入力!$E$1 -> villa中 | G115: =INDEX(入力!$A:$A,I115+2,1) -> 0 | H115: =INDEX(入力!$B:$B,I115+2,1) -> 0 | I115: =1+D115 -> 116 | K115: =入力!$E$1 -> villa中 | L115: =INDEX(入力!$A:$A,N115+2,1) -> 0 | M115: =INDEX(入力!$B:$B,N115+2,1) -> 0 | N115: =1+I115 -> 117
A116: =INDEX(入力!$E:$E,D115+2,1) -> 0 | E116: =INDEX(入力!$Q:$Q,D115+2,1) ->  | F116: =INDEX(入力!$E:$E,I115+2,1) -> 0 | J116: =INDEX(入力!$Q:$Q,I115+2,1) ->  | K116: =INDEX(入力!$E:$E,N115+2,1) -> 0 | O116: =INDEX(入力!$Q:$Q,N115+2,1) -> 
C117: 様 | E117: =INDEX(入力!$G:$G,D115+2,1) -> 0 | H117: 様 | J117: =INDEX(入力!$G:$G,I115+2,1) -> 0 | M117: 様 | O117: =INDEX(入力!$G:$G,N115+2,1) -> 0
A118: =入力!$E$1 -> villa中 | B118: =INDEX(入力!$A:$A,D118+2,1) -> 0 | C118: =INDEX(入力!$B:$B,D118+2,1) -> 0 | D118: =D115+3 -> 118 | F118: =入力!$E$1 -> villa中 | G118: =INDEX(入力!$A:$A,I118+2,1) -> 0 | H118: =INDEX(入力!$B:$B,I118+2,1) -> 0 | I118: =1+D118 -> 119 | K118: =入力!$E$1 -> villa中 | L118: =INDEX(入力!$A:$A,N118+2,1) -> 0 | M118: =INDEX(入力!$B:$B,N118+2,1) -> 0 | N118: =1+I118 -> 120
A119: =INDEX(入力!$E:$E,D118+2,1) -> 0 | E119: =INDEX(入力!$Q:$Q,D118+2,1) ->  | F119: =INDEX(入力!$E:$E,I118+2,1) -> 0 | J119: =INDEX(入力!$Q:$Q,I118+2,1) ->  | K119: =INDEX(入力!$E:$E,N118+2,1) -> 0 | O119: =INDEX(入力!$Q:$Q,N118+2,1) -> 
C120: 様 | E120: =INDEX(入力!$G:$G,D118+2,1) -> 0 | H120: 様 | J120: =INDEX(入力!$G:$G,I118+2,1) -> 0 | M120: 様 | O120: =INDEX(入力!$G:$G,N118+2,1) -> 0
A121: =入力!$E$1 -> villa中 | B121: =INDEX(入力!$A:$A,D121+2,1) -> 0 | C121: =INDEX(入力!$B:$B,D121+2,1) -> 0 | D121: =D118+3 -> 121 | F121: =入力!$E$1 -> villa中 | G121: =INDEX(入力!$A:$A,I121+2,1) -> 0 | H121: =INDEX(入力!$B:$B,I121+2,1) -> 0 | I121: =1+D121 -> 122 | K121: =入力!$E$1 -> villa中 | L121: =INDEX(入力!$A:$A,N121+2,1) -> 0 | M121: =INDEX(入力!$B:$B,N121+2,1) -> 0 | N121: =1+I121 -> 123
A122: =INDEX(入力!$E:$E,D121+2,1) -> 0 | E122: =INDEX(入力!$Q:$Q,D121+2,1) ->  | F122: =INDEX(入力!$E:$E,I121+2,1) -> 0 | J122: =INDEX(入力!$Q:$Q,I121+2,1) ->  | K122: =INDEX(入力!$E:$E,N121+2,1) -> 0 | O122: =INDEX(入力!$Q:$Q,N121+2,1) -> 
C123: 様 | E123: =INDEX(入力!$G:$G,D121+2,1) -> 0 | H123: 様 | J123: =INDEX(入力!$G:$G,I121+2,1) -> 0 | M123: 様 | O123: =INDEX(入力!$G:$G,N121+2,1) -> 0
A124: =入力!$E$1 -> villa中 | B124: =INDEX(入力!$A:$A,D124+2,1) -> 0 | C124: =INDEX(入力!$B:$B,D124+2,1) -> 0 | D124: =D121+3 -> 124 | F124: =入力!$E$1 -> villa中 | G124: =INDEX(入力!$A:$A,I124+2,1) -> 0 | H124: =INDEX(入力!$B:$B,I124+2,1) -> 0 | I124: =1+D124 -> 125 | K124: =入力!$E$1 -> villa中 | L124: =INDEX(入力!$A:$A,N124+2,1) -> 0 | M124: =INDEX(入力!$B:$B,N124+2,1) -> 0 | N124: =1+I124 -> 126
A125: =INDEX(入力!$E:$E,D124+2,1) -> 0 | E125: =INDEX(入力!$Q:$Q,D124+2,1) ->  | F125: =INDEX(入力!$E:$E,I124+2,1) -> 0 | J125: =INDEX(入力!$Q:$Q,I124+2,1) ->  | K125: =INDEX(入力!$E:$E,N124+2,1) -> 0 | O125: =INDEX(入力!$Q:$Q,N124+2,1) -> 
C126: 様 | E126: =INDEX(入力!$G:$G,D124+2,1) -> 0 | H126: 様 | J126: =INDEX(入力!$G:$G,I124+2,1) -> 0 | M126: 様 | O126: =INDEX(入力!$G:$G,N124+2,1) -> 0
A127: =入力!$E$1 -> villa中 | B127: =INDEX(入力!$A:$A,D127+2,1) -> 0 | C127: =INDEX(入力!$B:$B,D127+2,1) -> 0 | D127: =D124+3 -> 127 | F127: =入力!$E$1 -> villa中 | G127: =INDEX(入力!$A:$A,I127+2,1) -> 0 | H127: =INDEX(入力!$B:$B,I127+2,1) -> 0 | I127: =1+D127 -> 128 | K127: =入力!$E$1 -> villa中 | L127: =INDEX(入力!$A:$A,N127+2,1) -> 0 | M127: =INDEX(入力!$B:$B,N127+2,1) -> 0 | N127: =1+I127 -> 129
A128: =INDEX(入力!$E:$E,D127+2,1) -> 0 | E128: =INDEX(入力!$Q:$Q,D127+2,1) ->  | F128: =INDEX(入力!$E:$E,I127+2,1) -> 0 | J128: =INDEX(入力!$Q:$Q,I127+2,1) ->  | K128: =INDEX(入力!$E:$E,N127+2,1) -> 0 | O128: =INDEX(入力!$Q:$Q,N127+2,1) -> 
C129: 様 | E129: =INDEX(入力!$G:$G,D127+2,1) -> 0 | H129: 様 | J129: =INDEX(入力!$G:$G,I127+2,1) -> 0 | M129: 様 | O129: =INDEX(入力!$G:$G,N127+2,1) -> 0
A130: =入力!$E$1 -> villa中 | B130: =INDEX(入力!$A:$A,D130+2,1) -> 0 | C130: =INDEX(入力!$B:$B,D130+2,1) -> 0 | D130: =D127+3 -> 130 | F130: =入力!$E$1 -> villa中 | G130: =INDEX(入力!$A:$A,I130+2,1) -> 0 | H130: =INDEX(入力!$B:$B,I130+2,1) -> 0 | I130: =1+D130 -> 131 | K130: =入力!$E$1 -> villa中 | L130: =INDEX(入力!$A:$A,N130+2,1) -> 0 | M130: =INDEX(入力!$B:$B,N130+2,1) -> 0 | N130: =1+I130 -> 132
A131: =INDEX(入力!$E:$E,D130+2,1) -> 0 | E131: =INDEX(入力!$Q:$Q,D130+2,1) ->  | F131: =INDEX(入力!$E:$E,I130+2,1) -> 0 | J131: =INDEX(入力!$Q:$Q,I130+2,1) ->  | K131: =INDEX(入力!$E:$E,N130+2,1) -> 0 | O131: =INDEX(入力!$Q:$Q,N130+2,1) -> 
C132: 様 | E132: =INDEX(入力!$G:$G,D130+2,1) -> 0 | H132: 様 | J132: =INDEX(入力!$G:$G,I130+2,1) -> 0 | M132: 様 | O132: =INDEX(入力!$G:$G,N130+2,1) -> 0
A133: =入力!$E$1 -> villa中 | B133: =INDEX(入力!$A:$A,D133+2,1) -> 0 | C133: =INDEX(入力!$B:$B,D133+2,1) -> 0 | D133: =D130+3 -> 133 | F133: =入力!$E$1 -> villa中 | G133: =INDEX(入力!$A:$A,I133+2,1) -> 0 | H133: =INDEX(入力!$B:$B,I133+2,1) -> 0 | I133: =1+D133 -> 134 | K133: =入力!$E$1 -> villa中 | L133: =INDEX(入力!$A:$A,N133+2,1) -> 0 | M133: =INDEX(入力!$B:$B,N133+2,1) -> 0 | N133: =1+I133 -> 135
A134: =INDEX(入力!$E:$E,D133+2,1) -> 0 | E134: =INDEX(入力!$Q:$Q,D133+2,1) ->  | F134: =INDEX(入力!$E:$E,I133+2,1) -> 0 | J134: =INDEX(入力!$Q:$Q,I133+2,1) ->  | K134: =INDEX(入力!$E:$E,N133+2,1) -> 0 | O134: =INDEX(入力!$Q:$Q,N133+2,1) -> 
C135: 様 | E135: =INDEX(入力!$G:$G,D133+2,1) -> 0 | H135: 様 | J135: =INDEX(入力!$G:$G,I133+2,1) -> 0 | M135: 様 | O135: =INDEX(入力!$G:$G,N133+2,1) -> 0
A136: =入力!$E$1 -> villa中 | B136: =INDEX(入力!$A:$A,D136+2,1) -> 0 | C136: =INDEX(入力!$B:$B,D136+2,1) -> 0 | D136: =D133+3 -> 136 | F136: =入力!$E$1 -> villa中 | G136: =INDEX(入力!$A:$A,I136+2,1) -> 0 | H136: =INDEX(入力!$B:$B,I136+2,1) -> 0 | I136: =1+D136 -> 137 | K136: =入力!$E$1 -> villa中 | L136: =INDEX(入力!$A:$A,N136+2,1) -> 0 | M136: =INDEX(入力!$B:$B,N136+2,1) -> 0 | N136: =1+I136 -> 138
A137: =INDEX(入力!$E:$E,D136+2,1) -> 0 | E137: =INDEX(入力!$Q:$Q,D136+2,1) ->  | F137: =INDEX(入力!$E:$E,I136+2,1) -> 0 | J137: =INDEX(入力!$Q:$Q,I136+2,1) ->  | K137: =INDEX(入力!$E:$E,N136+2,1) -> 0 | O137: =INDEX(入力!$Q:$Q,N136+2,1) -> 
C138: 様 | E138: =INDEX(入力!$G:$G,D136+2,1) -> 0 | H138: 様 | J138: =INDEX(入力!$G:$G,I136+2,1) -> 0 | M138: 様 | O138: =INDEX(入力!$G:$G,N136+2,1) -> 0
A139: =入力!$E$1 -> villa中 | B139: =INDEX(入力!$A:$A,D139+2,1) -> 0 | C139: =INDEX(入力!$B:$B,D139+2,1) -> 0 | D139: =D136+3 -> 139 | F139: =入力!$E$1 -> villa中 | G139: =INDEX(入力!$A:$A,I139+2,1) -> 0 | H139: =INDEX(入力!$B:$B,I139+2,1) -> 0 | I139: =1+D139 -> 140 | K139: =入力!$E$1 -> villa中 | L139: =INDEX(入力!$A:$A,N139+2,1) -> 0 | M139: =INDEX(入力!$B:$B,N139+2,1) -> 0 | N139: =1+I139 -> 141
A140: =INDEX(入力!$E:$E,D139+2,1) -> 0 | E140: =INDEX(入力!$Q:$Q,D139+2,1) ->  | F140: =INDEX(入力!$E:$E,I139+2,1) -> 0 | J140: =INDEX(入力!$Q:$Q,I139+2,1) ->  | K140: =INDEX(入力!$E:$E,N139+2,1) -> 0 | O140: =INDEX(入力!$Q:$Q,N139+2,1) -> 
C141: 様 | E141: =INDEX(入力!$G:$G,D139+2,1) -> 0 | H141: 様 | J141: =INDEX(入力!$G:$G,I139+2,1) -> 0 | M141: 様 | O141: =INDEX(入力!$G:$G,N139+2,1) -> 0
A142: =入力!$E$1 -> villa中 | B142: =INDEX(入力!$A:$A,D142+2,1) -> 0 | C142: =INDEX(入力!$B:$B,D142+2,1) -> 0 | D142: =D139+3 -> 142 | F142: =入力!$E$1 -> villa中 | G142: =INDEX(入力!$A:$A,I142+2,1) -> 0 | H142: =INDEX(入力!$B:$B,I142+2,1) -> 0 | I142: =1+D142 -> 143 | K142: =入力!$E$1 -> villa中 | L142: =INDEX(入力!$A:$A,N142+2,1) -> 0 | M142: =INDEX(入力!$B:$B,N142+2,1) -> 0 | N142: =1+I142 -> 144
A143: =INDEX(入力!$E:$E,D142+2,1) -> 0 | E143: =INDEX(入力!$Q:$Q,D142+2,1) ->  | F143: =INDEX(入力!$E:$E,I142+2,1) -> 0 | J143: =INDEX(入力!$Q:$Q,I142+2,1) ->  | K143: =INDEX(入力!$E:$E,N142+2,1) -> 0 | O143: =INDEX(入力!$Q:$Q,N142+2,1) -> 
C144: 様 | E144: =INDEX(入力!$G:$G,D142+2,1) -> 0 | H144: 様 | J144: =INDEX(入力!$G:$G,I142+2,1) -> 0 | M144: 様 | O144: =INDEX(入力!$G:$G,N142+2,1) -> 0
A145: =入力!$E$1 -> villa中 | B145: =INDEX(入力!$A:$A,D145+2,1) -> 0 | C145: =INDEX(入力!$B:$B,D145+2,1) -> 0 | D145: =D142+3 -> 145 | F145: =入力!$E$1 -> villa中 | G145: =INDEX(入力!$A:$A,I145+2,1) -> 0 | H145: =INDEX(入力!$B:$B,I145+2,1) -> 0 | I145: =1+D145 -> 146 | K145: =入力!$E$1 -> villa中 | L145: =INDEX(入力!$A:$A,N145+2,1) -> 0 | M145: =INDEX(入力!$B:$B,N145+2,1) -> 0 | N145: =1+I145 -> 147
A146: =INDEX(入力!$E:$E,D145+2,1) -> 0 | E146: =INDEX(入力!$Q:$Q,D145+2,1) ->  | F146: =INDEX(入力!$E:$E,I145+2,1) -> 0 | J146: =INDEX(入力!$Q:$Q,I145+2,1) ->  | K146: =INDEX(入力!$E:$E,N145+2,1) -> 0 | O146: =INDEX(入力!$Q:$Q,N145+2,1) -> 
C147: 様 | E147: =INDEX(入力!$G:$G,D145+2,1) -> 0 | H147: 様 | J147: =INDEX(入力!$G:$G,I145+2,1) -> 0 | M147: 様 | O147: =INDEX(入力!$G:$G,N145+2,1) -> 0
A148: =入力!$E$1 -> villa中 | B148: =INDEX(入力!$A:$A,D148+2,1) -> 0 | C148: =INDEX(入力!$B:$B,D148+2,1) -> 0 | D148: =D145+3 -> 148 | F148: =入力!$E$1 -> villa中 | G148: =INDEX(入力!$A:$A,I148+2,1) -> 0 | H148: =INDEX(入力!$B:$B,I148+2,1) -> 0 | I148: =1+D148 -> 149 | K148: =入力!$E$1 -> villa中 | L148: =INDEX(入力!$A:$A,N148+2,1) -> 0 | M148: =INDEX(入力!$B:$B,N148+2,1) -> 0 | N148: =1+I148 -> 150
A149: =INDEX(入力!$E:$E,D148+2,1) -> 0 | E149: =INDEX(入力!$Q:$Q,D148+2,1) ->  | F149: =INDEX(入力!$E:$E,I148+2,1) -> 0 | J149: =INDEX(入力!$Q:$Q,I148+2,1) ->  | K149: =INDEX(入力!$E:$E,N148+2,1) -> 0 | O149: =INDEX(入力!$Q:$Q,N148+2,1) -> 
C150: 様 | E150: =INDEX(入力!$G:$G,D148+2,1) -> 0 | H150: 様 | J150: =INDEX(入力!$G:$G,I148+2,1) -> 0 | M150: 様 | O150: =INDEX(入力!$G:$G,N148+2,1) -> 0
A151: =入力!$E$1 -> villa中 | B151: =INDEX(入力!$A:$A,D151+2,1) -> 0 | C151: =INDEX(入力!$B:$B,D151+2,1) -> 0 | D151: =D148+3 -> 151 | F151: =入力!$E$1 -> villa中 | G151: =INDEX(入力!$A:$A,I151+2,1) -> 0 | H151: =INDEX(入力!$B:$B,I151+2,1) -> 0 | I151: =1+D151 -> 152 | K151: =入力!$E$1 -> villa中 | L151: =INDEX(入力!$A:$A,N151+2,1) -> 0 | M151: =INDEX(入力!$B:$B,N151+2,1) -> 0 | N151: =1+I151 -> 153
A152: =INDEX(入力!$E:$E,D151+2,1) -> 0 | E152: =INDEX(入力!$Q:$Q,D151+2,1) ->  | F152: =INDEX(入力!$E:$E,I151+2,1) -> 0 | J152: =INDEX(入力!$Q:$Q,I151+2,1) ->  | K152: =INDEX(入力!$E:$E,N151+2,1) -> 0 | O152: =INDEX(入力!$Q:$Q,N151+2,1) -> 
C153: 様 | E153: =INDEX(入力!$G:$G,D151+2,1) -> 0 | H153: 様 | J153: =INDEX(入力!$G:$G,I151+2,1) -> 0 | M153: 様 | O153: =INDEX(入力!$G:$G,N151+2,1) -> 0
A154: =入力!$E$1 -> villa中 | B154: =INDEX(入力!$A:$A,D154+2,1) -> 0 | C154: =INDEX(入力!$B:$B,D154+2,1) -> 0 | D154: =D151+3 -> 154 | F154: =入力!$E$1 -> villa中 | G154: =INDEX(入力!$A:$A,I154+2,1) -> 0 | H154: =INDEX(入力!$B:$B,I154+2,1) -> 0 | I154: =1+D154 -> 155 | K154: =入力!$E$1 -> villa中 | L154: =INDEX(入力!$A:$A,N154+2,1) -> 0 | M154: =INDEX(入力!$B:$B,N154+2,1) -> 0 | N154: =1+I154 -> 156
A155: =INDEX(入力!$E:$E,D154+2,1) -> 0 | E155: =INDEX(入力!$Q:$Q,D154+2,1) ->  | F155: =INDEX(入力!$E:$E,I154+2,1) -> 0 | J155: =INDEX(入力!$Q:$Q,I154+2,1) ->  | K155: =INDEX(入力!$E:$E,N154+2,1) -> 0 | O155: =INDEX(入力!$Q:$Q,N154+2,1) -> 
C156: 様 | E156: =INDEX(入力!$G:$G,D154+2,1) -> 0 | H156: 様 | J156: =INDEX(入力!$G:$G,I154+2,1) -> 0 | M156: 様 | O156: =INDEX(入力!$G:$G,N154+2,1) -> 0
A157: =入力!$E$1 -> villa中 | B157: =INDEX(入力!$A:$A,D157+2,1) -> 0 | C157: =INDEX(入力!$B:$B,D157+2,1) -> 0 | D157: =D154+3 -> 157 | F157: =入力!$E$1 -> villa中 | G157: =INDEX(入力!$A:$A,I157+2,1) -> 0 | H157: =INDEX(入力!$B:$B,I157+2,1) -> 0 | I157: =1+D157 -> 158 | K157: =入力!$E$1 -> villa中 | L157: =INDEX(入力!$A:$A,N157+2,1) -> 0 | M157: =INDEX(入力!$B:$B,N157+2,1) -> 0 | N157: =1+I157 -> 159
A158: =INDEX(入力!$E:$E,D157+2,1) -> 0 | E158: =INDEX(入力!$Q:$Q,D157+2,1) ->  | F158: =INDEX(入力!$E:$E,I157+2,1) -> 0 | J158: =INDEX(入力!$Q:$Q,I157+2,1) ->  | K158: =INDEX(入力!$E:$E,N157+2,1) -> 0 | O158: =INDEX(入力!$Q:$Q,N157+2,1) -> 
C159: 様 | E159: =INDEX(入力!$G:$G,D157+2,1) -> 0 | H159: 様 | J159: =INDEX(入力!$G:$G,I157+2,1) -> 0 | M159: 様 | O159: =INDEX(入力!$G:$G,N157+2,1) -> 0
A160: =入力!$E$1 -> villa中 | B160: =INDEX(入力!$A:$A,D160+2,1) -> 0 | C160: =INDEX(入力!$B:$B,D160+2,1) -> 0 | D160: =D157+3 -> 160 | F160: =入力!$E$1 -> villa中 | G160: =INDEX(入力!$A:$A,I160+2,1) -> 0 | H160: =INDEX(入力!$B:$B,I160+2,1) -> 0 | I160: =1+D160 -> 161 | K160: =入力!$E$1 -> villa中 | L160: =INDEX(入力!$A:$A,N160+2,1) -> 0 | M160: =INDEX(入力!$B:$B,N160+2,1) -> 0 | N160: =1+I160 -> 162
A161: =INDEX(入力!$E:$E,D160+2,1) -> 0 | E161: =INDEX(入力!$Q:$Q,D160+2,1) ->  | F161: =INDEX(入力!$E:$E,I160+2,1) -> 0 | J161: =INDEX(入力!$Q:$Q,I160+2,1) ->  | K161: =INDEX(入力!$E:$E,N160+2,1) -> 0 | O161: =INDEX(入力!$Q:$Q,N160+2,1) -> 
C162: 様 | E162: =INDEX(入力!$G:$G,D160+2,1) -> 0 | H162: 様 | J162: =INDEX(入力!$G:$G,I160+2,1) -> 0 | M162: 様 | O162: =INDEX(入力!$G:$G,N160+2,1) -> 0
A163: =入力!$E$1 -> villa中 | B163: =INDEX(入力!$A:$A,D163+2,1) -> 0 | C163: =INDEX(入力!$B:$B,D163+2,1) -> 0 | D163: =D160+3 -> 163 | F163: =入力!$E$1 -> villa中 | G163: =INDEX(入力!$A:$A,I163+2,1) -> 0 | H163: =INDEX(入力!$B:$B,I163+2,1) -> 0 | I163: =1+D163 -> 164 | K163: =入力!$E$1 -> villa中 | L163: =INDEX(入力!$A:$A,N163+2,1) -> 0 | M163: =INDEX(入力!$B:$B,N163+2,1) -> 0 | N163: =1+I163 -> 165
A164: =INDEX(入力!$E:$E,D163+2,1) -> 0 | E164: =INDEX(入力!$Q:$Q,D163+2,1) ->  | F164: =INDEX(入力!$E:$E,I163+2,1) -> 0 | J164: =INDEX(入力!$Q:$Q,I163+2,1) ->  | K164: =INDEX(入力!$E:$E,N163+2,1) -> 0 | O164: =INDEX(入力!$Q:$Q,N163+2,1) -> 
C165: 様 | E165: =INDEX(入力!$G:$G,D163+2,1) -> 0 | H165: 様 | J165: =INDEX(入力!$G:$G,I163+2,1) -> 0 | M165: 様 | O165: =INDEX(入力!$G:$G,N163+2,1) -> 0
A166: =入力!$E$1 -> villa中 | B166: =INDEX(入力!$A:$A,D166+2,1) -> 0 | C166: =INDEX(入力!$B:$B,D166+2,1) -> 0 | D166: =D163+3 -> 166 | F166: =入力!$E$1 -> villa中 | G166: =INDEX(入力!$A:$A,I166+2,1) -> 0 | H166: =INDEX(入力!$B:$B,I166+2,1) -> 0 | I166: =1+D166 -> 167 | K166: =入力!$E$1 -> villa中 | L166: =INDEX(入力!$A:$A,N166+2,1) -> 0 | M166: =INDEX(入力!$B:$B,N166+2,1) -> 0 | N166: =1+I166 -> 168
A167: =INDEX(入力!$E:$E,D166+2,1) -> 0 | E167: =INDEX(入力!$Q:$Q,D166+2,1) ->  | F167: =INDEX(入力!$E:$E,I166+2,1) -> 0 | J167: =INDEX(入力!$Q:$Q,I166+2,1) ->  | K167: =INDEX(入力!$E:$E,N166+2,1) -> 0 | O167: =INDEX(入力!$Q:$Q,N166+2,1) -> 
C168: 様 | E168: =INDEX(入力!$G:$G,D166+2,1) -> 0 | H168: 様 | J168: =INDEX(入力!$G:$G,I166+2,1) -> 0 | M168: 様 | O168: =INDEX(入力!$G:$G,N166+2,1) -> 0
A169: =入力!$E$1 -> villa中 | B169: =INDEX(入力!$A:$A,D169+2,1) -> 0 | C169: =INDEX(入力!$B:$B,D169+2,1) -> 0 | D169: =D166+3 -> 169 | F169: =入力!$E$1 -> villa中 | G169: =INDEX(入力!$A:$A,I169+2,1) -> 0 | H169: =INDEX(入力!$B:$B,I169+2,1) -> 0 | I169: =1+D169 -> 170 | K169: =入力!$E$1 -> villa中 | L169: =INDEX(入力!$A:$A,N169+2,1) -> 0 | M169: =INDEX(入力!$B:$B,N169+2,1) -> 0 | N169: =1+I169 -> 171
A170: =INDEX(入力!$E:$E,D169+2,1) -> 0 | E170: =INDEX(入力!$Q:$Q,D169+2,1) ->  | F170: =INDEX(入力!$E:$E,I169+2,1) -> 0 | J170: =INDEX(入力!$Q:$Q,I169+2,1) ->  | K170: =INDEX(入力!$E:$E,N169+2,1) -> 0 | O170: =INDEX(入力!$Q:$Q,N169+2,1) -> 
C171: 様 | E171: =INDEX(入力!$G:$G,D169+2,1) -> 0 | H171: 様 | J171: =INDEX(入力!$G:$G,I169+2,1) -> 0 | M171: 様 | O171: =INDEX(入力!$G:$G,N169+2,1) -> 0
A172: =入力!$E$1 -> villa中 | B172: =INDEX(入力!$A:$A,D172+2,1) -> 0 | C172: =INDEX(入力!$B:$B,D172+2,1) -> 0 | D172: =D169+3 -> 172 | F172: =入力!$E$1 -> villa中 | G172: =INDEX(入力!$A:$A,I172+2,1) -> 0 | H172: =INDEX(入力!$B:$B,I172+2,1) -> 0 | I172: =1+D172 -> 173 | K172: =入力!$E$1 -> villa中 | L172: =INDEX(入力!$A:$A,N172+2,1) -> 0 | M172: =INDEX(入力!$B:$B,N172+2,1) -> 0 | N172: =1+I172 -> 174
A173: =INDEX(入力!$E:$E,D172+2,1) -> 0 | E173: =INDEX(入力!$Q:$Q,D172+2,1) ->  | F173: =INDEX(入力!$E:$E,I172+2,1) -> 0 | J173: =INDEX(入力!$Q:$Q,I172+2,1) ->  | K173: =INDEX(入力!$E:$E,N172+2,1) -> 0 | O173: =INDEX(入力!$Q:$Q,N172+2,1) -> 
C174: 様 | E174: =INDEX(入力!$G:$G,D172+2,1) -> 0 | H174: 様 | J174: =INDEX(入力!$G:$G,I172+2,1) -> 0 | M174: 様 | O174: =INDEX(入力!$G:$G,N172+2,1) -> 0
A175: =入力!$E$1 -> villa中 | B175: =INDEX(入力!$A:$A,D175+2,1) -> 0 | C175: =INDEX(入力!$B:$B,D175+2,1) -> 0 | D175: =D172+3 -> 175 | F175: =入力!$E$1 -> villa中 | G175: =INDEX(入力!$A:$A,I175+2,1) -> 0 | H175: =INDEX(入力!$B:$B,I175+2,1) -> 0 | I175: =1+D175 -> 176 | K175: =入力!$E$1 -> villa中 | L175: =INDEX(入力!$A:$A,N175+2,1) -> 0 | M175: =INDEX(入力!$B:$B,N175+2,1) -> 0 | N175: =1+I175 -> 177
A176: =INDEX(入力!$E:$E,D175+2,1) -> 0 | E176: =INDEX(入力!$Q:$Q,D175+2,1) ->  | F176: =INDEX(入力!$E:$E,I175+2,1) -> 0 | J176: =INDEX(入力!$Q:$Q,I175+2,1) ->  | K176: =INDEX(入力!$E:$E,N175+2,1) -> 0 | O176: =INDEX(入力!$Q:$Q,N175+2,1) -> 
C177: 様 | E177: =INDEX(入力!$G:$G,D175+2,1) -> 0 | H177: 様 | J177: =INDEX(入力!$G:$G,I175+2,1) -> 0 | M177: 様 | O177: =INDEX(入力!$G:$G,N175+2,1) -> 0
A178: =入力!$E$1 -> villa中 | B178: =INDEX(入力!$A:$A,D178+2,1) -> 0 | C178: =INDEX(入力!$B:$B,D178+2,1) -> 0 | D178: =D175+3 -> 178 | F178: =入力!$E$1 -> villa中 | G178: =INDEX(入力!$A:$A,I178+2,1) -> 0 | H178: =INDEX(入力!$B:$B,I178+2,1) -> 0 | I178: =1+D178 -> 179 | K178: =入力!$E$1 -> villa中 | L178: =INDEX(入力!$A:$A,N178+2,1) -> 0 | M178: =INDEX(入力!$B:$B,N178+2,1) -> 0 | N178: =1+I178 -> 180
A179: =INDEX(入力!$E:$E,D178+2,1) -> 0 | E179: =INDEX(入力!$Q:$Q,D178+2,1) ->  | F179: =INDEX(入力!$E:$E,I178+2,1) -> 0 | J179: =INDEX(入力!$Q:$Q,I178+2,1) ->  | K179: =INDEX(入力!$E:$E,N178+2,1) -> 0 | O179: =INDEX(入力!$Q:$Q,N178+2,1) -> 
C180: 様 | E180: =INDEX(入力!$G:$G,D178+2,1) -> 0 | H180: 様 | J180: =INDEX(入力!$G:$G,I178+2,1) -> 0 | M180: 様 | O180: =INDEX(入力!$G:$G,N178+2,1) -> 0
A181: =入力!$E$1 -> villa中 | B181: =INDEX(入力!$A:$A,D181+2,1) -> 0 | C181: =INDEX(入力!$B:$B,D181+2,1) -> 0 | D181: =D178+3 -> 181 | F181: =入力!$E$1 -> villa中 | G181: =INDEX(入力!$A:$A,I181+2,1) -> 0 | H181: =INDEX(入力!$B:$B,I181+2,1) -> 0 | I181: =1+D181 -> 182 | K181: =入力!$E$1 -> villa中 | L181: =INDEX(入力!$A:$A,N181+2,1) -> 0 | M181: =INDEX(入力!$B:$B,N181+2,1) -> 0 | N181: =1+I181 -> 183
A182: =INDEX(入力!$E:$E,D181+2,1) -> 0 | E182: =INDEX(入力!$Q:$Q,D181+2,1) ->  | F182: =INDEX(入力!$E:$E,I181+2,1) -> 0 | J182: =INDEX(入力!$Q:$Q,I181+2,1) ->  | K182: =INDEX(入力!$E:$E,N181+2,1) -> 0 | O182: =INDEX(入力!$Q:$Q,N181+2,1) -> 
C183: 様 | E183: =INDEX(入力!$G:$G,D181+2,1) -> 0 | H183: 様 | J183: =INDEX(入力!$G:$G,I181+2,1) -> 0 | M183: 様 | O183: =INDEX(入力!$G:$G,N181+2,1) -> 0
A184: =入力!$E$1 -> villa中 | B184: =INDEX(入力!$A:$A,D184+2,1) -> 0 | C184: =INDEX(入力!$B:$B,D184+2,1) -> 0 | D184: =D181+3 -> 184 | F184: =入力!$E$1 -> villa中 | G184: =INDEX(入力!$A:$A,I184+2,1) -> 0 | H184: =INDEX(入力!$B:$B,I184+2,1) -> 0 | I184: =1+D184 -> 185 | K184: =入力!$E$1 -> villa中 | L184: =INDEX(入力!$A:$A,N184+2,1) -> 0 | M184: =INDEX(入力!$B:$B,N184+2,1) -> 0 | N184: =1+I184 -> 186
A185: =INDEX(入力!$E:$E,D184+2,1) -> 0 | E185: =INDEX(入力!$Q:$Q,D184+2,1) ->  | F185: =INDEX(入力!$E:$E,I184+2,1) -> 0 | J185: =INDEX(入力!$Q:$Q,I184+2,1) ->  | K185: =INDEX(入力!$E:$E,N184+2,1) -> 0 | O185: =INDEX(入力!$Q:$Q,N184+2,1) -> 
C186: 様 | E186: =INDEX(入力!$G:$G,D184+2,1) -> 0 | H186: 様 | J186: =INDEX(入力!$G:$G,I184+2,1) -> 0 | M186: 様 | O186: =INDEX(入力!$G:$G,N184+2,1) -> 0
A187: =入力!$E$1 -> villa中 | B187: =INDEX(入力!$A:$A,D187+2,1) -> 0 | C187: =INDEX(入力!$B:$B,D187+2,1) -> 0 | D187: =D184+3 -> 187 | F187: =入力!$E$1 -> villa中 | G187: =INDEX(入力!$A:$A,I187+2,1) -> 0 | H187: =INDEX(入力!$B:$B,I187+2,1) -> 0 | I187: =1+D187 -> 188 | K187: =入力!$E$1 -> villa中 | L187: =INDEX(入力!$A:$A,N187+2,1) -> 0 | M187: =INDEX(入力!$B:$B,N187+2,1) -> 0 | N187: =1+I187 -> 189
A188: =INDEX(入力!$E:$E,D187+2,1) -> 0 | E188: =INDEX(入力!$Q:$Q,D187+2,1) ->  | F188: =INDEX(入力!$E:$E,I187+2,1) -> 0 | J188: =INDEX(入力!$Q:$Q,I187+2,1) ->  | K188: =INDEX(入力!$E:$E,N187+2,1) -> 0 | O188: =INDEX(入力!$Q:$Q,N187+2,1) -> 
C189: 様 | E189: =INDEX(入力!$G:$G,D187+2,1) -> 0 | H189: 様 | J189: =INDEX(入力!$G:$G,I187+2,1) -> 0 | M189: 様 | O189: =INDEX(入力!$G:$G,N187+2,1) -> 0
A190: =入力!$E$1 -> villa中 | B190: =INDEX(入力!$A:$A,D190+2,1) -> 0 | C190: =INDEX(入力!$B:$B,D190+2,1) -> 0 | D190: =D187+3 -> 190 | F190: =入力!$E$1 -> villa中 | G190: =INDEX(入力!$A:$A,I190+2,1) -> 0 | H190: =INDEX(入力!$B:$B,I190+2,1) -> 0 | I190: =1+D190 -> 191 | K190: =入力!$E$1 -> villa中 | L190: =INDEX(入力!$A:$A,N190+2,1) -> 0 | M190: =INDEX(入力!$B:$B,N190+2,1) -> 0 | N190: =1+I190 -> 192
A191: =INDEX(入力!$E:$E,D190+2,1) -> 0 | E191: =INDEX(入力!$Q:$Q,D190+2,1) ->  | F191: =INDEX(入力!$E:$E,I190+2,1) -> 0 | J191: =INDEX(入力!$Q:$Q,I190+2,1) ->  | K191: =INDEX(入力!$E:$E,N190+2,1) -> 0 | O191: =INDEX(入力!$Q:$Q,N190+2,1) -> 
C192: 様 | E192: =INDEX(入力!$G:$G,D190+2,1) -> 0 | H192: 様 | J192: =INDEX(入力!$G:$G,I190+2,1) -> 0 | M192: 様 | O192: =INDEX(入力!$G:$G,N190+2,1) -> 0
A193: =入力!$E$1 -> villa中 | B193: =INDEX(入力!$A:$A,D193+2,1) -> 0 | C193: =INDEX(入力!$B:$B,D193+2,1) -> 0 | D193: =D190+3 -> 193 | F193: =入力!$E$1 -> villa中 | G193: =INDEX(入力!$A:$A,I193+2,1) -> 0 | H193: =INDEX(入力!$B:$B,I193+2,1) -> 0 | I193: =1+D193 -> 194 | K193: =入力!$E$1 -> villa中 | L193: =INDEX(入力!$A:$A,N193+2,1) -> 0 | M193: =INDEX(入力!$B:$B,N193+2,1) -> 0 | N193: =1+I193 -> 195
A194: =INDEX(入力!$E:$E,D193+2,1) -> 0 | E194: =INDEX(入力!$Q:$Q,D193+2,1) ->  | F194: =INDEX(入力!$E:$E,I193+2,1) -> 0 | J194: =INDEX(入力!$Q:$Q,I193+2,1) ->  | K194: =INDEX(入力!$E:$E,N193+2,1) -> 0 | O194: =INDEX(入力!$Q:$Q,N193+2,1) -> 
C195: 様 | E195: =INDEX(入力!$G:$G,D193+2,1) -> 0 | H195: 様 | J195: =INDEX(入力!$G:$G,I193+2,1) -> 0 | M195: 様 | O195: =INDEX(入力!$G:$G,N193+2,1) -> 0
A196: =入力!$E$1 -> villa中 | B196: =INDEX(入力!$A:$A,D196+2,1) -> 0 | C196: =INDEX(入力!$B:$B,D196+2,1) -> 0 | D196: =D193+3 -> 196 | F196: =入力!$E$1 -> villa中 | G196: =INDEX(入力!$A:$A,I196+2,1) -> 0 | H196: =INDEX(入力!$B:$B,I196+2,1) -> 0 | I196: =1+D196 -> 197 | K196: =入力!$E$1 -> villa中 | L196: =INDEX(入力!$A:$A,N196+2,1) -> 0 | M196: =INDEX(入力!$B:$B,N196+2,1) -> 0 | N196: =1+I196 -> 198
A197: =INDEX(入力!$E:$E,D196+2,1) -> 0 | E197: =INDEX(入力!$Q:$Q,D196+2,1) ->  | F197: =INDEX(入力!$E:$E,I196+2,1) -> 0 | J197: =INDEX(入力!$Q:$Q,I196+2,1) ->  | K197: =INDEX(入力!$E:$E,N196+2,1) -> 0 | O197: =INDEX(入力!$Q:$Q,N196+2,1) -> 
C198: 様 | E198: =INDEX(入力!$G:$G,D196+2,1) -> 0 | H198: 様 | J198: =INDEX(入力!$G:$G,I196+2,1) -> 0 | M198: 様 | O198: =INDEX(入力!$G:$G,N196+2,1) -> 0
A199: =入力!$E$1 -> villa中 | B199: =INDEX(入力!$A:$A,D199+2,1) -> 0 | C199: =INDEX(入力!$B:$B,D199+2,1) -> 0 | D199: =D196+3 -> 199 | F199: =入力!$E$1 -> villa中 | G199: =INDEX(入力!$A:$A,I199+2,1) -> 0 | H199: =INDEX(入力!$B:$B,I199+2,1) -> 0 | I199: =1+D199 -> 200 | K199: =入力!$E$1 -> villa中 | L199: =INDEX(入力!$A:$A,N199+2,1) -> 0 | M199: =INDEX(入力!$B:$B,N199+2,1) -> 0 | N199: =1+I199 -> 201
A200: =INDEX(入力!$E:$E,D199+2,1) -> 0 | E200: =INDEX(入力!$Q:$Q,D199+2,1) ->  | F200: =INDEX(入力!$E:$E,I199+2,1) -> 0 | J200: =INDEX(入力!$Q:$Q,I199+2,1) ->  | K200: =INDEX(入力!$E:$E,N199+2,1) -> 0 | O200: =INDEX(入力!$Q:$Q,N199+2,1) -> 
... 184 more rows

Sheet ウェアラベル
A1: =入力!$E$1 -> villa中 | B1: =INDEX(入力!$A:$A,D1+2,1) -> 1 | C1: =INDEX(入力!$B:$B,D1+2,1) -> 1 | D1: 1 | E1: =INDEX(入力!$C:$C,D1+2,1) -> 620 | F1: =入力!$E$1 -> villa中 | G1: =INDEX(入力!$A:$A,I1+2,1) -> 0 | H1: =INDEX(入力!$B:$B,I1+2,1) -> 0 | I1: =1+D1 -> 2 | J1: =INDEX(入力!$C:$C,I1+2,1) -> 0 | K1: =入力!$E$1 -> villa中 | L1: =INDEX(入力!$A:$A,N1+2,1) -> 0 | M1: =INDEX(入力!$B:$B,N1+2,1) -> 0 | N1: =1+I1 -> 3 | O1: =INDEX(入力!$C:$C,N1+2,1) -> 0
A2: =INDEX(入力!$E:$E,D1+2,1) -> 磐梯たろう | E2: =INDEX(入力!$H:$H,D1+2,1) -> L | F2: =INDEX(入力!$E:$E,I1+2,1) -> 0 | J2: =INDEX(入力!$H:$H,I1+2,1) ->  | K2: =INDEX(入力!$E:$E,N1+2,1) -> 0 | O2: =INDEX(入力!$H:$H,N1+2,1) -> 
C3: 様 | E3: =INDEX(入力!$F:$F,D1+2,1) -> 165 | H3: 様 | J3: =INDEX(入力!$F:$F,I1+2,1) -> 0 | M3: 様 | O3: =INDEX(入力!$F:$F,N1+2,1) -> 0
A4: =入力!$E$1 -> villa中 | B4: =INDEX(入力!$A:$A,D4+2,1) -> 0 | C4: =INDEX(入力!$B:$B,D4+2,1) -> 0 | D4: =D1+3 -> 4 | E4: =INDEX(入力!$C:$C,D4+2,1) -> 0 | F4: =入力!$E$1 -> villa中 | G4: =INDEX(入力!$A:$A,I4+2,1) -> 0 | H4: =INDEX(入力!$B:$B,I4+2,1) -> 0 | I4: =1+D4 -> 5 | J4: =INDEX(入力!$C:$C,I4+2,1) -> 0 | K4: =入力!$E$1 -> villa中 | L4: =INDEX(入力!$A:$A,N4+2,1) -> 0 | M4: =INDEX(入力!$B:$B,N4+2,1) -> 0 | N4: =1+I4 -> 6 | O4: =INDEX(入力!$C:$C,N4+2,1) -> 0
A5: =INDEX(入力!$E:$E,D4+2,1) -> 0 | E5: =INDEX(入力!$H:$H,D4+2,1) ->  | F5: =INDEX(入力!$E:$E,I4+2,1) -> 0 | J5: =INDEX(入力!$H:$H,I4+2,1) ->  | K5: =INDEX(入力!$E:$E,N4+2,1) -> 0 | O5: =INDEX(入力!$H:$H,N4+2,1) -> 
C6: 様 | E6: =INDEX(入力!$F:$F,D4+2,1) -> 0 | H6: 様 | J6: =INDEX(入力!$F:$F,I4+2,1) -> 0 | M6: 様 | O6: =INDEX(入力!$F:$F,N4+2,1) -> 0
A7: =入力!$E$1 -> villa中 | B7: =INDEX(入力!$A:$A,D7+2,1) -> 0 | C7: =INDEX(入力!$B:$B,D7+2,1) -> 0 | D7: =D4+3 -> 7 | E7: =INDEX(入力!$C:$C,D7+2,1) -> 0 | F7: =入力!$E$1 -> villa中 | G7: =INDEX(入力!$A:$A,I7+2,1) -> 0 | H7: =INDEX(入力!$B:$B,I7+2,1) -> 0 | I7: =1+D7 -> 8 | J7: =INDEX(入力!$C:$C,I7+2,1) -> 0 | K7: =入力!$E$1 -> villa中 | L7: =INDEX(入力!$A:$A,N7+2,1) -> 0 | M7: =INDEX(入力!$B:$B,N7+2,1) -> 0 | N7: =1+I7 -> 9 | O7: =INDEX(入力!$C:$C,N7+2,1) -> 0
A8: =INDEX(入力!$E:$E,D7+2,1) -> 0 | E8: =INDEX(入力!$H:$H,D7+2,1) ->  | F8: =INDEX(入力!$E:$E,I7+2,1) -> 0 | J8: =INDEX(入力!$H:$H,I7+2,1) ->  | K8: =INDEX(入力!$E:$E,N7+2,1) -> 0 | O8: =INDEX(入力!$H:$H,N7+2,1) -> 
C9: 様 | E9: =INDEX(入力!$F:$F,D7+2,1) -> 0 | H9: 様 | J9: =INDEX(入力!$F:$F,I7+2,1) -> 0 | M9: 様 | O9: =INDEX(入力!$F:$F,N7+2,1) -> 0
A10: =入力!$E$1 -> villa中 | B10: =INDEX(入力!$A:$A,D10+2,1) -> 0 | C10: =INDEX(入力!$B:$B,D10+2,1) -> 0 | D10: =D7+3 -> 10 | E10: =INDEX(入力!$C:$C,D10+2,1) -> 0 | F10: =入力!$E$1 -> villa中 | G10: =INDEX(入力!$A:$A,I10+2,1) -> 0 | H10: =INDEX(入力!$B:$B,I10+2,1) -> 0 | I10: =1+D10 -> 11 | J10: =INDEX(入力!$C:$C,I10+2,1) -> 0 | K10: =入力!$E$1 -> villa中 | L10: =INDEX(入力!$A:$A,N10+2,1) -> 0 | M10: =INDEX(入力!$B:$B,N10+2,1) -> 0 | N10: =1+I10 -> 12 | O10: =INDEX(入力!$C:$C,N10+2,1) -> 0
A11: =INDEX(入力!$E:$E,D10+2,1) -> 0 | E11: =INDEX(入力!$H:$H,D10+2,1) ->  | F11: =INDEX(入力!$E:$E,I10+2,1) -> 0 | J11: =INDEX(入力!$H:$H,I10+2,1) ->  | K11: =INDEX(入力!$E:$E,N10+2,1) -> 0 | O11: =INDEX(入力!$H:$H,N10+2,1) -> 
C12: 様 | E12: =INDEX(入力!$F:$F,D10+2,1) -> 0 | H12: 様 | J12: =INDEX(入力!$F:$F,I10+2,1) -> 0 | M12: 様 | O12: =INDEX(入力!$F:$F,N10+2,1) -> 0
A13: =入力!$E$1 -> villa中 | B13: =INDEX(入力!$A:$A,D13+2,1) -> 0 | C13: =INDEX(入力!$B:$B,D13+2,1) -> 0 | D13: =D10+3 -> 13 | E13: =INDEX(入力!$C:$C,D13+2,1) -> 0 | F13: =入力!$E$1 -> villa中 | G13: =INDEX(入力!$A:$A,I13+2,1) -> 0 | H13: =INDEX(入力!$B:$B,I13+2,1) -> 0 | I13: =1+D13 -> 14 | J13: =INDEX(入力!$C:$C,I13+2,1) -> 0 | K13: =入力!$E$1 -> villa中 | L13: =INDEX(入力!$A:$A,N13+2,1) -> 0 | M13: =INDEX(入力!$B:$B,N13+2,1) -> 0 | N13: =1+I13 -> 15 | O13: =INDEX(入力!$C:$C,N13+2,1) -> 0
A14: =INDEX(入力!$E:$E,D13+2,1) -> 0 | E14: =INDEX(入力!$H:$H,D13+2,1) ->  | F14: =INDEX(入力!$E:$E,I13+2,1) -> 0 | J14: =INDEX(入力!$H:$H,I13+2,1) ->  | K14: =INDEX(入力!$E:$E,N13+2,1) -> 0 | O14: =INDEX(入力!$H:$H,N13+2,1) -> 
C15: 様 | E15: =INDEX(入力!$F:$F,D13+2,1) -> 0 | H15: 様 | J15: =INDEX(入力!$F:$F,I13+2,1) -> 0 | M15: 様 | O15: =INDEX(入力!$F:$F,N13+2,1) -> 0
A16: =入力!$E$1 -> villa中 | B16: =INDEX(入力!$A:$A,D16+2,1) -> 0 | C16: =INDEX(入力!$B:$B,D16+2,1) -> 0 | D16: =D13+3 -> 16 | E16: =INDEX(入力!$C:$C,D16+2,1) -> 0 | F16: =入力!$E$1 -> villa中 | G16: =INDEX(入力!$A:$A,I16+2,1) -> 0 | H16: =INDEX(入力!$B:$B,I16+2,1) -> 0 | I16: =1+D16 -> 17 | J16: =INDEX(入力!$C:$C,I16+2,1) -> 0 | K16: =入力!$E$1 -> villa中 | L16: =INDEX(入力!$A:$A,N16+2,1) -> 0 | M16: =INDEX(入力!$B:$B,N16+2,1) -> 0 | N16: =1+I16 -> 18 | O16: =INDEX(入力!$C:$C,N16+2,1) -> 0
A17: =INDEX(入力!$E:$E,D16+2,1) -> 0 | E17: =INDEX(入力!$H:$H,D16+2,1) ->  | F17: =INDEX(入力!$E:$E,I16+2,1) -> 0 | J17: =INDEX(入力!$H:$H,I16+2,1) ->  | K17: =INDEX(入力!$E:$E,N16+2,1) -> 0 | O17: =INDEX(入力!$H:$H,N16+2,1) -> 
C18: 様 | E18: =INDEX(入力!$F:$F,D16+2,1) -> 0 | H18: 様 | J18: =INDEX(入力!$F:$F,I16+2,1) -> 0 | M18: 様 | O18: =INDEX(入力!$F:$F,N16+2,1) -> 0
A19: =入力!$E$1 -> villa中 | B19: =INDEX(入力!$A:$A,D19+2,1) -> 0 | C19: =INDEX(入力!$B:$B,D19+2,1) -> 0 | D19: =D16+3 -> 19 | E19: =INDEX(入力!$C:$C,D19+2,1) -> 0 | F19: =入力!$E$1 -> villa中 | G19: =INDEX(入力!$A:$A,I19+2,1) -> 0 | H19: =INDEX(入力!$B:$B,I19+2,1) -> 0 | I19: =1+D19 -> 20 | J19: =INDEX(入力!$C:$C,I19+2,1) -> 0 | K19: =入力!$E$1 -> villa中 | L19: =INDEX(入力!$A:$A,N19+2,1) -> 0 | M19: =INDEX(入力!$B:$B,N19+2,1) -> 0 | N19: =1+I19 -> 21 | O19: =INDEX(入力!$C:$C,N19+2,1) -> 0
A20: =INDEX(入力!$E:$E,D19+2,1) -> 0 | E20: =INDEX(入力!$H:$H,D19+2,1) ->  | F20: =INDEX(入力!$E:$E,I19+2,1) -> 0 | J20: =INDEX(入力!$H:$H,I19+2,1) ->  | K20: =INDEX(入力!$E:$E,N19+2,1) -> 0 | O20: =INDEX(入力!$H:$H,N19+2,1) -> 
C21: 様 | E21: =INDEX(入力!$F:$F,D19+2,1) -> 0 | H21: 様 | J21: =INDEX(入力!$F:$F,I19+2,1) -> 0 | M21: 様 | O21: =INDEX(入力!$F:$F,N19+2,1) -> 0
A22: =入力!$E$1 -> villa中 | B22: =INDEX(入力!$A:$A,D22+2,1) -> 0 | C22: =INDEX(入力!$B:$B,D22+2,1) -> 0 | D22: =D19+3 -> 22 | E22: =INDEX(入力!$C:$C,D22+2,1) -> 0 | F22: =入力!$E$1 -> villa中 | G22: =INDEX(入力!$A:$A,I22+2,1) -> 0 | H22: =INDEX(入力!$B:$B,I22+2,1) -> 0 | I22: =1+D22 -> 23 | J22: =INDEX(入力!$C:$C,I22+2,1) -> 0 | K22: =入力!$E$1 -> villa中 | L22: =INDEX(入力!$A:$A,N22+2,1) -> 0 | M22: =INDEX(入力!$B:$B,N22+2,1) -> 0 | N22: =1+I22 -> 24 | O22: =INDEX(入力!$C:$C,N22+2,1) -> 0
A23: =INDEX(入力!$E:$E,D22+2,1) -> 0 | E23: =INDEX(入力!$H:$H,D22+2,1) ->  | F23: =INDEX(入力!$E:$E,I22+2,1) -> 0 | J23: =INDEX(入力!$H:$H,I22+2,1) ->  | K23: =INDEX(入力!$E:$E,N22+2,1) -> 0 | O23: =INDEX(入力!$H:$H,N22+2,1) -> 
C24: 様 | E24: =INDEX(入力!$F:$F,D22+2,1) -> 0 | H24: 様 | J24: =INDEX(入力!$F:$F,I22+2,1) -> 0 | M24: 様 | O24: =INDEX(入力!$F:$F,N22+2,1) -> 0
A25: =入力!$E$1 -> villa中 | B25: =INDEX(入力!$A:$A,D25+2,1) -> 0 | C25: =INDEX(入力!$B:$B,D25+2,1) -> 0 | D25: =D22+3 -> 25 | E25: =INDEX(入力!$C:$C,D25+2,1) -> 0 | F25: =入力!$E$1 -> villa中 | G25: =INDEX(入力!$A:$A,I25+2,1) -> 0 | H25: =INDEX(入力!$B:$B,I25+2,1) -> 0 | I25: =1+D25 -> 26 | J25: =INDEX(入力!$C:$C,I25+2,1) -> 0 | K25: =入力!$E$1 -> villa中 | L25: =INDEX(入力!$A:$A,N25+2,1) -> 0 | M25: =INDEX(入力!$B:$B,N25+2,1) -> 0 | N25: =1+I25 -> 27 | O25: =INDEX(入力!$C:$C,N25+2,1) -> 0
A26: =INDEX(入力!$E:$E,D25+2,1) -> 0 | E26: =INDEX(入力!$H:$H,D25+2,1) ->  | F26: =INDEX(入力!$E:$E,I25+2,1) -> 0 | J26: =INDEX(入力!$H:$H,I25+2,1) ->  | K26: =INDEX(入力!$E:$E,N25+2,1) -> 0 | O26: =INDEX(入力!$H:$H,N25+2,1) -> 
C27: 様 | E27: =INDEX(入力!$F:$F,D25+2,1) -> 0 | H27: 様 | J27: =INDEX(入力!$F:$F,I25+2,1) -> 0 | M27: 様 | O27: =INDEX(入力!$F:$F,N25+2,1) -> 0
A28: =入力!$E$1 -> villa中 | B28: =INDEX(入力!$A:$A,D28+2,1) -> 0 | C28: =INDEX(入力!$B:$B,D28+2,1) -> 0 | D28: =D25+3 -> 28 | E28: =INDEX(入力!$C:$C,D28+2,1) -> 0 | F28: =入力!$E$1 -> villa中 | G28: =INDEX(入力!$A:$A,I28+2,1) -> 0 | H28: =INDEX(入力!$B:$B,I28+2,1) -> 0 | I28: =1+D28 -> 29 | J28: =INDEX(入力!$C:$C,I28+2,1) -> 0 | K28: =入力!$E$1 -> villa中 | L28: =INDEX(入力!$A:$A,N28+2,1) -> 0 | M28: =INDEX(入力!$B:$B,N28+2,1) -> 0 | N28: =1+I28 -> 30 | O28: =INDEX(入力!$C:$C,N28+2,1) -> 0
A29: =INDEX(入力!$E:$E,D28+2,1) -> 0 | E29: =INDEX(入力!$H:$H,D28+2,1) ->  | F29: =INDEX(入力!$E:$E,I28+2,1) -> 0 | J29: =INDEX(入力!$H:$H,I28+2,1) ->  | K29: =INDEX(入力!$E:$E,N28+2,1) -> 0 | O29: =INDEX(入力!$H:$H,N28+2,1) -> 
C30: 様 | E30: =INDEX(入力!$F:$F,D28+2,1) -> 0 | H30: 様 | J30: =INDEX(入力!$F:$F,I28+2,1) -> 0 | M30: 様 | O30: =INDEX(入力!$F:$F,N28+2,1) -> 0
A31: =入力!$E$1 -> villa中 | B31: =INDEX(入力!$A:$A,D31+2,1) -> 0 | C31: =INDEX(入力!$B:$B,D31+2,1) -> 0 | D31: =D28+3 -> 31 | E31: =INDEX(入力!$C:$C,D31+2,1) -> 0 | F31: =入力!$E$1 -> villa中 | G31: =INDEX(入力!$A:$A,I31+2,1) -> 0 | H31: =INDEX(入力!$B:$B,I31+2,1) -> 0 | I31: =1+D31 -> 32 | J31: =INDEX(入力!$C:$C,I31+2,1) -> 0 | K31: =入力!$E$1 -> villa中 | L31: =INDEX(入力!$A:$A,N31+2,1) -> 0 | M31: =INDEX(入力!$B:$B,N31+2,1) -> 0 | N31: =1+I31 -> 33 | O31: =INDEX(入力!$C:$C,N31+2,1) -> 0
A32: =INDEX(入力!$E:$E,D31+2,1) -> 0 | E32: =INDEX(入力!$H:$H,D31+2,1) ->  | F32: =INDEX(入力!$E:$E,I31+2,1) -> 0 | J32: =INDEX(入力!$H:$H,I31+2,1) ->  | K32: =INDEX(入力!$E:$E,N31+2,1) -> 0 | O32: =INDEX(入力!$H:$H,N31+2,1) -> 
C33: 様 | E33: =INDEX(入力!$F:$F,D31+2,1) -> 0 | H33: 様 | J33: =INDEX(入力!$F:$F,I31+2,1) -> 0 | M33: 様 | O33: =INDEX(入力!$F:$F,N31+2,1) -> 0
A34: =入力!$E$1 -> villa中 | B34: =INDEX(入力!$A:$A,D34+2,1) -> 0 | C34: =INDEX(入力!$B:$B,D34+2,1) -> 0 | D34: =D31+3 -> 34 | E34: =INDEX(入力!$C:$C,D34+2,1) -> 0 | F34: =入力!$E$1 -> villa中 | G34: =INDEX(入力!$A:$A,I34+2,1) -> 0 | H34: =INDEX(入力!$B:$B,I34+2,1) -> 0 | I34: =1+D34 -> 35 | J34: =INDEX(入力!$C:$C,I34+2,1) -> 0 | K34: =入力!$E$1 -> villa中 | L34: =INDEX(入力!$A:$A,N34+2,1) -> 0 | M34: =INDEX(入力!$B:$B,N34+2,1) -> 0 | N34: =1+I34 -> 36 | O34: =INDEX(入力!$C:$C,N34+2,1) -> 0
A35: =INDEX(入力!$E:$E,D34+2,1) -> 0 | E35: =INDEX(入力!$H:$H,D34+2,1) ->  | F35: =INDEX(入力!$E:$E,I34+2,1) -> 0 | J35: =INDEX(入力!$H:$H,I34+2,1) ->  | K35: =INDEX(入力!$E:$E,N34+2,1) -> 0 | O35: =INDEX(入力!$H:$H,N34+2,1) -> 
C36: 様 | E36: =INDEX(入力!$F:$F,D34+2,1) -> 0 | H36: 様 | J36: =INDEX(入力!$F:$F,I34+2,1) -> 0 | M36: 様 | O36: =INDEX(入力!$F:$F,N34+2,1) -> 0
A37: =入力!$E$1 -> villa中 | B37: =INDEX(入力!$A:$A,D37+2,1) -> 0 | C37: =INDEX(入力!$B:$B,D37+2,1) -> 0 | D37: =D34+3 -> 37 | E37: =INDEX(入力!$C:$C,D37+2,1) -> 0 | F37: =入力!$E$1 -> villa中 | G37: =INDEX(入力!$A:$A,I37+2,1) -> 0 | H37: =INDEX(入力!$B:$B,I37+2,1) -> 0 | I37: =1+D37 -> 38 | J37: =INDEX(入力!$C:$C,I37+2,1) -> 0 | K37: =入力!$E$1 -> villa中 | L37: =INDEX(入力!$A:$A,N37+2,1) -> 0 | M37: =INDEX(入力!$B:$B,N37+2,1) -> 0 | N37: =1+I37 -> 39 | O37: =INDEX(入力!$C:$C,N37+2,1) -> 0
A38: =INDEX(入力!$E:$E,D37+2,1) -> 0 | E38: =INDEX(入力!$H:$H,D37+2,1) ->  | F38: =INDEX(入力!$E:$E,I37+2,1) -> 0 | J38: =INDEX(入力!$H:$H,I37+2,1) ->  | K38: =INDEX(入力!$E:$E,N37+2,1) -> 0 | O38: =INDEX(入力!$H:$H,N37+2,1) -> 
C39: 様 | E39: =INDEX(入力!$F:$F,D37+2,1) -> 0 | H39: 様 | J39: =INDEX(入力!$F:$F,I37+2,1) -> 0 | M39: 様 | O39: =INDEX(入力!$F:$F,N37+2,1) -> 0
A40: =入力!$E$1 -> villa中 | B40: =INDEX(入力!$A:$A,D40+2,1) -> 0 | C40: =INDEX(入力!$B:$B,D40+2,1) -> 0 | D40: =D37+3 -> 40 | E40: =INDEX(入力!$C:$C,D40+2,1) -> 0 | F40: =入力!$E$1 -> villa中 | G40: =INDEX(入力!$A:$A,I40+2,1) -> 0 | H40: =INDEX(入力!$B:$B,I40+2,1) -> 0 | I40: =1+D40 -> 41 | J40: =INDEX(入力!$C:$C,I40+2,1) -> 0 | K40: =入力!$E$1 -> villa中 | L40: =INDEX(入力!$A:$A,N40+2,1) -> 0 | M40: =INDEX(入力!$B:$B,N40+2,1) -> 0 | N40: =1+I40 -> 42 | O40: =INDEX(入力!$C:$C,N40+2,1) -> 0
A41: =INDEX(入力!$E:$E,D40+2,1) -> 0 | E41: =INDEX(入力!$H:$H,D40+2,1) ->  | F41: =INDEX(入力!$E:$E,I40+2,1) -> 0 | J41: =INDEX(入力!$H:$H,I40+2,1) ->  | K41: =INDEX(入力!$E:$E,N40+2,1) -> 0 | O41: =INDEX(入力!$H:$H,N40+2,1) -> 
C42: 様 | E42: =INDEX(入力!$F:$F,D40+2,1) -> 0 | H42: 様 | J42: =INDEX(入力!$F:$F,I40+2,1) -> 0 | M42: 様 | O42: =INDEX(入力!$F:$F,N40+2,1) -> 0
A43: =入力!$E$1 -> villa中 | B43: =INDEX(入力!$A:$A,D43+2,1) -> 0 | C43: =INDEX(入力!$B:$B,D43+2,1) -> 0 | D43: =D40+3 -> 43 | E43: =INDEX(入力!$C:$C,D43+2,1) -> 0 | F43: =入力!$E$1 -> villa中 | G43: =INDEX(入力!$A:$A,I43+2,1) -> 0 | H43: =INDEX(入力!$B:$B,I43+2,1) -> 0 | I43: =1+D43 -> 44 | J43: =INDEX(入力!$C:$C,I43+2,1) -> 0 | K43: =入力!$E$1 -> villa中 | L43: =INDEX(入力!$A:$A,N43+2,1) -> 0 | M43: =INDEX(入力!$B:$B,N43+2,1) -> 0 | N43: =1+I43 -> 45 | O43: =INDEX(入力!$C:$C,N43+2,1) -> 0
A44: =INDEX(入力!$E:$E,D43+2,1) -> 0 | E44: =INDEX(入力!$H:$H,D43+2,1) ->  | F44: =INDEX(入力!$E:$E,I43+2,1) -> 0 | J44: =INDEX(入力!$H:$H,I43+2,1) ->  | K44: =INDEX(入力!$E:$E,N43+2,1) -> 0 | O44: =INDEX(入力!$H:$H,N43+2,1) -> 
C45: 様 | E45: =INDEX(入力!$F:$F,D43+2,1) -> 0 | H45: 様 | J45: =INDEX(入力!$F:$F,I43+2,1) -> 0 | M45: 様 | O45: =INDEX(入力!$F:$F,N43+2,1) -> 0
A46: =入力!$E$1 -> villa中 | B46: =INDEX(入力!$A:$A,D46+2,1) -> 0 | C46: =INDEX(入力!$B:$B,D46+2,1) -> 0 | D46: =D43+3 -> 46 | E46: =INDEX(入力!$C:$C,D46+2,1) -> 0 | F46: =入力!$E$1 -> villa中 | G46: =INDEX(入力!$A:$A,I46+2,1) -> 0 | H46: =INDEX(入力!$B:$B,I46+2,1) -> 0 | I46: =1+D46 -> 47 | J46: =INDEX(入力!$C:$C,I46+2,1) -> 0 | K46: =入力!$E$1 -> villa中 | L46: =INDEX(入力!$A:$A,N46+2,1) -> 0 | M46: =INDEX(入力!$B:$B,N46+2,1) -> 0 | N46: =1+I46 -> 48 | O46: =INDEX(入力!$C:$C,N46+2,1) -> 0
A47: =INDEX(入力!$E:$E,D46+2,1) -> 0 | E47: =INDEX(入力!$H:$H,D46+2,1) ->  | F47: =INDEX(入力!$E:$E,I46+2,1) -> 0 | J47: =INDEX(入力!$H:$H,I46+2,1) ->  | K47: =INDEX(入力!$E:$E,N46+2,1) -> 0 | O47: =INDEX(入力!$H:$H,N46+2,1) -> 
C48: 様 | E48: =INDEX(入力!$F:$F,D46+2,1) -> 0 | H48: 様 | J48: =INDEX(入力!$F:$F,I46+2,1) -> 0 | M48: 様 | O48: =INDEX(入力!$F:$F,N46+2,1) -> 0
A49: =入力!$E$1 -> villa中 | B49: =INDEX(入力!$A:$A,D49+2,1) -> 0 | C49: =INDEX(入力!$B:$B,D49+2,1) -> 0 | D49: =D46+3 -> 49 | E49: =INDEX(入力!$C:$C,D49+2,1) -> 0 | F49: =入力!$E$1 -> villa中 | G49: =INDEX(入力!$A:$A,I49+2,1) -> 0 | H49: =INDEX(入力!$B:$B,I49+2,1) -> 0 | I49: =1+D49 -> 50 | J49: =INDEX(入力!$C:$C,I49+2,1) -> 0 | K49: =入力!$E$1 -> villa中 | L49: =INDEX(入力!$A:$A,N49+2,1) -> 0 | M49: =INDEX(入力!$B:$B,N49+2,1) -> 0 | N49: =1+I49 -> 51 | O49: =INDEX(入力!$C:$C,N49+2,1) -> 0
A50: =INDEX(入力!$E:$E,D49+2,1) -> 0 | E50: =INDEX(入力!$H:$H,D49+2,1) ->  | F50: =INDEX(入力!$E:$E,I49+2,1) -> 0 | J50: =INDEX(入力!$H:$H,I49+2,1) ->  | K50: =INDEX(入力!$E:$E,N49+2,1) -> 0 | O50: =INDEX(入力!$H:$H,N49+2,1) -> 
C51: 様 | E51: =INDEX(入力!$F:$F,D49+2,1) -> 0 | H51: 様 | J51: =INDEX(入力!$F:$F,I49+2,1) -> 0 | M51: 様 | O51: =INDEX(入力!$F:$F,N49+2,1) -> 0
A52: =入力!$E$1 -> villa中 | B52: =INDEX(入力!$A:$A,D52+2,1) -> 0 | C52: =INDEX(入力!$B:$B,D52+2,1) -> 0 | D52: =D49+3 -> 52 | E52: =INDEX(入力!$C:$C,D52+2,1) -> 0 | F52: =入力!$E$1 -> villa中 | G52: =INDEX(入力!$A:$A,I52+2,1) -> 0 | H52: =INDEX(入力!$B:$B,I52+2,1) -> 0 | I52: =1+D52 -> 53 | J52: =INDEX(入力!$C:$C,I52+2,1) -> 0 | K52: =入力!$E$1 -> villa中 | L52: =INDEX(入力!$A:$A,N52+2,1) -> 0 | M52: =INDEX(入力!$B:$B,N52+2,1) -> 0 | N52: =1+I52 -> 54 | O52: =INDEX(入力!$C:$C,N52+2,1) -> 0
A53: =INDEX(入力!$E:$E,D52+2,1) -> 0 | E53: =INDEX(入力!$H:$H,D52+2,1) ->  | F53: =INDEX(入力!$E:$E,I52+2,1) -> 0 | J53: =INDEX(入力!$H:$H,I52+2,1) ->  | K53: =INDEX(入力!$E:$E,N52+2,1) -> 0 | O53: =INDEX(入力!$H:$H,N52+2,1) -> 
C54: 様 | E54: =INDEX(入力!$F:$F,D52+2,1) -> 0 | H54: 様 | J54: =INDEX(入力!$F:$F,I52+2,1) -> 0 | M54: 様 | O54: =INDEX(入力!$F:$F,N52+2,1) -> 0
A55: =入力!$E$1 -> villa中 | B55: =INDEX(入力!$A:$A,D55+2,1) -> 0 | C55: =INDEX(入力!$B:$B,D55+2,1) -> 0 | D55: =D52+3 -> 55 | E55: =INDEX(入力!$C:$C,D55+2,1) -> 0 | F55: =入力!$E$1 -> villa中 | G55: =INDEX(入力!$A:$A,I55+2,1) -> 0 | H55: =INDEX(入力!$B:$B,I55+2,1) -> 0 | I55: =1+D55 -> 56 | J55: =INDEX(入力!$C:$C,I55+2,1) -> 0 | K55: =入力!$E$1 -> villa中 | L55: =INDEX(入力!$A:$A,N55+2,1) -> 0 | M55: =INDEX(入力!$B:$B,N55+2,1) -> 0 | N55: =1+I55 -> 57 | O55: =INDEX(入力!$C:$C,N55+2,1) -> 0
A56: =INDEX(入力!$E:$E,D55+2,1) -> 0 | E56: =INDEX(入力!$H:$H,D55+2,1) ->  | F56: =INDEX(入力!$E:$E,I55+2,1) -> 0 | J56: =INDEX(入力!$H:$H,I55+2,1) ->  | K56: =INDEX(入力!$E:$E,N55+2,1) -> 0 | O56: =INDEX(入力!$H:$H,N55+2,1) -> 
C57: 様 | E57: =INDEX(入力!$F:$F,D55+2,1) -> 0 | H57: 様 | J57: =INDEX(入力!$F:$F,I55+2,1) -> 0 | M57: 様 | O57: =INDEX(入力!$F:$F,N55+2,1) -> 0
A58: =入力!$E$1 -> villa中 | B58: =INDEX(入力!$A:$A,D58+2,1) -> 0 | C58: =INDEX(入力!$B:$B,D58+2,1) -> 0 | D58: =D55+3 -> 58 | E58: =INDEX(入力!$C:$C,D58+2,1) -> 0 | F58: =入力!$E$1 -> villa中 | G58: =INDEX(入力!$A:$A,I58+2,1) -> 0 | H58: =INDEX(入力!$B:$B,I58+2,1) -> 0 | I58: =1+D58 -> 59 | J58: =INDEX(入力!$C:$C,I58+2,1) -> 0 | K58: =入力!$E$1 -> villa中 | L58: =INDEX(入力!$A:$A,N58+2,1) -> 0 | M58: =INDEX(入力!$B:$B,N58+2,1) -> 0 | N58: =1+I58 -> 60 | O58: =INDEX(入力!$C:$C,N58+2,1) -> 0
A59: =INDEX(入力!$E:$E,D58+2,1) -> 0 | E59: =INDEX(入力!$H:$H,D58+2,1) ->  | F59: =INDEX(入力!$E:$E,I58+2,1) -> 0 | J59: =INDEX(入力!$H:$H,I58+2,1) ->  | K59: =INDEX(入力!$E:$E,N58+2,1) -> 0 | O59: =INDEX(入力!$H:$H,N58+2,1) -> 
C60: 様 | E60: =INDEX(入力!$F:$F,D58+2,1) -> 0 | H60: 様 | J60: =INDEX(入力!$F:$F,I58+2,1) -> 0 | M60: 様 | O60: =INDEX(入力!$F:$F,N58+2,1) -> 0
A61: =入力!$E$1 -> villa中 | B61: =INDEX(入力!$A:$A,D61+2,1) -> 0 | C61: =INDEX(入力!$B:$B,D61+2,1) -> 0 | D61: =D58+3 -> 61 | E61: =INDEX(入力!$C:$C,D61+2,1) -> 0 | F61: =入力!$E$1 -> villa中 | G61: =INDEX(入力!$A:$A,I61+2,1) -> 0 | H61: =INDEX(入力!$B:$B,I61+2,1) -> 0 | I61: =1+D61 -> 62 | J61: =INDEX(入力!$C:$C,I61+2,1) -> 0 | K61: =入力!$E$1 -> villa中 | L61: =INDEX(入力!$A:$A,N61+2,1) -> 0 | M61: =INDEX(入力!$B:$B,N61+2,1) -> 0 | N61: =1+I61 -> 63 | O61: =INDEX(入力!$C:$C,N61+2,1) -> 0
A62: =INDEX(入力!$E:$E,D61+2,1) -> 0 | E62: =INDEX(入力!$H:$H,D61+2,1) ->  | F62: =INDEX(入力!$E:$E,I61+2,1) -> 0 | J62: =INDEX(入力!$H:$H,I61+2,1) ->  | K62: =INDEX(入力!$E:$E,N61+2,1) -> 0 | O62: =INDEX(入力!$H:$H,N61+2,1) -> 
C63: 様 | E63: =INDEX(入力!$F:$F,D61+2,1) -> 0 | H63: 様 | J63: =INDEX(入力!$F:$F,I61+2,1) -> 0 | M63: 様 | O63: =INDEX(入力!$F:$F,N61+2,1) -> 0
A64: =入力!$E$1 -> villa中 | B64: =INDEX(入力!$A:$A,D64+2,1) -> 0 | C64: =INDEX(入力!$B:$B,D64+2,1) -> 0 | D64: =D61+3 -> 64 | E64: =INDEX(入力!$C:$C,D64+2,1) -> 0 | F64: =入力!$E$1 -> villa中 | G64: =INDEX(入力!$A:$A,I64+2,1) -> 0 | H64: =INDEX(入力!$B:$B,I64+2,1) -> 0 | I64: =1+D64 -> 65 | J64: =INDEX(入力!$C:$C,I64+2,1) -> 0 | K64: =入力!$E$1 -> villa中 | L64: =INDEX(入力!$A:$A,N64+2,1) -> 0 | M64: =INDEX(入力!$B:$B,N64+2,1) -> 0 | N64: =1+I64 -> 66 | O64: =INDEX(入力!$C:$C,N64+2,1) -> 0
A65: =INDEX(入力!$E:$E,D64+2,1) -> 0 | E65: =INDEX(入力!$H:$H,D64+2,1) ->  | F65: =INDEX(入力!$E:$E,I64+2,1) -> 0 | J65: =INDEX(入力!$H:$H,I64+2,1) ->  | K65: =INDEX(入力!$E:$E,N64+2,1) -> 0 | O65: =INDEX(入力!$H:$H,N64+2,1) -> 
C66: 様 | E66: =INDEX(入力!$F:$F,D64+2,1) -> 0 | H66: 様 | J66: =INDEX(入力!$F:$F,I64+2,1) -> 0 | M66: 様 | O66: =INDEX(入力!$F:$F,N64+2,1) -> 0
A67: =入力!$E$1 -> villa中 | B67: =INDEX(入力!$A:$A,D67+2,1) -> 0 | C67: =INDEX(入力!$B:$B,D67+2,1) -> 0 | D67: =D64+3 -> 67 | E67: =INDEX(入力!$C:$C,D67+2,1) -> 0 | F67: =入力!$E$1 -> villa中 | G67: =INDEX(入力!$A:$A,I67+2,1) -> 0 | H67: =INDEX(入力!$B:$B,I67+2,1) -> 0 | I67: =1+D67 -> 68 | J67: =INDEX(入力!$C:$C,I67+2,1) -> 0 | K67: =入力!$E$1 -> villa中 | L67: =INDEX(入力!$A:$A,N67+2,1) -> 0 | M67: =INDEX(入力!$B:$B,N67+2,1) -> 0 | N67: =1+I67 -> 69 | O67: =INDEX(入力!$C:$C,N67+2,1) -> 0
A68: =INDEX(入力!$E:$E,D67+2,1) -> 0 | E68: =INDEX(入力!$H:$H,D67+2,1) ->  | F68: =INDEX(入力!$E:$E,I67+2,1) -> 0 | J68: =INDEX(入力!$H:$H,I67+2,1) ->  | K68: =INDEX(入力!$E:$E,N67+2,1) -> 0 | O68: =INDEX(入力!$H:$H,N67+2,1) -> 
C69: 様 | E69: =INDEX(入力!$F:$F,D67+2,1) -> 0 | H69: 様 | J69: =INDEX(入力!$F:$F,I67+2,1) -> 0 | M69: 様 | O69: =INDEX(入力!$F:$F,N67+2,1) -> 0
A70: =入力!$E$1 -> villa中 | B70: =INDEX(入力!$A:$A,D70+2,1) -> 0 | C70: =INDEX(入力!$B:$B,D70+2,1) -> 0 | D70: =D67+3 -> 70 | E70: =INDEX(入力!$C:$C,D70+2,1) -> 0 | F70: =入力!$E$1 -> villa中 | G70: =INDEX(入力!$A:$A,I70+2,1) -> 0 | H70: =INDEX(入力!$B:$B,I70+2,1) -> 0 | I70: =1+D70 -> 71 | J70: =INDEX(入力!$C:$C,I70+2,1) -> 0 | K70: =入力!$E$1 -> villa中 | L70: =INDEX(入力!$A:$A,N70+2,1) -> 0 | M70: =INDEX(入力!$B:$B,N70+2,1) -> 0 | N70: =1+I70 -> 72 | O70: =INDEX(入力!$C:$C,N70+2,1) -> 0
A71: =INDEX(入力!$E:$E,D70+2,1) -> 0 | E71: =INDEX(入力!$H:$H,D70+2,1) ->  | F71: =INDEX(入力!$E:$E,I70+2,1) -> 0 | J71: =INDEX(入力!$H:$H,I70+2,1) ->  | K71: =INDEX(入力!$E:$E,N70+2,1) -> 0 | O71: =INDEX(入力!$H:$H,N70+2,1) -> 
C72: 様 | E72: =INDEX(入力!$F:$F,D70+2,1) -> 0 | H72: 様 | J72: =INDEX(入力!$F:$F,I70+2,1) -> 0 | M72: 様 | O72: =INDEX(入力!$F:$F,N70+2,1) -> 0
A73: =入力!$E$1 -> villa中 | B73: =INDEX(入力!$A:$A,D73+2,1) -> 0 | C73: =INDEX(入力!$B:$B,D73+2,1) -> 0 | D73: =D70+3 -> 73 | E73: =INDEX(入力!$C:$C,D73+2,1) -> 0 | F73: =入力!$E$1 -> villa中 | G73: =INDEX(入力!$A:$A,I73+2,1) -> 0 | H73: =INDEX(入力!$B:$B,I73+2,1) -> 0 | I73: =1+D73 -> 74 | J73: =INDEX(入力!$C:$C,I73+2,1) -> 0 | K73: =入力!$E$1 -> villa中 | L73: =INDEX(入力!$A:$A,N73+2,1) -> 0 | M73: =INDEX(入力!$B:$B,N73+2,1) -> 0 | N73: =1+I73 -> 75 | O73: =INDEX(入力!$C:$C,N73+2,1) -> 0
A74: =INDEX(入力!$E:$E,D73+2,1) -> 0 | E74: =INDEX(入力!$H:$H,D73+2,1) ->  | F74: =INDEX(入力!$E:$E,I73+2,1) -> 0 | J74: =INDEX(入力!$H:$H,I73+2,1) ->  | K74: =INDEX(入力!$E:$E,N73+2,1) -> 0 | O74: =INDEX(入力!$H:$H,N73+2,1) -> 
C75: 様 | E75: =INDEX(入力!$F:$F,D73+2,1) -> 0 | H75: 様 | J75: =INDEX(入力!$F:$F,I73+2,1) -> 0 | M75: 様 | O75: =INDEX(入力!$F:$F,N73+2,1) -> 0
A76: =入力!$E$1 -> villa中 | B76: =INDEX(入力!$A:$A,D76+2,1) -> 0 | C76: =INDEX(入力!$B:$B,D76+2,1) -> 0 | D76: =D73+3 -> 76 | E76: =INDEX(入力!$C:$C,D76+2,1) -> 0 | F76: =入力!$E$1 -> villa中 | G76: =INDEX(入力!$A:$A,I76+2,1) -> 0 | H76: =INDEX(入力!$B:$B,I76+2,1) -> 0 | I76: =1+D76 -> 77 | J76: =INDEX(入力!$C:$C,I76+2,1) -> 0 | K76: =入力!$E$1 -> villa中 | L76: =INDEX(入力!$A:$A,N76+2,1) -> 0 | M76: =INDEX(入力!$B:$B,N76+2,1) -> 0 | N76: =1+I76 -> 78 | O76: =INDEX(入力!$C:$C,N76+2,1) -> 0
A77: =INDEX(入力!$E:$E,D76+2,1) -> 0 | E77: =INDEX(入力!$H:$H,D76+2,1) ->  | F77: =INDEX(入力!$E:$E,I76+2,1) -> 0 | J77: =INDEX(入力!$H:$H,I76+2,1) ->  | K77: =INDEX(入力!$E:$E,N76+2,1) -> 0 | O77: =INDEX(入力!$H:$H,N76+2,1) -> 
C78: 様 | E78: =INDEX(入力!$F:$F,D76+2,1) -> 0 | H78: 様 | J78: =INDEX(入力!$F:$F,I76+2,1) -> 0 | M78: 様 | O78: =INDEX(入力!$F:$F,N76+2,1) -> 0
A79: =入力!$E$1 -> villa中 | B79: =INDEX(入力!$A:$A,D79+2,1) -> 0 | C79: =INDEX(入力!$B:$B,D79+2,1) -> 0 | D79: =D76+3 -> 79 | E79: =INDEX(入力!$C:$C,D79+2,1) -> 0 | F79: =入力!$E$1 -> villa中 | G79: =INDEX(入力!$A:$A,I79+2,1) -> 0 | H79: =INDEX(入力!$B:$B,I79+2,1) -> 0 | I79: =1+D79 -> 80 | J79: =INDEX(入力!$C:$C,I79+2,1) -> 0 | K79: =入力!$E$1 -> villa中 | L79: =INDEX(入力!$A:$A,N79+2,1) -> 0 | M79: =INDEX(入力!$B:$B,N79+2,1) -> 0 | N79: =1+I79 -> 81 | O79: =INDEX(入力!$C:$C,N79+2,1) -> 0
A80: =INDEX(入力!$E:$E,D79+2,1) -> 0 | E80: =INDEX(入力!$H:$H,D79+2,1) ->  | F80: =INDEX(入力!$E:$E,I79+2,1) -> 0 | J80: =INDEX(入力!$H:$H,I79+2,1) ->  | K80: =INDEX(入力!$E:$E,N79+2,1) -> 0 | O80: =INDEX(入力!$H:$H,N79+2,1) -> 
C81: 様 | E81: =INDEX(入力!$F:$F,D79+2,1) -> 0 | H81: 様 | J81: =INDEX(入力!$F:$F,I79+2,1) -> 0 | M81: 様 | O81: =INDEX(入力!$F:$F,N79+2,1) -> 0
A82: =入力!$E$1 -> villa中 | B82: =INDEX(入力!$A:$A,D82+2,1) -> 0 | C82: =INDEX(入力!$B:$B,D82+2,1) -> 0 | D82: =D79+3 -> 82 | E82: =INDEX(入力!$C:$C,D82+2,1) -> 0 | F82: =入力!$E$1 -> villa中 | G82: =INDEX(入力!$A:$A,I82+2,1) -> 0 | H82: =INDEX(入力!$B:$B,I82+2,1) -> 0 | I82: =1+D82 -> 83 | J82: =INDEX(入力!$C:$C,I82+2,1) -> 0 | K82: =入力!$E$1 -> villa中 | L82: =INDEX(入力!$A:$A,N82+2,1) -> 0 | M82: =INDEX(入力!$B:$B,N82+2,1) -> 0 | N82: =1+I82 -> 84 | O82: =INDEX(入力!$C:$C,N82+2,1) -> 0
A83: =INDEX(入力!$E:$E,D82+2,1) -> 0 | E83: =INDEX(入力!$H:$H,D82+2,1) ->  | F83: =INDEX(入力!$E:$E,I82+2,1) -> 0 | J83: =INDEX(入力!$H:$H,I82+2,1) ->  | K83: =INDEX(入力!$E:$E,N82+2,1) -> 0 | O83: =INDEX(入力!$H:$H,N82+2,1) -> 
C84: 様 | E84: =INDEX(入力!$F:$F,D82+2,1) -> 0 | H84: 様 | J84: =INDEX(入力!$F:$F,I82+2,1) -> 0 | M84: 様 | O84: =INDEX(入力!$F:$F,N82+2,1) -> 0
A85: =入力!$E$1 -> villa中 | B85: =INDEX(入力!$A:$A,D85+2,1) -> 0 | C85: =INDEX(入力!$B:$B,D85+2,1) -> 0 | D85: =D82+3 -> 85 | E85: =INDEX(入力!$C:$C,D85+2,1) -> 0 | F85: =入力!$E$1 -> villa中 | G85: =INDEX(入力!$A:$A,I85+2,1) -> 0 | H85: =INDEX(入力!$B:$B,I85+2,1) -> 0 | I85: =1+D85 -> 86 | J85: =INDEX(入力!$C:$C,I85+2,1) -> 0 | K85: =入力!$E$1 -> villa中 | L85: =INDEX(入力!$A:$A,N85+2,1) -> 0 | M85: =INDEX(入力!$B:$B,N85+2,1) -> 0 | N85: =1+I85 -> 87 | O85: =INDEX(入力!$C:$C,N85+2,1) -> 0
A86: =INDEX(入力!$E:$E,D85+2,1) -> 0 | E86: =INDEX(入力!$H:$H,D85+2,1) ->  | F86: =INDEX(入力!$E:$E,I85+2,1) -> 0 | J86: =INDEX(入力!$H:$H,I85+2,1) ->  | K86: =INDEX(入力!$E:$E,N85+2,1) -> 0 | O86: =INDEX(入力!$H:$H,N85+2,1) -> 
C87: 様 | E87: =INDEX(入力!$F:$F,D85+2,1) -> 0 | H87: 様 | J87: =INDEX(入力!$F:$F,I85+2,1) -> 0 | M87: 様 | O87: =INDEX(入力!$F:$F,N85+2,1) -> 0
A88: =入力!$E$1 -> villa中 | B88: =INDEX(入力!$A:$A,D88+2,1) -> 0 | C88: =INDEX(入力!$B:$B,D88+2,1) -> 0 | D88: =D85+3 -> 88 | E88: =INDEX(入力!$C:$C,D88+2,1) -> 0 | F88: =入力!$E$1 -> villa中 | G88: =INDEX(入力!$A:$A,I88+2,1) -> 0 | H88: =INDEX(入力!$B:$B,I88+2,1) -> 0 | I88: =1+D88 -> 89 | J88: =INDEX(入力!$C:$C,I88+2,1) -> 0 | K88: =入力!$E$1 -> villa中 | L88: =INDEX(入力!$A:$A,N88+2,1) -> 0 | M88: =INDEX(入力!$B:$B,N88+2,1) -> 0 | N88: =1+I88 -> 90 | O88: =INDEX(入力!$C:$C,N88+2,1) -> 0
A89: =INDEX(入力!$E:$E,D88+2,1) -> 0 | E89: =INDEX(入力!$H:$H,D88+2,1) ->  | F89: =INDEX(入力!$E:$E,I88+2,1) -> 0 | J89: =INDEX(入力!$H:$H,I88+2,1) ->  | K89: =INDEX(入力!$E:$E,N88+2,1) -> 0 | O89: =INDEX(入力!$H:$H,N88+2,1) -> 
C90: 様 | E90: =INDEX(入力!$F:$F,D88+2,1) -> 0 | H90: 様 | J90: =INDEX(入力!$F:$F,I88+2,1) -> 0 | M90: 様 | O90: =INDEX(入力!$F:$F,N88+2,1) -> 0
A91: =入力!$E$1 -> villa中 | B91: =INDEX(入力!$A:$A,D91+2,1) -> 0 | C91: =INDEX(入力!$B:$B,D91+2,1) -> 0 | D91: =D88+3 -> 91 | E91: =INDEX(入力!$C:$C,D91+2,1) -> 0 | F91: =入力!$E$1 -> villa中 | G91: =INDEX(入力!$A:$A,I91+2,1) -> 0 | H91: =INDEX(入力!$B:$B,I91+2,1) -> 0 | I91: =1+D91 -> 92 | J91: =INDEX(入力!$C:$C,I91+2,1) -> 0 | K91: =入力!$E$1 -> villa中 | L91: =INDEX(入力!$A:$A,N91+2,1) -> 0 | M91: =INDEX(入力!$B:$B,N91+2,1) -> 0 | N91: =1+I91 -> 93 | O91: =INDEX(入力!$C:$C,N91+2,1) -> 0
A92: =INDEX(入力!$E:$E,D91+2,1) -> 0 | E92: =INDEX(入力!$H:$H,D91+2,1) ->  | F92: =INDEX(入力!$E:$E,I91+2,1) -> 0 | J92: =INDEX(入力!$H:$H,I91+2,1) ->  | K92: =INDEX(入力!$E:$E,N91+2,1) -> 0 | O92: =INDEX(入力!$H:$H,N91+2,1) -> 
C93: 様 | E93: =INDEX(入力!$F:$F,D91+2,1) -> 0 | H93: 様 | J93: =INDEX(入力!$F:$F,I91+2,1) -> 0 | M93: 様 | O93: =INDEX(入力!$F:$F,N91+2,1) -> 0
A94: =入力!$E$1 -> villa中 | B94: =INDEX(入力!$A:$A,D94+2,1) -> 0 | C94: =INDEX(入力!$B:$B,D94+2,1) -> 0 | D94: =D91+3 -> 94 | E94: =INDEX(入力!$C:$C,D94+2,1) -> 0 | F94: =入力!$E$1 -> villa中 | G94: =INDEX(入力!$A:$A,I94+2,1) -> 0 | H94: =INDEX(入力!$B:$B,I94+2,1) -> 0 | I94: =1+D94 -> 95 | J94: =INDEX(入力!$C:$C,I94+2,1) -> 0 | K94: =入力!$E$1 -> villa中 | L94: =INDEX(入力!$A:$A,N94+2,1) -> 0 | M94: =INDEX(入力!$B:$B,N94+2,1) -> 0 | N94: =1+I94 -> 96 | O94: =INDEX(入力!$C:$C,N94+2,1) -> 0
A95: =INDEX(入力!$E:$E,D94+2,1) -> 0 | E95: =INDEX(入力!$H:$H,D94+2,1) ->  | F95: =INDEX(入力!$E:$E,I94+2,1) -> 0 | J95: =INDEX(入力!$H:$H,I94+2,1) ->  | K95: =INDEX(入力!$E:$E,N94+2,1) -> 0 | O95: =INDEX(入力!$H:$H,N94+2,1) -> 
C96: 様 | E96: =INDEX(入力!$F:$F,D94+2,1) -> 0 | H96: 様 | J96: =INDEX(入力!$F:$F,I94+2,1) -> 0 | M96: 様 | O96: =INDEX(入力!$F:$F,N94+2,1) -> 0
A97: =入力!$E$1 -> villa中 | B97: =INDEX(入力!$A:$A,D97+2,1) -> 0 | C97: =INDEX(入力!$B:$B,D97+2,1) -> 0 | D97: =D94+3 -> 97 | E97: =INDEX(入力!$C:$C,D97+2,1) -> 0 | F97: =入力!$E$1 -> villa中 | G97: =INDEX(入力!$A:$A,I97+2,1) -> 0 | H97: =INDEX(入力!$B:$B,I97+2,1) -> 0 | I97: =1+D97 -> 98 | J97: =INDEX(入力!$C:$C,I97+2,1) -> 0 | K97: =入力!$E$1 -> villa中 | L97: =INDEX(入力!$A:$A,N97+2,1) -> 0 | M97: =INDEX(入力!$B:$B,N97+2,1) -> 0 | N97: =1+I97 -> 99 | O97: =INDEX(入力!$C:$C,N97+2,1) -> 0
A98: =INDEX(入力!$E:$E,D97+2,1) -> 0 | E98: =INDEX(入力!$H:$H,D97+2,1) ->  | F98: =INDEX(入力!$E:$E,I97+2,1) -> 0 | J98: =INDEX(入力!$H:$H,I97+2,1) ->  | K98: =INDEX(入力!$E:$E,N97+2,1) -> 0 | O98: =INDEX(入力!$H:$H,N97+2,1) -> 
C99: 様 | E99: =INDEX(入力!$F:$F,D97+2,1) -> 0 | H99: 様 | J99: =INDEX(入力!$F:$F,I97+2,1) -> 0 | M99: 様 | O99: =INDEX(入力!$F:$F,N97+2,1) -> 0
A100: =入力!$E$1 -> villa中 | B100: =INDEX(入力!$A:$A,D100+2,1) -> 0 | C100: =INDEX(入力!$B:$B,D100+2,1) -> 0 | D100: =D97+3 -> 100 | E100: =INDEX(入力!$C:$C,D100+2,1) -> 0 | F100: =入力!$E$1 -> villa中 | G100: =INDEX(入力!$A:$A,I100+2,1) -> 0 | H100: =INDEX(入力!$B:$B,I100+2,1) -> 0 | I100: =1+D100 -> 101 | J100: =INDEX(入力!$C:$C,I100+2,1) -> 0 | K100: =入力!$E$1 -> villa中 | L100: =INDEX(入力!$A:$A,N100+2,1) -> 0 | M100: =INDEX(入力!$B:$B,N100+2,1) -> 0 | N100: =1+I100 -> 102 | O100: =INDEX(入力!$C:$C,N100+2,1) -> 0
A101: =INDEX(入力!$E:$E,D100+2,1) -> 0 | E101: =INDEX(入力!$H:$H,D100+2,1) ->  | F101: =INDEX(入力!$E:$E,I100+2,1) -> 0 | J101: =INDEX(入力!$H:$H,I100+2,1) ->  | K101: =INDEX(入力!$E:$E,N100+2,1) -> 0 | O101: =INDEX(入力!$H:$H,N100+2,1) -> 
C102: 様 | E102: =INDEX(入力!$F:$F,D100+2,1) -> 0 | H102: 様 | J102: =INDEX(入力!$F:$F,I100+2,1) -> 0 | M102: 様 | O102: =INDEX(入力!$F:$F,N100+2,1) -> 0
A103: =入力!$E$1 -> villa中 | B103: =INDEX(入力!$A:$A,D103+2,1) -> 0 | C103: =INDEX(入力!$B:$B,D103+2,1) -> 0 | D103: =D100+3 -> 103 | E103: =INDEX(入力!$C:$C,D103+2,1) -> 0 | F103: =入力!$E$1 -> villa中 | G103: =INDEX(入力!$A:$A,I103+2,1) -> 0 | H103: =INDEX(入力!$B:$B,I103+2,1) -> 0 | I103: =1+D103 -> 104 | J103: =INDEX(入力!$C:$C,I103+2,1) -> 0 | K103: =入力!$E$1 -> villa中 | L103: =INDEX(入力!$A:$A,N103+2,1) -> 0 | M103: =INDEX(入力!$B:$B,N103+2,1) -> 0 | N103: =1+I103 -> 105 | O103: =INDEX(入力!$C:$C,N103+2,1) -> 0
A104: =INDEX(入力!$E:$E,D103+2,1) -> 0 | E104: =INDEX(入力!$H:$H,D103+2,1) ->  | F104: =INDEX(入力!$E:$E,I103+2,1) -> 0 | J104: =INDEX(入力!$H:$H,I103+2,1) ->  | K104: =INDEX(入力!$E:$E,N103+2,1) -> 0 | O104: =INDEX(入力!$H:$H,N103+2,1) -> 
C105: 様 | E105: =INDEX(入力!$F:$F,D103+2,1) -> 0 | H105: 様 | J105: =INDEX(入力!$F:$F,I103+2,1) -> 0 | M105: 様 | O105: =INDEX(入力!$F:$F,N103+2,1) -> 0
A106: =入力!$E$1 -> villa中 | B106: =INDEX(入力!$A:$A,D106+2,1) -> 0 | C106: =INDEX(入力!$B:$B,D106+2,1) -> 0 | D106: =D103+3 -> 106 | E106: =INDEX(入力!$C:$C,D106+2,1) -> 0 | F106: =入力!$E$1 -> villa中 | G106: =INDEX(入力!$A:$A,I106+2,1) -> 0 | H106: =INDEX(入力!$B:$B,I106+2,1) -> 0 | I106: =1+D106 -> 107 | J106: =INDEX(入力!$C:$C,I106+2,1) -> 0 | K106: =入力!$E$1 -> villa中 | L106: =INDEX(入力!$A:$A,N106+2,1) -> 0 | M106: =INDEX(入力!$B:$B,N106+2,1) -> 0 | N106: =1+I106 -> 108 | O106: =INDEX(入力!$C:$C,N106+2,1) -> 0
A107: =INDEX(入力!$E:$E,D106+2,1) -> 0 | E107: =INDEX(入力!$H:$H,D106+2,1) ->  | F107: =INDEX(入力!$E:$E,I106+2,1) -> 0 | J107: =INDEX(入力!$H:$H,I106+2,1) ->  | K107: =INDEX(入力!$E:$E,N106+2,1) -> 0 | O107: =INDEX(入力!$H:$H,N106+2,1) -> 
C108: 様 | E108: =INDEX(入力!$F:$F,D106+2,1) -> 0 | H108: 様 | J108: =INDEX(入力!$F:$F,I106+2,1) -> 0 | M108: 様 | O108: =INDEX(入力!$F:$F,N106+2,1) -> 0
A109: =入力!$E$1 -> villa中 | B109: =INDEX(入力!$A:$A,D109+2,1) -> 0 | C109: =INDEX(入力!$B:$B,D109+2,1) -> 0 | D109: =D106+3 -> 109 | E109: =INDEX(入力!$C:$C,D109+2,1) -> 0 | F109: =入力!$E$1 -> villa中 | G109: =INDEX(入力!$A:$A,I109+2,1) -> 0 | H109: =INDEX(入力!$B:$B,I109+2,1) -> 0 | I109: =1+D109 -> 110 | J109: =INDEX(入力!$C:$C,I109+2,1) -> 0 | K109: =入力!$E$1 -> villa中 | L109: =INDEX(入力!$A:$A,N109+2,1) -> 0 | M109: =INDEX(入力!$B:$B,N109+2,1) -> 0 | N109: =1+I109 -> 111 | O109: =INDEX(入力!$C:$C,N109+2,1) -> 0
A110: =INDEX(入力!$E:$E,D109+2,1) -> 0 | E110: =INDEX(入力!$H:$H,D109+2,1) ->  | F110: =INDEX(入力!$E:$E,I109+2,1) -> 0 | J110: =INDEX(入力!$H:$H,I109+2,1) ->  | K110: =INDEX(入力!$E:$E,N109+2,1) -> 0 | O110: =INDEX(入力!$H:$H,N109+2,1) -> 
C111: 様 | E111: =INDEX(入力!$F:$F,D109+2,1) -> 0 | H111: 様 | J111: =INDEX(入力!$F:$F,I109+2,1) -> 0 | M111: 様 | O111: =INDEX(入力!$F:$F,N109+2,1) -> 0
A112: =入力!$E$1 -> villa中 | B112: =INDEX(入力!$A:$A,D112+2,1) -> 0 | C112: =INDEX(入力!$B:$B,D112+2,1) -> 0 | D112: =D109+3 -> 112 | E112: =INDEX(入力!$C:$C,D112+2,1) -> 0 | F112: =入力!$E$1 -> villa中 | G112: =INDEX(入力!$A:$A,I112+2,1) -> 0 | H112: =INDEX(入力!$B:$B,I112+2,1) -> 0 | I112: =1+D112 -> 113 | J112: =INDEX(入力!$C:$C,I112+2,1) -> 0 | K112: =入力!$E$1 -> villa中 | L112: =INDEX(入力!$A:$A,N112+2,1) -> 0 | M112: =INDEX(入力!$B:$B,N112+2,1) -> 0 | N112: =1+I112 -> 114 | O112: =INDEX(入力!$C:$C,N112+2,1) -> 0
A113: =INDEX(入力!$E:$E,D112+2,1) -> 0 | E113: =INDEX(入力!$H:$H,D112+2,1) ->  | F113: =INDEX(入力!$E:$E,I112+2,1) -> 0 | J113: =INDEX(入力!$H:$H,I112+2,1) ->  | K113: =INDEX(入力!$E:$E,N112+2,1) -> 0 | O113: =INDEX(入力!$H:$H,N112+2,1) -> 
C114: 様 | E114: =INDEX(入力!$F:$F,D112+2,1) -> 0 | H114: 様 | J114: =INDEX(入力!$F:$F,I112+2,1) -> 0 | M114: 様 | O114: =INDEX(入力!$F:$F,N112+2,1) -> 0
A115: =入力!$E$1 -> villa中 | B115: =INDEX(入力!$A:$A,D115+2,1) -> 0 | C115: =INDEX(入力!$B:$B,D115+2,1) -> 0 | D115: =D112+3 -> 115 | E115: =INDEX(入力!$C:$C,D115+2,1) -> 0 | F115: =入力!$E$1 -> villa中 | G115: =INDEX(入力!$A:$A,I115+2,1) -> 0 | H115: =INDEX(入力!$B:$B,I115+2,1) -> 0 | I115: =1+D115 -> 116 | J115: =INDEX(入力!$C:$C,I115+2,1) -> 0 | K115: =入力!$E$1 -> villa中 | L115: =INDEX(入力!$A:$A,N115+2,1) -> 0 | M115: =INDEX(入力!$B:$B,N115+2,1) -> 0 | N115: =1+I115 -> 117 | O115: =INDEX(入力!$C:$C,N115+2,1) -> 0
A116: =INDEX(入力!$E:$E,D115+2,1) -> 0 | E116: =INDEX(入力!$H:$H,D115+2,1) ->  | F116: =INDEX(入力!$E:$E,I115+2,1) -> 0 | J116: =INDEX(入力!$H:$H,I115+2,1) ->  | K116: =INDEX(入力!$E:$E,N115+2,1) -> 0 | O116: =INDEX(入力!$H:$H,N115+2,1) -> 
C117: 様 | E117: =INDEX(入力!$F:$F,D115+2,1) -> 0 | H117: 様 | J117: =INDEX(入力!$F:$F,I115+2,1) -> 0 | M117: 様 | O117: =INDEX(入力!$F:$F,N115+2,1) -> 0
A118: =入力!$E$1 -> villa中 | B118: =INDEX(入力!$A:$A,D118+2,1) -> 0 | C118: =INDEX(入力!$B:$B,D118+2,1) -> 0 | D118: =D115+3 -> 118 | E118: =INDEX(入力!$C:$C,D118+2,1) -> 0 | F118: =入力!$E$1 -> villa中 | G118: =INDEX(入力!$A:$A,I118+2,1) -> 0 | H118: =INDEX(入力!$B:$B,I118+2,1) -> 0 | I118: =1+D118 -> 119 | J118: =INDEX(入力!$C:$C,I118+2,1) -> 0 | K118: =入力!$E$1 -> villa中 | L118: =INDEX(入力!$A:$A,N118+2,1) -> 0 | M118: =INDEX(入力!$B:$B,N118+2,1) -> 0 | N118: =1+I118 -> 120 | O118: =INDEX(入力!$C:$C,N118+2,1) -> 0
A119: =INDEX(入力!$E:$E,D118+2,1) -> 0 | E119: =INDEX(入力!$H:$H,D118+2,1) ->  | F119: =INDEX(入力!$E:$E,I118+2,1) -> 0 | J119: =INDEX(入力!$H:$H,I118+2,1) ->  | K119: =INDEX(入力!$E:$E,N118+2,1) -> 0 | O119: =INDEX(入力!$H:$H,N118+2,1) -> 
C120: 様 | E120: =INDEX(入力!$F:$F,D118+2,1) -> 0 | H120: 様 | J120: =INDEX(入力!$F:$F,I118+2,1) -> 0 | M120: 様 | O120: =INDEX(入力!$F:$F,N118+2,1) -> 0
A121: =入力!$E$1 -> villa中 | B121: =INDEX(入力!$A:$A,D121+2,1) -> 0 | C121: =INDEX(入力!$B:$B,D121+2,1) -> 0 | D121: =D118+3 -> 121 | E121: =INDEX(入力!$C:$C,D121+2,1) -> 0 | F121: =入力!$E$1 -> villa中 | G121: =INDEX(入力!$A:$A,I121+2,1) -> 0 | H121: =INDEX(入力!$B:$B,I121+2,1) -> 0 | I121: =1+D121 -> 122 | J121: =INDEX(入力!$C:$C,I121+2,1) -> 0 | K121: =入力!$E$1 -> villa中 | L121: =INDEX(入力!$A:$A,N121+2,1) -> 0 | M121: =INDEX(入力!$B:$B,N121+2,1) -> 0 | N121: =1+I121 -> 123 | O121: =INDEX(入力!$C:$C,N121+2,1) -> 0
A122: =INDEX(入力!$E:$E,D121+2,1) -> 0 | E122: =INDEX(入力!$H:$H,D121+2,1) ->  | F122: =INDEX(入力!$E:$E,I121+2,1) -> 0 | J122: =INDEX(入力!$H:$H,I121+2,1) ->  | K122: =INDEX(入力!$E:$E,N121+2,1) -> 0 | O122: =INDEX(入力!$H:$H,N121+2,1) -> 
C123: 様 | E123: =INDEX(入力!$F:$F,D121+2,1) -> 0 | H123: 様 | J123: =INDEX(入力!$F:$F,I121+2,1) -> 0 | M123: 様 | O123: =INDEX(入力!$F:$F,N121+2,1) -> 0
A124: =入力!$E$1 -> villa中 | B124: =INDEX(入力!$A:$A,D124+2,1) -> 0 | C124: =INDEX(入力!$B:$B,D124+2,1) -> 0 | D124: =D121+3 -> 124 | E124: =INDEX(入力!$C:$C,D124+2,1) -> 0 | F124: =入力!$E$1 -> villa中 | G124: =INDEX(入力!$A:$A,I124+2,1) -> 0 | H124: =INDEX(入力!$B:$B,I124+2,1) -> 0 | I124: =1+D124 -> 125 | J124: =INDEX(入力!$C:$C,I124+2,1) -> 0 | K124: =入力!$E$1 -> villa中 | L124: =INDEX(入力!$A:$A,N124+2,1) -> 0 | M124: =INDEX(入力!$B:$B,N124+2,1) -> 0 | N124: =1+I124 -> 126 | O124: =INDEX(入力!$C:$C,N124+2,1) -> 0
A125: =INDEX(入力!$E:$E,D124+2,1) -> 0 | E125: =INDEX(入力!$H:$H,D124+2,1) ->  | F125: =INDEX(入力!$E:$E,I124+2,1) -> 0 | J125: =INDEX(入力!$H:$H,I124+2,1) ->  | K125: =INDEX(入力!$E:$E,N124+2,1) -> 0 | O125: =INDEX(入力!$H:$H,N124+2,1) -> 
C126: 様 | E126: =INDEX(入力!$F:$F,D124+2,1) -> 0 | H126: 様 | J126: =INDEX(入力!$F:$F,I124+2,1) -> 0 | M126: 様 | O126: =INDEX(入力!$F:$F,N124+2,1) -> 0
A127: =入力!$E$1 -> villa中 | B127: =INDEX(入力!$A:$A,D127+2,1) -> 0 | C127: =INDEX(入力!$B:$B,D127+2,1) -> 0 | D127: =D124+3 -> 127 | E127: =INDEX(入力!$C:$C,D127+2,1) -> 0 | F127: =入力!$E$1 -> villa中 | G127: =INDEX(入力!$A:$A,I127+2,1) -> 0 | H127: =INDEX(入力!$B:$B,I127+2,1) -> 0 | I127: =1+D127 -> 128 | J127: =INDEX(入力!$C:$C,I127+2,1) -> 0 | K127: =入力!$E$1 -> villa中 | L127: =INDEX(入力!$A:$A,N127+2,1) -> 0 | M127: =INDEX(入力!$B:$B,N127+2,1) -> 0 | N127: =1+I127 -> 129 | O127: =INDEX(入力!$C:$C,N127+2,1) -> 0
A128: =INDEX(入力!$E:$E,D127+2,1) -> 0 | E128: =INDEX(入力!$H:$H,D127+2,1) ->  | F128: =INDEX(入力!$E:$E,I127+2,1) -> 0 | J128: =INDEX(入力!$H:$H,I127+2,1) ->  | K128: =INDEX(入力!$E:$E,N127+2,1) -> 0 | O128: =INDEX(入力!$H:$H,N127+2,1) -> 
C129: 様 | E129: =INDEX(入力!$F:$F,D127+2,1) -> 0 | H129: 様 | J129: =INDEX(入力!$F:$F,I127+2,1) -> 0 | M129: 様 | O129: =INDEX(入力!$F:$F,N127+2,1) -> 0
A130: =入力!$E$1 -> villa中 | B130: =INDEX(入力!$A:$A,D130+2,1) -> 0 | C130: =INDEX(入力!$B:$B,D130+2,1) -> 0 | D130: =D127+3 -> 130 | E130: =INDEX(入力!$C:$C,D130+2,1) -> 0 | F130: =入力!$E$1 -> villa中 | G130: =INDEX(入力!$A:$A,I130+2,1) -> 0 | H130: =INDEX(入力!$B:$B,I130+2,1) -> 0 | I130: =1+D130 -> 131 | J130: =INDEX(入力!$C:$C,I130+2,1) -> 0 | K130: =入力!$E$1 -> villa中 | L130: =INDEX(入力!$A:$A,N130+2,1) -> 0 | M130: =INDEX(入力!$B:$B,N130+2,1) -> 0 | N130: =1+I130 -> 132 | O130: =INDEX(入力!$C:$C,N130+2,1) -> 0
A131: =INDEX(入力!$E:$E,D130+2,1) -> 0 | E131: =INDEX(入力!$H:$H,D130+2,1) ->  | F131: =INDEX(入力!$E:$E,I130+2,1) -> 0 | J131: =INDEX(入力!$H:$H,I130+2,1) ->  | K131: =INDEX(入力!$E:$E,N130+2,1) -> 0 | O131: =INDEX(入力!$H:$H,N130+2,1) -> 
C132: 様 | E132: =INDEX(入力!$F:$F,D130+2,1) -> 0 | H132: 様 | J132: =INDEX(入力!$F:$F,I130+2,1) -> 0 | M132: 様 | O132: =INDEX(入力!$F:$F,N130+2,1) -> 0
A133: =入力!$E$1 -> villa中 | B133: =INDEX(入力!$A:$A,D133+2,1) -> 0 | C133: =INDEX(入力!$B:$B,D133+2,1) -> 0 | D133: =D130+3 -> 133 | E133: =INDEX(入力!$C:$C,D133+2,1) -> 0 | F133: =入力!$E$1 -> villa中 | G133: =INDEX(入力!$A:$A,I133+2,1) -> 0 | H133: =INDEX(入力!$B:$B,I133+2,1) -> 0 | I133: =1+D133 -> 134 | J133: =INDEX(入力!$C:$C,I133+2,1) -> 0 | K133: =入力!$E$1 -> villa中 | L133: =INDEX(入力!$A:$A,N133+2,1) -> 0 | M133: =INDEX(入力!$B:$B,N133+2,1) -> 0 | N133: =1+I133 -> 135 | O133: =INDEX(入力!$C:$C,N133+2,1) -> 0
A134: =INDEX(入力!$E:$E,D133+2,1) -> 0 | E134: =INDEX(入力!$H:$H,D133+2,1) ->  | F134: =INDEX(入力!$E:$E,I133+2,1) -> 0 | J134: =INDEX(入力!$H:$H,I133+2,1) ->  | K134: =INDEX(入力!$E:$E,N133+2,1) -> 0 | O134: =INDEX(入力!$H:$H,N133+2,1) -> 
C135: 様 | E135: =INDEX(入力!$F:$F,D133+2,1) -> 0 | H135: 様 | J135: =INDEX(入力!$F:$F,I133+2,1) -> 0 | M135: 様 | O135: =INDEX(入力!$F:$F,N133+2,1) -> 0
A136: =入力!$E$1 -> villa中 | B136: =INDEX(入力!$A:$A,D136+2,1) -> 0 | C136: =INDEX(入力!$B:$B,D136+2,1) -> 0 | D136: =D133+3 -> 136 | E136: =INDEX(入力!$C:$C,D136+2,1) -> 0 | F136: =入力!$E$1 -> villa中 | G136: =INDEX(入力!$A:$A,I136+2,1) -> 0 | H136: =INDEX(入力!$B:$B,I136+2,1) -> 0 | I136: =1+D136 -> 137 | J136: =INDEX(入力!$C:$C,I136+2,1) -> 0 | K136: =入力!$E$1 -> villa中 | L136: =INDEX(入力!$A:$A,N136+2,1) -> 0 | M136: =INDEX(入力!$B:$B,N136+2,1) -> 0 | N136: =1+I136 -> 138 | O136: =INDEX(入力!$C:$C,N136+2,1) -> 0
A137: =INDEX(入力!$E:$E,D136+2,1) -> 0 | E137: =INDEX(入力!$H:$H,D136+2,1) ->  | F137: =INDEX(入力!$E:$E,I136+2,1) -> 0 | J137: =INDEX(入力!$H:$H,I136+2,1) ->  | K137: =INDEX(入力!$E:$E,N136+2,1) -> 0 | O137: =INDEX(入力!$H:$H,N136+2,1) -> 
C138: 様 | E138: =INDEX(入力!$F:$F,D136+2,1) -> 0 | H138: 様 | J138: =INDEX(入力!$F:$F,I136+2,1) -> 0 | M138: 様 | O138: =INDEX(入力!$F:$F,N136+2,1) -> 0
A139: =入力!$E$1 -> villa中 | B139: =INDEX(入力!$A:$A,D139+2,1) -> 0 | C139: =INDEX(入力!$B:$B,D139+2,1) -> 0 | D139: =D136+3 -> 139 | E139: =INDEX(入力!$C:$C,D139+2,1) -> 0 | F139: =入力!$E$1 -> villa中 | G139: =INDEX(入力!$A:$A,I139+2,1) -> 0 | H139: =INDEX(入力!$B:$B,I139+2,1) -> 0 | I139: =1+D139 -> 140 | J139: =INDEX(入力!$C:$C,I139+2,1) -> 0 | K139: =入力!$E$1 -> villa中 | L139: =INDEX(入力!$A:$A,N139+2,1) -> 0 | M139: =INDEX(入力!$B:$B,N139+2,1) -> 0 | N139: =1+I139 -> 141 | O139: =INDEX(入力!$C:$C,N139+2,1) -> 0
A140: =INDEX(入力!$E:$E,D139+2,1) -> 0 | E140: =INDEX(入力!$H:$H,D139+2,1) ->  | F140: =INDEX(入力!$E:$E,I139+2,1) -> 0 | J140: =INDEX(入力!$H:$H,I139+2,1) ->  | K140: =INDEX(入力!$E:$E,N139+2,1) -> 0 | O140: =INDEX(入力!$H:$H,N139+2,1) -> 
C141: 様 | E141: =INDEX(入力!$F:$F,D139+2,1) -> 0 | H141: 様 | J141: =INDEX(入力!$F:$F,I139+2,1) -> 0 | M141: 様 | O141: =INDEX(入力!$F:$F,N139+2,1) -> 0
A142: =入力!$E$1 -> villa中 | B142: =INDEX(入力!$A:$A,D142+2,1) -> 0 | C142: =INDEX(入力!$B:$B,D142+2,1) -> 0 | D142: =D139+3 -> 142 | E142: =INDEX(入力!$C:$C,D142+2,1) -> 0 | F142: =入力!$E$1 -> villa中 | G142: =INDEX(入力!$A:$A,I142+2,1) -> 0 | H142: =INDEX(入力!$B:$B,I142+2,1) -> 0 | I142: =1+D142 -> 143 | J142: =INDEX(入力!$C:$C,I142+2,1) -> 0 | K142: =入力!$E$1 -> villa中 | L142: =INDEX(入力!$A:$A,N142+2,1) -> 0 | M142: =INDEX(入力!$B:$B,N142+2,1) -> 0 | N142: =1+I142 -> 144 | O142: =INDEX(入力!$C:$C,N142+2,1) -> 0
A143: =INDEX(入力!$E:$E,D142+2,1) -> 0 | E143: =INDEX(入力!$H:$H,D142+2,1) ->  | F143: =INDEX(入力!$E:$E,I142+2,1) -> 0 | J143: =INDEX(入力!$H:$H,I142+2,1) ->  | K143: =INDEX(入力!$E:$E,N142+2,1) -> 0 | O143: =INDEX(入力!$H:$H,N142+2,1) -> 
C144: 様 | E144: =INDEX(入力!$F:$F,D142+2,1) -> 0 | H144: 様 | J144: =INDEX(入力!$F:$F,I142+2,1) -> 0 | M144: 様 | O144: =INDEX(入力!$F:$F,N142+2,1) -> 0
A145: =入力!$E$1 -> villa中 | B145: =INDEX(入力!$A:$A,D145+2,1) -> 0 | C145: =INDEX(入力!$B:$B,D145+2,1) -> 0 | D145: =D142+3 -> 145 | E145: =INDEX(入力!$C:$C,D145+2,1) -> 0 | F145: =入力!$E$1 -> villa中 | G145: =INDEX(入力!$A:$A,I145+2,1) -> 0 | H145: =INDEX(入力!$B:$B,I145+2,1) -> 0 | I145: =1+D145 -> 146 | J145: =INDEX(入力!$C:$C,I145+2,1) -> 0 | K145: =入力!$E$1 -> villa中 | L145: =INDEX(入力!$A:$A,N145+2,1) -> 0 | M145: =INDEX(入力!$B:$B,N145+2,1) -> 0 | N145: =1+I145 -> 147 | O145: =INDEX(入力!$C:$C,N145+2,1) -> 0
A146: =INDEX(入力!$E:$E,D145+2,1) -> 0 | E146: =INDEX(入力!$H:$H,D145+2,1) ->  | F146: =INDEX(入力!$E:$E,I145+2,1) -> 0 | J146: =INDEX(入力!$H:$H,I145+2,1) ->  | K146: =INDEX(入力!$E:$E,N145+2,1) -> 0 | O146: =INDEX(入力!$H:$H,N145+2,1) -> 
C147: 様 | E147: =INDEX(入力!$F:$F,D145+2,1) -> 0 | H147: 様 | J147: =INDEX(入力!$F:$F,I145+2,1) -> 0 | M147: 様 | O147: =INDEX(入力!$F:$F,N145+2,1) -> 0
A148: =入力!$E$1 -> villa中 | B148: =INDEX(入力!$A:$A,D148+2,1) -> 0 | C148: =INDEX(入力!$B:$B,D148+2,1) -> 0 | D148: =D145+3 -> 148 | E148: =INDEX(入力!$C:$C,D148+2,1) -> 0 | F148: =入力!$E$1 -> villa中 | G148: =INDEX(入力!$A:$A,I148+2,1) -> 0 | H148: =INDEX(入力!$B:$B,I148+2,1) -> 0 | I148: =1+D148 -> 149 | J148: =INDEX(入力!$C:$C,I148+2,1) -> 0 | K148: =入力!$E$1 -> villa中 | L148: =INDEX(入力!$A:$A,N148+2,1) -> 0 | M148: =INDEX(入力!$B:$B,N148+2,1) -> 0 | N148: =1+I148 -> 150 | O148: =INDEX(入力!$C:$C,N148+2,1) -> 0
A149: =INDEX(入力!$E:$E,D148+2,1) -> 0 | E149: =INDEX(入力!$H:$H,D148+2,1) ->  | F149: =INDEX(入力!$E:$E,I148+2,1) -> 0 | J149: =INDEX(入力!$H:$H,I148+2,1) ->  | K149: =INDEX(入力!$E:$E,N148+2,1) -> 0 | O149: =INDEX(入力!$H:$H,N148+2,1) -> 
C150: 様 | E150: =INDEX(入力!$F:$F,D148+2,1) -> 0 | H150: 様 | J150: =INDEX(入力!$F:$F,I148+2,1) -> 0 | M150: 様 | O150: =INDEX(入力!$F:$F,N148+2,1) -> 0
A151: =入力!$E$1 -> villa中 | B151: =INDEX(入力!$A:$A,D151+2,1) -> 0 | C151: =INDEX(入力!$B:$B,D151+2,1) -> 0 | D151: =D148+3 -> 151 | E151: =INDEX(入力!$C:$C,D151+2,1) -> 0 | F151: =入力!$E$1 -> villa中 | G151: =INDEX(入力!$A:$A,I151+2,1) -> 0 | H151: =INDEX(入力!$B:$B,I151+2,1) -> 0 | I151: =1+D151 -> 152 | J151: =INDEX(入力!$C:$C,I151+2,1) -> 0 | K151: =入力!$E$1 -> villa中 | L151: =INDEX(入力!$A:$A,N151+2,1) -> 0 | M151: =INDEX(入力!$B:$B,N151+2,1) -> 0 | N151: =1+I151 -> 153 | O151: =INDEX(入力!$C:$C,N151+2,1) -> 0
A152: =INDEX(入力!$E:$E,D151+2,1) -> 0 | E152: =INDEX(入力!$H:$H,D151+2,1) ->  | F152: =INDEX(入力!$E:$E,I151+2,1) -> 0 | J152: =INDEX(入力!$H:$H,I151+2,1) ->  | K152: =INDEX(入力!$E:$E,N151+2,1) -> 0 | O152: =INDEX(入力!$H:$H,N151+2,1) -> 
C153: 様 | E153: =INDEX(入力!$F:$F,D151+2,1) -> 0 | H153: 様 | J153: =INDEX(入力!$F:$F,I151+2,1) -> 0 | M153: 様 | O153: =INDEX(入力!$F:$F,N151+2,1) -> 0
A154: =入力!$E$1 -> villa中 | B154: =INDEX(入力!$A:$A,D154+2,1) -> 0 | C154: =INDEX(入力!$B:$B,D154+2,1) -> 0 | D154: =D151+3 -> 154 | E154: =INDEX(入力!$C:$C,D154+2,1) -> 0 | F154: =入力!$E$1 -> villa中 | G154: =INDEX(入力!$A:$A,I154+2,1) -> 0 | H154: =INDEX(入力!$B:$B,I154+2,1) -> 0 | I154: =1+D154 -> 155 | J154: =INDEX(入力!$C:$C,I154+2,1) -> 0 | K154: =入力!$E$1 -> villa中 | L154: =INDEX(入力!$A:$A,N154+2,1) -> 0 | M154: =INDEX(入力!$B:$B,N154+2,1) -> 0 | N154: =1+I154 -> 156 | O154: =INDEX(入力!$C:$C,N154+2,1) -> 0
A155: =INDEX(入力!$E:$E,D154+2,1) -> 0 | E155: =INDEX(入力!$H:$H,D154+2,1) ->  | F155: =INDEX(入力!$E:$E,I154+2,1) -> 0 | J155: =INDEX(入力!$H:$H,I154+2,1) ->  | K155: =INDEX(入力!$E:$E,N154+2,1) -> 0 | O155: =INDEX(入力!$H:$H,N154+2,1) -> 
C156: 様 | E156: =INDEX(入力!$F:$F,D154+2,1) -> 0 | H156: 様 | J156: =INDEX(入力!$F:$F,I154+2,1) -> 0 | M156: 様 | O156: =INDEX(入力!$F:$F,N154+2,1) -> 0
A157: =入力!$E$1 -> villa中 | B157: =INDEX(入力!$A:$A,D157+2,1) -> 0 | C157: =INDEX(入力!$B:$B,D157+2,1) -> 0 | D157: =D154+3 -> 157 | E157: =INDEX(入力!$C:$C,D157+2,1) -> 0 | F157: =入力!$E$1 -> villa中 | G157: =INDEX(入力!$A:$A,I157+2,1) -> 0 | H157: =INDEX(入力!$B:$B,I157+2,1) -> 0 | I157: =1+D157 -> 158 | J157: =INDEX(入力!$C:$C,I157+2,1) -> 0 | K157: =入力!$E$1 -> villa中 | L157: =INDEX(入力!$A:$A,N157+2,1) -> 0 | M157: =INDEX(入力!$B:$B,N157+2,1) -> 0 | N157: =1+I157 -> 159 | O157: =INDEX(入力!$C:$C,N157+2,1) -> 0
A158: =INDEX(入力!$E:$E,D157+2,1) -> 0 | E158: =INDEX(入力!$H:$H,D157+2,1) ->  | F158: =INDEX(入力!$E:$E,I157+2,1) -> 0 | J158: =INDEX(入力!$H:$H,I157+2,1) ->  | K158: =INDEX(入力!$E:$E,N157+2,1) -> 0 | O158: =INDEX(入力!$H:$H,N157+2,1) -> 
C159: 様 | E159: =INDEX(入力!$F:$F,D157+2,1) -> 0 | H159: 様 | J159: =INDEX(入力!$F:$F,I157+2,1) -> 0 | M159: 様 | O159: =INDEX(入力!$F:$F,N157+2,1) -> 0
A160: =入力!$E$1 -> villa中 | B160: =INDEX(入力!$A:$A,D160+2,1) -> 0 | C160: =INDEX(入力!$B:$B,D160+2,1) -> 0 | D160: =D157+3 -> 160 | E160: =INDEX(入力!$C:$C,D160+2,1) -> 0 | F160: =入力!$E$1 -> villa中 | G160: =INDEX(入力!$A:$A,I160+2,1) -> 0 | H160: =INDEX(入力!$B:$B,I160+2,1) -> 0 | I160: =1+D160 -> 161 | J160: =INDEX(入力!$C:$C,I160+2,1) -> 0 | K160: =入力!$E$1 -> villa中 | L160: =INDEX(入力!$A:$A,N160+2,1) -> 0 | M160: =INDEX(入力!$B:$B,N160+2,1) -> 0 | N160: =1+I160 -> 162 | O160: =INDEX(入力!$C:$C,N160+2,1) -> 0
A161: =INDEX(入力!$E:$E,D160+2,1) -> 0 | E161: =INDEX(入力!$H:$H,D160+2,1) ->  | F161: =INDEX(入力!$E:$E,I160+2,1) -> 0 | J161: =INDEX(入力!$H:$H,I160+2,1) ->  | K161: =INDEX(入力!$E:$E,N160+2,1) -> 0 | O161: =INDEX(入力!$H:$H,N160+2,1) -> 
C162: 様 | E162: =INDEX(入力!$F:$F,D160+2,1) -> 0 | H162: 様 | J162: =INDEX(入力!$F:$F,I160+2,1) -> 0 | M162: 様 | O162: =INDEX(入力!$F:$F,N160+2,1) -> 0
A163: =入力!$E$1 -> villa中 | B163: =INDEX(入力!$A:$A,D163+2,1) -> 0 | C163: =INDEX(入力!$B:$B,D163+2,1) -> 0 | D163: =D160+3 -> 163 | E163: =INDEX(入力!$C:$C,D163+2,1) -> 0 | F163: =入力!$E$1 -> villa中 | G163: =INDEX(入力!$A:$A,I163+2,1) -> 0 | H163: =INDEX(入力!$B:$B,I163+2,1) -> 0 | I163: =1+D163 -> 164 | J163: =INDEX(入力!$C:$C,I163+2,1) -> 0 | K163: =入力!$E$1 -> villa中 | L163: =INDEX(入力!$A:$A,N163+2,1) -> 0 | M163: =INDEX(入力!$B:$B,N163+2,1) -> 0 | N163: =1+I163 -> 165 | O163: =INDEX(入力!$C:$C,N163+2,1) -> 0
A164: =INDEX(入力!$E:$E,D163+2,1) -> 0 | E164: =INDEX(入力!$H:$H,D163+2,1) ->  | F164: =INDEX(入力!$E:$E,I163+2,1) -> 0 | J164: =INDEX(入力!$H:$H,I163+2,1) ->  | K164: =INDEX(入力!$E:$E,N163+2,1) -> 0 | O164: =INDEX(入力!$H:$H,N163+2,1) -> 
C165: 様 | E165: =INDEX(入力!$F:$F,D163+2,1) -> 0 | H165: 様 | J165: =INDEX(入力!$F:$F,I163+2,1) -> 0 | M165: 様 | O165: =INDEX(入力!$F:$F,N163+2,1) -> 0
A166: =入力!$E$1 -> villa中 | B166: =INDEX(入力!$A:$A,D166+2,1) -> 0 | C166: =INDEX(入力!$B:$B,D166+2,1) -> 0 | D166: =D163+3 -> 166 | E166: =INDEX(入力!$C:$C,D166+2,1) -> 0 | F166: =入力!$E$1 -> villa中 | G166: =INDEX(入力!$A:$A,I166+2,1) -> 0 | H166: =INDEX(入力!$B:$B,I166+2,1) -> 0 | I166: =1+D166 -> 167 | J166: =INDEX(入力!$C:$C,I166+2,1) -> 0 | K166: =入力!$E$1 -> villa中 | L166: =INDEX(入力!$A:$A,N166+2,1) -> 0 | M166: =INDEX(入力!$B:$B,N166+2,1) -> 0 | N166: =1+I166 -> 168 | O166: =INDEX(入力!$C:$C,N166+2,1) -> 0
A167: =INDEX(入力!$E:$E,D166+2,1) -> 0 | E167: =INDEX(入力!$H:$H,D166+2,1) ->  | F167: =INDEX(入力!$E:$E,I166+2,1) -> 0 | J167: =INDEX(入力!$H:$H,I166+2,1) ->  | K167: =INDEX(入力!$E:$E,N166+2,1) -> 0 | O167: =INDEX(入力!$H:$H,N166+2,1) -> 
C168: 様 | E168: =INDEX(入力!$F:$F,D166+2,1) -> 0 | H168: 様 | J168: =INDEX(入力!$F:$F,I166+2,1) -> 0 | M168: 様 | O168: =INDEX(入力!$F:$F,N166+2,1) -> 0
A169: =入力!$E$1 -> villa中 | B169: =INDEX(入力!$A:$A,D169+2,1) -> 0 | C169: =INDEX(入力!$B:$B,D169+2,1) -> 0 | D169: =D166+3 -> 169 | E169: =INDEX(入力!$C:$C,D169+2,1) -> 0 | F169: =入力!$E$1 -> villa中 | G169: =INDEX(入力!$A:$A,I169+2,1) -> 0 | H169: =INDEX(入力!$B:$B,I169+2,1) -> 0 | I169: =1+D169 -> 170 | J169: =INDEX(入力!$C:$C,I169+2,1) -> 0 | K169: =入力!$E$1 -> villa中 | L169: =INDEX(入力!$A:$A,N169+2,1) -> 0 | M169: =INDEX(入力!$B:$B,N169+2,1) -> 0 | N169: =1+I169 -> 171 | O169: =INDEX(入力!$C:$C,N169+2,1) -> 0
A170: =INDEX(入力!$E:$E,D169+2,1) -> 0 | E170: =INDEX(入力!$H:$H,D169+2,1) ->  | F170: =INDEX(入力!$E:$E,I169+2,1) -> 0 | J170: =INDEX(入力!$H:$H,I169+2,1) ->  | K170: =INDEX(入力!$E:$E,N169+2,1) -> 0 | O170: =INDEX(入力!$H:$H,N169+2,1) -> 
C171: 様 | E171: =INDEX(入力!$F:$F,D169+2,1) -> 0 | H171: 様 | J171: =INDEX(入力!$F:$F,I169+2,1) -> 0 | M171: 様 | O171: =INDEX(入力!$F:$F,N169+2,1) -> 0
A172: =入力!$E$1 -> villa中 | B172: =INDEX(入力!$A:$A,D172+2,1) -> 0 | C172: =INDEX(入力!$B:$B,D172+2,1) -> 0 | D172: =D169+3 -> 172 | E172: =INDEX(入力!$C:$C,D172+2,1) -> 0 | F172: =入力!$E$1 -> villa中 | G172: =INDEX(入力!$A:$A,I172+2,1) -> 0 | H172: =INDEX(入力!$B:$B,I172+2,1) -> 0 | I172: =1+D172 -> 173 | J172: =INDEX(入力!$C:$C,I172+2,1) -> 0 | K172: =入力!$E$1 -> villa中 | L172: =INDEX(入力!$A:$A,N172+2,1) -> 0 | M172: =INDEX(入力!$B:$B,N172+2,1) -> 0 | N172: =1+I172 -> 174 | O172: =INDEX(入力!$C:$C,N172+2,1) -> 0
A173: =INDEX(入力!$E:$E,D172+2,1) -> 0 | E173: =INDEX(入力!$H:$H,D172+2,1) ->  | F173: =INDEX(入力!$E:$E,I172+2,1) -> 0 | J173: =INDEX(入力!$H:$H,I172+2,1) ->  | K173: =INDEX(入力!$E:$E,N172+2,1) -> 0 | O173: =INDEX(入力!$H:$H,N172+2,1) -> 
C174: 様 | E174: =INDEX(入力!$F:$F,D172+2,1) -> 0 | H174: 様 | J174: =INDEX(入力!$F:$F,I172+2,1) -> 0 | M174: 様 | O174: =INDEX(入力!$F:$F,N172+2,1) -> 0
A175: =入力!$E$1 -> villa中 | B175: =INDEX(入力!$A:$A,D175+2,1) -> 0 | C175: =INDEX(入力!$B:$B,D175+2,1) -> 0 | D175: =D172+3 -> 175 | E175: =INDEX(入力!$C:$C,D175+2,1) -> 0 | F175: =入力!$E$1 -> villa中 | G175: =INDEX(入力!$A:$A,I175+2,1) -> 0 | H175: =INDEX(入力!$B:$B,I175+2,1) -> 0 | I175: =1+D175 -> 176 | J175: =INDEX(入力!$C:$C,I175+2,1) -> 0 | K175: =入力!$E$1 -> villa中 | L175: =INDEX(入力!$A:$A,N175+2,1) -> 0 | M175: =INDEX(入力!$B:$B,N175+2,1) -> 0 | N175: =1+I175 -> 177 | O175: =INDEX(入力!$C:$C,N175+2,1) -> 0
A176: =INDEX(入力!$E:$E,D175+2,1) -> 0 | E176: =INDEX(入力!$H:$H,D175+2,1) ->  | F176: =INDEX(入力!$E:$E,I175+2,1) -> 0 | J176: =INDEX(入力!$H:$H,I175+2,1) ->  | K176: =INDEX(入力!$E:$E,N175+2,1) -> 0 | O176: =INDEX(入力!$H:$H,N175+2,1) -> 
C177: 様 | E177: =INDEX(入力!$F:$F,D175+2,1) -> 0 | H177: 様 | J177: =INDEX(入力!$F:$F,I175+2,1) -> 0 | M177: 様 | O177: =INDEX(入力!$F:$F,N175+2,1) -> 0
A178: =入力!$E$1 -> villa中 | B178: =INDEX(入力!$A:$A,D178+2,1) -> 0 | C178: =INDEX(入力!$B:$B,D178+2,1) -> 0 | D178: =D175+3 -> 178 | E178: =INDEX(入力!$C:$C,D178+2,1) -> 0 | F178: =入力!$E$1 -> villa中 | G178: =INDEX(入力!$A:$A,I178+2,1) -> 0 | H178: =INDEX(入力!$B:$B,I178+2,1) -> 0 | I178: =1+D178 -> 179 | J178: =INDEX(入力!$C:$C,I178+2,1) -> 0 | K178: =入力!$E$1 -> villa中 | L178: =INDEX(入力!$A:$A,N178+2,1) -> 0 | M178: =INDEX(入力!$B:$B,N178+2,1) -> 0 | N178: =1+I178 -> 180 | O178: =INDEX(入力!$C:$C,N178+2,1) -> 0
A179: =INDEX(入力!$E:$E,D178+2,1) -> 0 | E179: =INDEX(入力!$H:$H,D178+2,1) ->  | F179: =INDEX(入力!$E:$E,I178+2,1) -> 0 | J179: =INDEX(入力!$H:$H,I178+2,1) ->  | K179: =INDEX(入力!$E:$E,N178+2,1) -> 0 | O179: =INDEX(入力!$H:$H,N178+2,1) -> 
C180: 様 | E180: =INDEX(入力!$F:$F,D178+2,1) -> 0 | H180: 様 | J180: =INDEX(入力!$F:$F,I178+2,1) -> 0 | M180: 様 | O180: =INDEX(入力!$F:$F,N178+2,1) -> 0
A181: =入力!$E$1 -> villa中 | B181: =INDEX(入力!$A:$A,D181+2,1) -> 0 | C181: =INDEX(入力!$B:$B,D181+2,1) -> 0 | D181: =D178+3 -> 181 | E181: =INDEX(入力!$C:$C,D181+2,1) -> 0 | F181: =入力!$E$1 -> villa中 | G181: =INDEX(入力!$A:$A,I181+2,1) -> 0 | H181: =INDEX(入力!$B:$B,I181+2,1) -> 0 | I181: =1+D181 -> 182 | J181: =INDEX(入力!$C:$C,I181+2,1) -> 0 | K181: =入力!$E$1 -> villa中 | L181: =INDEX(入力!$A:$A,N181+2,1) -> 0 | M181: =INDEX(入力!$B:$B,N181+2,1) -> 0 | N181: =1+I181 -> 183 | O181: =INDEX(入力!$C:$C,N181+2,1) -> 0
A182: =INDEX(入力!$E:$E,D181+2,1) -> 0 | E182: =INDEX(入力!$H:$H,D181+2,1) ->  | F182: =INDEX(入力!$E:$E,I181+2,1) -> 0 | J182: =INDEX(入力!$H:$H,I181+2,1) ->  | K182: =INDEX(入力!$E:$E,N181+2,1) -> 0 | O182: =INDEX(入力!$H:$H,N181+2,1) -> 
C183: 様 | E183: =INDEX(入力!$F:$F,D181+2,1) -> 0 | H183: 様 | J183: =INDEX(入力!$F:$F,I181+2,1) -> 0 | M183: 様 | O183: =INDEX(入力!$F:$F,N181+2,1) -> 0
A184: =入力!$E$1 -> villa中 | B184: =INDEX(入力!$A:$A,D184+2,1) -> 0 | C184: =INDEX(入力!$B:$B,D184+2,1) -> 0 | D184: =D181+3 -> 184 | E184: =INDEX(入力!$C:$C,D184+2,1) -> 0 | F184: =入力!$E$1 -> villa中 | G184: =INDEX(入力!$A:$A,I184+2,1) -> 0 | H184: =INDEX(入力!$B:$B,I184+2,1) -> 0 | I184: =1+D184 -> 185 | J184: =INDEX(入力!$C:$C,I184+2,1) -> 0 | K184: =入力!$E$1 -> villa中 | L184: =INDEX(入力!$A:$A,N184+2,1) -> 0 | M184: =INDEX(入力!$B:$B,N184+2,1) -> 0 | N184: =1+I184 -> 186 | O184: =INDEX(入力!$C:$C,N184+2,1) -> 0
A185: =INDEX(入力!$E:$E,D184+2,1) -> 0 | E185: =INDEX(入力!$H:$H,D184+2,1) ->  | F185: =INDEX(入力!$E:$E,I184+2,1) -> 0 | J185: =INDEX(入力!$H:$H,I184+2,1) ->  | K185: =INDEX(入力!$E:$E,N184+2,1) -> 0 | O185: =INDEX(入力!$H:$H,N184+2,1) -> 
C186: 様 | E186: =INDEX(入力!$F:$F,D184+2,1) -> 0 | H186: 様 | J186: =INDEX(入力!$F:$F,I184+2,1) -> 0 | M186: 様 | O186: =INDEX(入力!$F:$F,N184+2,1) -> 0
A187: =入力!$E$1 -> villa中 | B187: =INDEX(入力!$A:$A,D187+2,1) -> 0 | C187: =INDEX(入力!$B:$B,D187+2,1) -> 0 | D187: =D184+3 -> 187 | E187: =INDEX(入力!$C:$C,D187+2,1) -> 0 | F187: =入力!$E$1 -> villa中 | G187: =INDEX(入力!$A:$A,I187+2,1) -> 0 | H187: =INDEX(入力!$B:$B,I187+2,1) -> 0 | I187: =1+D187 -> 188 | J187: =INDEX(入力!$C:$C,I187+2,1) -> 0 | K187: =入力!$E$1 -> villa中 | L187: =INDEX(入力!$A:$A,N187+2,1) -> 0 | M187: =INDEX(入力!$B:$B,N187+2,1) -> 0 | N187: =1+I187 -> 189 | O187: =INDEX(入力!$C:$C,N187+2,1) -> 0
A188: =INDEX(入力!$E:$E,D187+2,1) -> 0 | E188: =INDEX(入力!$H:$H,D187+2,1) ->  | F188: =INDEX(入力!$E:$E,I187+2,1) -> 0 | J188: =INDEX(入力!$H:$H,I187+2,1) ->  | K188: =INDEX(入力!$E:$E,N187+2,1) -> 0 | O188: =INDEX(入力!$H:$H,N187+2,1) -> 
C189: 様 | E189: =INDEX(入力!$F:$F,D187+2,1) -> 0 | H189: 様 | J189: =INDEX(入力!$F:$F,I187+2,1) -> 0 | M189: 様 | O189: =INDEX(入力!$F:$F,N187+2,1) -> 0
A190: =入力!$E$1 -> villa中 | B190: =INDEX(入力!$A:$A,D190+2,1) -> 0 | C190: =INDEX(入力!$B:$B,D190+2,1) -> 0 | D190: =D187+3 -> 190 | E190: =INDEX(入力!$C:$C,D190+2,1) -> 0 | F190: =入力!$E$1 -> villa中 | G190: =INDEX(入力!$A:$A,I190+2,1) -> 0 | H190: =INDEX(入力!$B:$B,I190+2,1) -> 0 | I190: =1+D190 -> 191 | J190: =INDEX(入力!$C:$C,I190+2,1) -> 0 | K190: =入力!$E$1 -> villa中 | L190: =INDEX(入力!$A:$A,N190+2,1) -> 0 | M190: =INDEX(入力!$B:$B,N190+2,1) -> 0 | N190: =1+I190 -> 192 | O190: =INDEX(入力!$C:$C,N190+2,1) -> 0
A191: =INDEX(入力!$E:$E,D190+2,1) -> 0 | E191: =INDEX(入力!$H:$H,D190+2,1) ->  | F191: =INDEX(入力!$E:$E,I190+2,1) -> 0 | J191: =INDEX(入力!$H:$H,I190+2,1) ->  | K191: =INDEX(入力!$E:$E,N190+2,1) -> 0 | O191: =INDEX(入力!$H:$H,N190+2,1) -> 
C192: 様 | E192: =INDEX(入力!$F:$F,D190+2,1) -> 0 | H192: 様 | J192: =INDEX(入力!$F:$F,I190+2,1) -> 0 | M192: 様 | O192: =INDEX(入力!$F:$F,N190+2,1) -> 0
A193: =入力!$E$1 -> villa中 | B193: =INDEX(入力!$A:$A,D193+2,1) -> 0 | C193: =INDEX(入力!$B:$B,D193+2,1) -> 0 | D193: =D190+3 -> 193 | E193: =INDEX(入力!$C:$C,D193+2,1) -> 0 | F193: =入力!$E$1 -> villa中 | G193: =INDEX(入力!$A:$A,I193+2,1) -> 0 | H193: =INDEX(入力!$B:$B,I193+2,1) -> 0 | I193: =1+D193 -> 194 | J193: =INDEX(入力!$C:$C,I193+2,1) -> 0 | K193: =入力!$E$1 -> villa中 | L193: =INDEX(入力!$A:$A,N193+2,1) -> 0 | M193: =INDEX(入力!$B:$B,N193+2,1) -> 0 | N193: =1+I193 -> 195 | O193: =INDEX(入力!$C:$C,N193+2,1) -> 0
A194: =INDEX(入力!$E:$E,D193+2,1) -> 0 | E194: =INDEX(入力!$H:$H,D193+2,1) ->  | F194: =INDEX(入力!$E:$E,I193+2,1) -> 0 | J194: =INDEX(入力!$H:$H,I193+2,1) ->  | K194: =INDEX(入力!$E:$E,N193+2,1) -> 0 | O194: =INDEX(入力!$H:$H,N193+2,1) -> 
C195: 様 | E195: =INDEX(入力!$F:$F,D193+2,1) -> 0 | H195: 様 | J195: =INDEX(入力!$F:$F,I193+2,1) -> 0 | M195: 様 | O195: =INDEX(入力!$F:$F,N193+2,1) -> 0
A196: =入力!$E$1 -> villa中 | B196: =INDEX(入力!$A:$A,D196+2,1) -> 0 | C196: =INDEX(入力!$B:$B,D196+2,1) -> 0 | D196: =D193+3 -> 196 | E196: =INDEX(入力!$C:$C,D196+2,1) -> 0 | F196: =入力!$E$1 -> villa中 | G196: =INDEX(入力!$A:$A,I196+2,1) -> 0 | H196: =INDEX(入力!$B:$B,I196+2,1) -> 0 | I196: =1+D196 -> 197 | J196: =INDEX(入力!$C:$C,I196+2,1) -> 0 | K196: =入力!$E$1 -> villa中 | L196: =INDEX(入力!$A:$A,N196+2,1) -> 0 | M196: =INDEX(入力!$B:$B,N196+2,1) -> 0 | N196: =1+I196 -> 198 | O196: =INDEX(入力!$C:$C,N196+2,1) -> 0
A197: =INDEX(入力!$E:$E,D196+2,1) -> 0 | E197: =INDEX(入力!$H:$H,D196+2,1) ->  | F197: =INDEX(入力!$E:$E,I196+2,1) -> 0 | J197: =INDEX(入力!$H:$H,I196+2,1) ->  | K197: =INDEX(入力!$E:$E,N196+2,1) -> 0 | O197: =INDEX(入力!$H:$H,N196+2,1) -> 
C198: 様 | E198: =INDEX(入力!$F:$F,D196+2,1) -> 0 | H198: 様 | J198: =INDEX(入力!$F:$F,I196+2,1) -> 0 | M198: 様 | O198: =INDEX(入力!$F:$F,N196+2,1) -> 0
A199: =入力!$E$1 -> villa中 | B199: =INDEX(入力!$A:$A,D199+2,1) -> 0 | C199: =INDEX(入力!$B:$B,D199+2,1) -> 0 | D199: =D196+3 -> 199 | E199: =INDEX(入力!$C:$C,D199+2,1) -> 0 | F199: =入力!$E$1 -> villa中 | G199: =INDEX(入力!$A:$A,I199+2,1) -> 0 | H199: =INDEX(入力!$B:$B,I199+2,1) -> 0 | I199: =1+D199 -> 200 | J199: =INDEX(入力!$C:$C,I199+2,1) -> 0 | K199: =入力!$E$1 -> villa中 | L199: =INDEX(入力!$A:$A,N199+2,1) -> 0 | M199: =INDEX(入力!$B:$B,N199+2,1) -> 0 | N199: =1+I199 -> 201 | O199: =INDEX(入力!$C:$C,N199+2,1) -> 0
A200: =INDEX(入力!$E:$E,D199+2,1) -> 0 | E200: =INDEX(入力!$H:$H,D199+2,1) ->  | F200: =INDEX(入力!$E:$E,I199+2,1) -> 0 | J200: =INDEX(入力!$H:$H,I199+2,1) ->  | K200: =INDEX(入力!$E:$E,N199+2,1) -> 0 | O200: =INDEX(入力!$H:$H,N199+2,1) -> 
... 193 more rows

Sheet サイズ
E2: 身長 | F2: サイズ
A3: 20.5 | B3: J | E3: 105 | F3: 110 | H3: 16 | I3: ア | J3: =COUNTIF(入力!$Q:$Q,I3) -> 0
A4: 21 | B4: K | E4: 115 | F4: 130 | H4: 17 | I4: ア | J4: =COUNTIF(入力!$Q:$Q,I4) -> 0
A5: 21.5 | B5: L | E5: 125 | F5: SSS | H5: 18 | I5: ア | J5: =COUNTIF(入力!$Q:$Q,I5) -> 0
A6: 22 | B6: M | E6: 135 | F6: SS | H6: 19 | I6: ア | J6: =COUNTIF(入力!$Q:$Q,I6) -> 0
A7: 22.5 | B7: N | E7: 145 | F7: S | H7: 20 | I7: イ | J7: =COUNTIF(入力!$Q:$Q,I7) -> 0
A8: 23 | B8: O | E8: 155 | F8: M | H8: 21 | I8: S | J8: =COUNTIF(入力!$Q:$Q,I8) -> 0
A9: 23.5 | B9: P | E9: 165 | F9: L | H9: 22 | I9: A | J9: =COUNTIF(入力!$Q:$Q,I9) -> 0
A10: 24 | B10: Q | E10: 175 | F10: LL | H10: 23 | I10: C | J10: =COUNTIF(入力!$Q:$Q,I10) -> 0
A11: 24.5 | B11: R | E11: 185 | F11: LLL | H11: 24 | I11: D | J11: =COUNTIF(入力!$Q:$Q,I11) -> 1
A12: 25 | B12: S | H12: 25 | I12: E | J12: =COUNTIF(入力!$Q:$Q,I12) -> 0
A13: 25.5 | B13: T | H13: 26 | I13: F | J13: =COUNTIF(入力!$Q:$Q,I13) -> 0
A14: 26 | B14: U | H14: 27 | I14: G | J14: =COUNTIF(入力!$Q:$Q,I14) -> 0
A15: 26.5 | B15: V | H15: 28 | I15: H | J15: =COUNTIF(入力!$Q:$Q,I15) -> 0
A16: 27 | B16: W | H16: 29 | I16: I | J16: =COUNTIF(入力!$Q:$Q,I16) -> 0
A17: 27.5 | B17: X | H17: 30 | I17: 借 | J17: =COUNTIF(入力!$Q:$Q,I17) -> 0
A18: 28 | B18: Y
A19: 28.5 | B19: Z

Sheet 集計表 (2)
A1: =入力!E1 -> villa中 | C1: 日程 | E1: ～
A3: 靴サイズ
A4: 17 | B4: 17.5 | C4: 18 | D4: 18.5 | E4: 19 | F4: 19.5 | G4: 20 | H4: 20.5 | I4: 21 | J4: 21.5 | K4: 22 | L4: 22.5
A5: =COUNTIF(入力!$G:$G,A4) -> 0 | B5: =COUNTIF(入力!$G:$G,B4) -> 0 | C5: =COUNTIF(入力!$G:$G,C4) -> 0 | D5: =COUNTIF(入力!$G:$G,D4) -> 0 | E5: =COUNTIF(入力!$G:$G,E4) -> 0 | F5: =COUNTIF(入力!$G:$G,F4) -> 0 | G5: =COUNTIF(入力!$G:$G,G4) -> 0 | H5: =COUNTIF(入力!$G:$G,H4) -> 0 | I5: =COUNTIF(入力!$G:$G,I4) -> 0 | J5: =COUNTIF(入力!$G:$G,J4) -> 0 | K5: =COUNTIF(入力!$G:$G,K4) -> 0 | L5: =COUNTIF(入力!$G:$G,L4) -> 0
A8: 23 | B8: 23.5 | C8: 24 | D8: 24.5 | E8: 25 | F8: 25.5 | G8: 26 | H8: 26.5 | I8: 27 | J8: 27.5 | K8: 28 | L8: 28.5 | M8: 29
A9: =COUNTIF(入力!$G:$G,A8) -> 0 | B9: =COUNTIF(入力!$G:$G,B8) -> 0 | C9: =COUNTIF(入力!$G:$G,C8) -> 1 | D9: =COUNTIF(入力!$G:$G,D8) -> 0 | E9: =COUNTIF(入力!$G:$G,E8) -> 0 | F9: =COUNTIF(入力!$G:$G,F8) -> 0 | G9: =COUNTIF(入力!$G:$G,G8) -> 0 | H9: =COUNTIF(入力!$G:$G,H8) -> 0 | I9: =COUNTIF(入力!$G:$G,I8) -> 0 | J9: =COUNTIF(入力!$G:$G,J8) -> 0 | K9: =COUNTIF(入力!$G:$G,K8) -> 0 | L9: =COUNTIF(入力!$G:$G,L8) -> 0 | M9: =COUNTIF(入力!$G:$G,M8) -> 0 | N9: =SUM(A9:M9,A5:L5) -> 1
A11: ウェアサイズ
A12: 110 | B12: 130 | C12: SSS | D12: SS | E12: S | F12: M | G12: L | H12: LL | I12: LLL
A13: =COUNTIF(入力!$H:$H,A12) -> 0 | B13: =COUNTIF(入力!$H:$H,B12) -> 0 | C13: =SUM(C16,C18) -> 0 | D13: =SUM(D16,D18) -> 0 | E13: =COUNTIF(入力!$H:$H,E12) -> 0 | F13: =COUNTIF(入力!$H:$H,F12) -> 0 | G13: =COUNTIF(入力!$H:$H,G12) -> 1 | H13: =SUM(H16,H18) -> 0 | I13: =SUM(I16,I18) -> 0 | J13: =SUM(A13:I13) -> 1
C15: 3S | D15: 2S | H15: 2L | I15: 3L
C16: =COUNTIF(入力!$H:$H,C15) -> 0 | D16: =COUNTIF(入力!$H:$H,D15) -> 0 | H16: =COUNTIF(入力!$H:$H,H15) -> 0 | I16: =COUNTIF(入力!$H:$H,I15) -> 0
C17: SSS | D17: SS | H17: LL | I17: LLL
C18: =COUNTIF(入力!$H:$H,C17) -> 0 | D18: =COUNTIF(入力!$H:$H,D17) -> 0 | H18: =COUNTIF(入力!$H:$H,H17) -> 0 | I18: =COUNTIF(入力!$H:$H,I17) -> 0
